{"text_format":"1","workbook":"xlsx","n_sheets":24,"sheets":["2017","M","1","2018","ESF","EA","EVHP","EVHP (2)","ECSF","EFE","EFE (2)","EAA","EADOP","EAI","EAEPE OG","EAEPE CE","EAEPE CA","EAEPE CF","EN","ID","GCP","EAIP","EEPCG","EAP"],"not_rendered":{"charts":0,"images":1,"macros":1,"external_links":0,"defined_names":11,"comments":0,"pivot_tables":0},"unopened":[],"bounds":{"document_bytes":16777216,"sheet_cells":100000,"rows_first":2000,"rows_last":500,"rows_between":2000,"halvings":0,"cell_chars":16384,"cell_head_chars":4096},"cells_cut":0,"cells_raw":0,"read":"whole","date_system":"1900"}

{"sheet":"2017","index":0,"n_rows":117,"n_cols":9,"rows_kept":117,"cut":false,"hidden":true,"merged":[]}
["No.","Clave","Sujeto","Titular","Cargo","Fecha de Inicio","Fecha de Conclusión","Fecha de Inicio","Fecha de Conclusión"]
[1,"70/01","H. Congreso del Estado de Puebla","Dip. Jorge Fouad Aguilar Chedraui","Expresidente de la Junta de Gobierno y Coordinación Política","2017-01-01","2017-12-31","1 de enero","31 de diciembre"]
[2,"70/02","H. Tribunal Superior de Justicia","Mgdo. Roberto Flores Toledano","Expresidente del H. Tribunal Superior de Justicia","2017-01-01","2017-12-31","1 de enero","31 de diciembre"]
[3,"70/03","Auditoría Superior del Estado de Puebla","Dr. David Villanueva Lomelí","Auditor Superior","2017-01-01","2017-12-31","1 de enero","31 de diciembre"]
[4,"80/09","Secretaría de Salud (Servicios de Salud del Estado de Puebla)","Dr. Neftalí Salvador Escobedo Zoletto","Exsecretario de Salud y Exdirector General de los Servicios de Salud","2017-01-01","2017-01-31","1 de enero","31 de enero"]
[5,"80/09_2","Secretaría de Salud (Servicios de Salud del Estado de Puebla)","Mtra. Arely Sánchez Negrete","Secretaria de Salud y Directora General de los Servicios de Salud","2017-02-01","2017-12-31","1 de febrero","31 de diciembre"]
[6,"80/10","Secretaría de Educación Pública","Lic. Patricia Gabriela Vázquez del Mercado Herrera","Exsecretaria de Educación Pública","2017-01-01","2017-12-31","1 de enero","31 de diciembre"]
[7,"80/29","Secretaría de Finanzas y Administración","Mtro. Guillermo Edmundo Bernal Miranda","Exsecretario de Finanzas y Administración","2017-01-01","2017-01-31","1 de enero","31 de enero"]
[8,"80/29_2","Secretaría de Finanzas y Administración","C.P. Raúl Sánchez Kobashi","Secretario de Finanzas y Administración","2017-02-01","2017-12-31","1 de febrero","31 de diciembre"]
[9,"90/03","El Colegio de Puebla, A.C.","Lic. José Porfirio Alarcón Hernández","Presidente","2017-01-01","2017-12-31","1 de enero","31 de diciembre"]
[10,"90/07","Colegio de Bachilleres del Estado de Puebla","Mtro. José Antonio Gómez Mandujano","Exdirector General","2017-01-01","2017-02-02","1 de enero","2 de febrero"]
[11,"90/07_2","Colegio de Bachilleres del Estado de Puebla","Ing. Carlos Martínez Amador","Exdirector General","2017-02-03","2017-11-12","3 de febrero","12 de noviembre"]
[12,"90/07_3","Colegio de Bachilleres del Estado de Puebla","Lic. Marcelino Sánchez Rivera","Exencargado del Despacho de la Dirección General","2017-11-13","2017-12-31","13 de noviembre","31 de diciembre"]
[13,"90/10","Sistema para el Desarrollo Integral de la Familia del Estado de Puebla","Mtro. Jorge David Rosas Armijo","Exdirector General","2017-01-01","2017-01-31","1 de enero","31 de enero"]
[14,"90/10_2","Sistema para el Desarrollo Integral de la Familia del Estado de Puebla","Mtra. Margarita de Jesús Aguirre Barbosa","Exdirectora General","2017-02-01","2017-11-15","1 de febrero","15 de noviembre"]
[15,"90/10_3","Sistema para el Desarrollo Integral de la Familia del Estado de Puebla","Mtro. Emmanuel Durán Meneses","Director General","2017-11-16","2017-12-31","16 de noviembre","31 de diciembre"]
[16,"90/12","Instituto de Seguridad y Servicios Sociales de los Trabajadores al Servicio de los Poderes del Estado de Puebla","Mtro. Roberto Rivero Trewartha","Exdirector General","2017-01-01","2017-01-31","1 de enero","31 de enero"]
[17,"90/12_2","Instituto de Seguridad y Servicios Sociales de los Trabajadores al Servicio de los Poderes del Estado de Puebla","Mtro. Eugenio Mora Salgado","Director General","2017-02-01","2017-12-31","1 de febrero","31 de diciembre"]
[18,"90/14","Instituto de Administración Pública del Estado de Puebla, A.C.","Dr. Héctor Hernández Sosa","Presidente","2017-01-01","2017-12-31","1 de enero","31 de diciembre"]
[19,"90/15","Instituto de Capacitación para el Trabajo del Estado de Puebla","Arq. Francisco Javier Narro Robles","Director General","2017-01-01","2017-12-31","1 de enero","31 de diciembre"]
[20,"90/16","Instituto Poblano de las Mujeres","Lic. Verónica María Sobrado Rodríguez","Exdirectora General","2017-01-01","2017-01-31","1 de enero","31 de enero"]
[21,"90/16_2","Instituto Poblano de las Mujeres","Lic. Nadia Navarro Acevedo","Exdirectora General","2017-02-01","2017-12-31","1 de febrero","31 de diciembre"]
[22,"90/20","Instituto Tecnológico Superior de Acatlán de Osorio","Mtro. Eliseo Ramírez Torres","Encargado del Despacho de la Dirección General","2017-01-01","2017-12-31","1 de enero","31 de diciembre"]
[23,"90/22","Instituto Tecnológico Superior de Atlixco","Mtro. José Guillermo Velázquez Gutiérrez","Exdirector General","2017-01-01","2017-12-31","1 de enero","31 de diciembre"]
[24,"90/24","Instituto Tecnológico Superior de la Sierra Norte del Estado de Puebla","Mtro. Raúl Espinosa Martínez","Exdirector General","2017-01-01","2017-12-31","1 de enero","31 de diciembre"]
[25,"90/25","Instituto Tecnológico Superior de Tepexi de Rodríguez","Ing. Ismael Sánchez Huerta","Exdirector General","2017-01-01","2017-12-31","1 de enero","31 de diciembre"]
[26,"90/27","Instituto Tecnológico Superior de Teziutlán","Mtro. Gustavo Urbano Juárez","Director General","2017-01-01","2017-12-31","1 de enero","31 de diciembre"]
[27,"90/29","Universidad Tecnológica de Puebla","Mtro. Bernardo Huerta Couttolenc","Rector","2017-01-01","2017-12-31","1 de enero","31 de diciembre"]
[28,"90/30","Comisión Estatal de Agua y Saneamiento de Puebla","Lic. Alfredo Ávila Salazar","Director General","2017-01-01","2017-12-31","1 de enero","31 de diciembre"]
[29,"90/32","Comisión de Derechos Humanos del Estado de Puebla","Dr. Adolfo López Badillo","Presidente","2017-01-01","2017-12-31","1 de enero","31 de diciembre"]
[30,"90/36","Colegio de Estudios Científicos y Tecnológicos del Estado de Puebla","Mtra. Miriam Mozo Rodríguez","Directora General","2017-01-01","2017-12-31","1 de enero","31 de diciembre"]
[31,"90/37","Instituto Tecnológico Superior de Zacapoaxtla","Mtra. Arminda Juárez Arroyo","Directora General","2017-01-01","2017-12-31","1 de enero","31 de diciembre"]
[32,"90/40","Comité Administrador Poblano para la Construcción de Espacios Educativos","Lic. Jorge Benito Cruz Bermúdez","Exdirector General","2017-01-01","2017-12-31","1 de enero","31 de diciembre"]
[33,"90/42","Universidad Tecnológica de Huejotzingo","Mtro. Gabriel Alejandro Martínez Parente Rangel","Exrector","2017-01-01","2017-12-31","1 de enero","31 de diciembre"]
[34,"90/43","Universidad Tecnológica de Izúcar de Matamoros","Mtra. Myriam Galindo Pétriz","Exrectora","2017-01-01","2017-12-31","1 de enero","31 de diciembre"]
[35,"90/44","Universidad Tecnológica de Tecamachalco","Ing. Raúl Erasmo Álvarez Marín","Rector","2017-01-01","2017-12-31","1 de enero","31 de diciembre"]
[36,"90/45","Puebla Comunicaciones","Francisco Javier Trejo Mendoza","Exencargado del Despacho de la Dirección General","2017-01-01","2017-02-06","1 de enero","6 de febrero"]
[37,"90/45_2","Puebla Comunicaciones","Lic. Ricardo Gutiérrez Loyola","Director General","2017-02-07","2017-12-31","7 de febrero","31 de diciembre"]
[38,"90/46","Colegio de Educación Profesional Técnica del Estado de Puebla","Lic. Jesús Salvador Zaldívar Benavides","Exdirector General","2017-01-01","2017-12-31","1 de enero","31 de diciembre"]
[39,"90/47","Instituto Estatal de Educación para Adultos","Lic. Dora Luz Cigarroa Martínez","Directora General","2017-01-01","2017-12-31","1 de enero","31 de diciembre"]
[40,"90/48","Instituto Tecnológico Superior de Ciudad Serdán","C.P. José Antonio Zacaula Martínez","Director General","2017-01-01","2017-12-31","1 de enero","31 de diciembre"]
[41,"90/49","Benemérita Universidad Autónoma de Puebla","Mtro. José Alfonso Esparza Ortiz","Rector","2017-01-01","2017-12-31","1 de enero","31 de diciembre"]
[42,"90/54","Tribunal Electoral del Estado","Mtro. Ricardo Adrián Rodríguez Perdomo","Exmagistrado Presidente","2017-01-01","2017-12-31","1 de enero","31 de diciembre"]
[43,"90/56","Fondo para el Fortalecimiento de la Microempresa","Mtro. Carlos Alberto Espinal Galeana","Responsable de la Atención de los Asuntos del Fideicomiso","2017-01-01","2017-12-31","1 de enero","31 de diciembre"]
[44,"90/59","Instituto Tecnológico Superior de Huauchinango","Lic. Omar Martínez Amador","Director General","2017-01-01","2017-12-31","1 de enero","31 de diciembre"]
[45,"90/60","Instituto Tecnológico Superior de Libres","Ing. Jair Nahúm Fierro Bretón","Director General","2017-01-01","2017-12-31","1 de enero","31 de diciembre"]
[46,"90/61","Instituto Tecnológico Superior de Tepeaca","Ing. José Luis Contreras Coeto","Exdirector General","2017-01-01","2017-12-31","1 de enero","31 de diciembre"]
[47,"90/62","Instituto Electoral del Estado","Lic. Jacinto Herrera Serrallonga","Consejero Presidente","2017-01-01","2017-12-31","1 de enero","31 de diciembre"]
[48,"90/63","Carreteras de Cuota Puebla","Lic. Mariana Navarrete Little","Exdirectora General","2017-01-01","2017-01-31","1 de enero","31 de enero"]
[49,"90/63_2","Carreteras de Cuota Puebla","Mtro. Roberto Rivero Trewartha","Exdirector General","2017-02-01","2017-12-31","1 de febrero","31 de diciembre"]
[50,"90/73","Patronato del Teatro Principal","Lic. Ariel Juventino Azuara Campos ","Encargado del Despacho de los Asuntos Administrativos","2017-01-01","2017-12-31","1 de enero","31 de diciembre"]
[51,"90/75","Fideicomiso del Fondo de Seguridad Pública","Mtro. Carlos Jesús Cadena Lozano","Exsecretario del Comité Técnico","2017-01-01","2017-01-31","1 de enero","31 de enero"]
[52,"90/75_2","Fideicomiso del Fondo de Seguridad Pública","Gral.Brig. Alejandro Benjamín Meneses Cervantes","Exsecretario del Comité Técnico","2017-02-01","2017-06-26","1 de febrero","26 de junio"]
[53,"90/75_3","Fideicomiso del Fondo de Seguridad Pública","Mtro. Daniel Vázquez Sentíes","Secretario del Comité Técnico","2017-06-27","2017-01-31","27 de junio","31 de diciembre"]
[54,"90/76","Universidad Tecnológica de Xicotepec de Juárez","Ing. Jesus Santos Picazo","Rector","2017-01-01","2017-12-31","1 de enero","31 de diciembre"]
[55,"90/77","Fideicomiso Público para la Administración de Inmuebles y Ejecución de Obras Públicas en la Reserva Territorial Atlixcáyotl-Quetzalcóatl","Lic. Emilio Barranco Barrientos","Director General","2017-01-01","2017-12-31","1 de enero","31 de diciembre"]
[56,"90/82","Corporación Auxiliar de Policía de Protección Ciudadana","Cmte. Héctor Guillermo De la Peña y Beltrán","Exdirector General","2017-01-01","2017-01-31","1 de enero","31 de enero"]
[57,"90/82","Corporación Auxiliar de Policía de Protección Ciudadana","Cnel. Enrique Alberto Sanmiguel Sánchez","Exdirector General","2017-02-01","2017-10-18","1 de febrero","18 de octubre"]
[58,"90/82","Corporación Auxiliar de Policía de Protección Ciudadana","Lic. Alejandro Campos Zamora","Exdirector General","2017-10-19","2017-12-31","19 de octubre","31 de diciembre"]
[59,"90/86","Fideicomiso del Programa de Becas Nacionales para la Educación Superior Manutención","Lic. María del Carmen Salvatori Bronca","Exsecretaria Ejecutiva del Comité Técnico","2017-01-01","2017-02-14","1 de enero","14 de febrero"]
[60,"90/86_2","Fideicomiso del Programa de Becas Nacionales para la Educación Superior Manutención","Lic. Ignacio Alvízar Linares","Secretario Ejecutivo del Comité Técnico","2017-02-15","2017-12-31","15 de febrero","31 de diciembre"]
[61,"90/87","Universidad Politécnica de Puebla","Mtro. Héctor Enrique Arreola Ibarra","Rector","2017-01-01","2017-12-31","1 de enero","31 de diciembre"]
[62,"90/881","Instituto Tecnológico Superior de San Martín Texmelucan","Arq. José Israel Pérez Osorio","Exencargado de la Dirección General","2017-01-01","2017-02-13","1 de enero","13 de febrero"]
[63,"90/88","Instituto Tecnológico Superior de San Martín Texmelucan","Mtro. Guillermo Antonio Almazán Smith","Exdirector General","2017-02-14","2017-12-31","14 de febrero","31 de diciembre"]
[64,"90/90","Fideicomiso Público PEC","Mtra. Lucero Nava Bolaños","Secretaria Ejecutiva del Comité Técnico","2017-01-01","2017-12-31","1 de enero","31 de diciembre"]
[65,"90/92","Consejo de Ciencia y Tecnología del Estado de Puebla","Dr. Miguel Ángel Pérez Maldonado","Encargado del Despacho de la Dirección General","2017-01-01","2017-12-31","1 de enero","31 de diciembre"]
[66,"90/94","Consejo Estatal de Coordinación del Sistema Nacional de Seguridad Pública","Mtro. Carlos Jesús Cadena Lozano","Exsecretario Ejecutivo","2017-01-01","2017-01-31","1 de enero","31 de enero"]
[67,"90/94_2","Consejo Estatal de Coordinación del Sistema Nacional de Seguridad Pública","Gral.Brig. Alejandro Benjamín Meneses Cervantes","Exsecretario Ejecutivo","2017-02-01","2017-06-26","1 de febrero","26 de junio"]
[68,"90/94_3","Consejo Estatal de Coordinación del Sistema Nacional de Seguridad Pública","Mtro. Daniel Vázquez Sentíes","Secretario Ejecutivo","2017-06-27","2017-12-31","27 de junio","31 de diciembre"]
[69,"90/99","Universidad Intercultural del Estado de Puebla","Mtro. Alibert Sánchez Jiménez","Rector","2017-01-01","2017-12-31","1 de enero","31 de diciembre"]
[70,"90/102","Fideicomiso Público Denominado \"La Célula\"","Lic. Edgar Badillo Morales","Exdirector General","2016-01-01","2017-01-30","1 de enero","30 de enero"]
[71,"90/104","Universidad Tecnológica de Oriental","Mtro. Mario Antonio Bonilla Martínez","Rector","2017-01-01","2017-12-31","1 de enero","31 de diciembre"]
[72,"90/105","Universidad Interserrana del Estado de Puebla-Ahuacatlán","Dr. César Santiago Tepantlán","Rector","2017-01-01","2017-12-31","1 de enero","31 de diciembre"]
[73,"90/106","Universidad Politécnica de Amozoc","Mtro. Luis Eduardo Espinosa Galicia","Exrector","2017-01-01","2017-12-31","1 de enero","31 de diciembre"]
[74,"90/107","Instituto Tecnológico Superior de Venustiano Carranza","Ing. Roberto González García","Director General","2017-01-01","2017-12-31","1 de enero","31 de diciembre"]
[75,"90/108","Universidad Interserrana del Estado de Puebla - Chilchotla","Lic. Carlos Alfredo Lozano Díaz","Exencargado de la Rectoría","2017-01-01","2017-02-13","1 de enero","13 de febrero"]
[76,"90/108_2","Universidad Interserrana del Estado de Puebla - Chilchotla","Lic. José Fabián Sandoval Carranza","Rector","2017-02-14","2017-12-31","14 de febrero","31 de diciembre"]
[77,"90/109","Instituto Tecnológico Superior de la Sierra Negra de Ajalpan","Mtro. Francisco Valencia Ponce","Exdirector General","2017-01-01","2017-09-12","1 de enero","12 de septiembre"]
[78,"90/109_2","Instituto Tecnológico Superior de la Sierra Negra de Ajalpan","Ing. Félix Salvador López","Encargado del Despacho de la Dirección General","2017-09-13","2017-12-31","13 de septiembre","31 de diciembre"]
[79,"90/110","Universidad Tecnológica de Tehuacán","Dr. Jorge Alfredo Guillén Muñoz","Exrector","2017-01-01","2017-01-31","1 de enero","31 de enero"]
[80,"90/110","Universidad Tecnológica de Tehuacán","Lic. Verónica María Sobrado Rodríguez","Exrectora","2017-02-01","2017-12-31","1 de febrero","31 de diciembre"]
[81,"90/111","Consejo Estatal para la Cultura y las Artes de Puebla","Mtro. Jorge Alberto Lozoya Legorreta","Exsecretario Ejecutivo","2017-01-01","2017-01-27","1 de enero","27 de enero"]
[82,"90/111_2","Consejo Estatal para la Cultura y las Artes de Puebla","Lic. José Octavio Ferrer Burgos","Liquidador","2017-01-28","2017-12-31","28 de enero","31 de diciembre"]
[83,"90/113","Instituto Poblano de Asistencia al Migrante","Emb. Alma Patricia Soria Ayuso","Excoordinadora General","2017-01-01","2017-12-31","1 de enero","31 de diciembre"]
[84,"90/116","Fideicomiso Público denominado \"Banco Estatal de Tierra\"","Lic. Juan José Méndez León Jiménez","Exdirector General","2017-01-01","2017-03-16","1 de enero","16 de marzo"]
[85,"90/116_2","Fideicomiso Público denominado \"Banco Estatal de Tierra\"","Mtro. José Miguel Rivas García","Exdirector General","2017-03-17","2017-11-30","17 de marzo","30 de noviembre"]
[86,"90/116_3","Fideicomiso Público denominado \"Banco Estatal de Tierra\"","Lic. Alfredo Ortega Miranda","Director General","2017-12-01","2017-12-31","1 de diciembre","31 de diciembre"]
[87,"90/118","Universidad Politécnica Metropolitana de Puebla","Mtro. Edgar Jesús Salomón Escorza","Exrector","2017-01-01","2017-10-31","1 de enero","31 de octubre"]
[88,"90/118_2","Universidad Politécnica Metropolitana de Puebla","Mtra. Mónica Eloína Barrientos Sánchez","Rectora","2017-11-01","2017-12-31","1 de noviembre","31 de diciembre"]
[89,"90/121","Convenciones y Parques","Lic. Lambertus Matthijs de Kool ","Encargado del Despacho de la Dirección Ejecutiva","2017-01-01","2017-12-31","1 de enero","31 de diciembre"]
[90,"90/122","Coordinación General de Comunicación, Difusión y Promoción","Gerardo Maximiliano Cortázar Lara","Excoordinador General","2017-01-01","2017-01-31","1 de enero","31 de enero"]
[91,"90/122_2","Coordinación General de Comunicación, Difusión y Promoción","Mtro. Marcelo Eugenio García Almaguer","Coordinador General","2017-02-01","2017-12-31","1 de febrero","31 de diciembre"]
[92,"90/123","Instituto de Educación Digital del Estado de Puebla","Lic. Milthon Javier Fregoso Escalera","Director General","2017-01-01","2017-12-31","1 de enero","31 de diciembre"]
[93,"90/124","Régimen Estatal de Protección Social en Salud","Mtro. José de la Rosa López","Exdirector General","2017-01-01","2017-02-15","1 de enero","15 de febrero"]
[94,"90/124_2","Régimen Estatal de Protección Social en Salud","Mtra. Enoé González Cabrera","Exdirectora General","2017-02-16","2017-05-17","16 de febrero","17 de mayo"]
[95,"90/124_3","Régimen Estatal de Protección Social en Salud","Mtra. Esperanza Quiroz Pérez","Directora General","2017-05-18","2017-12-31","18 de mayo","31 de diciembre"]
[96,"90/125","Comisión Estatal de Vivienda de Puebla","Lic. Eduardo José Louvier Hernández","Exdirector General","2017-01-01","2017-05-07","1 de enero","7 de mayo"]
[97,"90/125_2","Comisión Estatal de Vivienda de Puebla","Ing. Luis Gabriel Becerril Reynoso","Director General","2017-05-08","2017-12-31","8 de mayo","31 de diciembre"]
[98,"90/126","Instituto Tecnológico Superior de Tlatlauquitepec","Ing. Octavio Benavides Manzano","Director General","2017-01-01","2017-12-31","1 de enero","31 de diciembre"]
[99,"90/127","Fiscalía General del Estado de Puebla","Lic. Víctor Antonio Carrancá Bourget","Fiscal General","2017-01-01","2017-12-31","1 de enero","31 de diciembre"]
[100,"90/128","Universidad Tecnológica Bilingüe Internacional y Sustentable de Puebla","Lic. Carlos Raúl Borja Aguilar","Rector","2017-01-01","2017-12-31","1 de enero","31 de diciembre"]
[101,"90/129","Instituto de Transparencia, Acceso a la Información Pública y Protección de Datos Personales del Estado de Puebla","Lic. María Gabriela Sierra Palacios","Comisionada Presidenta","2017-01-01","2017-12-31","1 de enero","31 de diciembre"]
[102,"90/130","Museos Puebla","Mtro. Iván de Sandozequi Cornejo","Director General","2017-02-02","2017-12-31","1 de enero","31 de diciembre"]
[103,"90/131","Coordinación Estatal de Transparencia y Gobierno Abierto","Mtra. Josefina Buxadé Castelán","Extitular de la Coordinación Estatal de Transparencia y Gobierno Abierto","2017-02-20","2017-12-31","1 de enero","31 de diciembre"]
[104,"90/132","Ciudad Modelo","Mtro. Jorge David Rosas Armijo","Exdirector General","2017-02-16","2017-12-31","1 de enero","31 de diciembre"]
[105,"90/133","Coordinación General de Comunicación y Agenda Digital","Mtro. Marcelo Eugenio García Almaguer","Excoordinador General","2017-04-28","2017-12-31","1 de enero","31 de diciembre"]
[106,"90/134","Tribunal de Justicia Administrativa del Estado de Puebla","Mgda. María de Lourdes Dib Y Álvarez","Magistrada Presidenta","2017-12-11","2017-12-31","1 de enero","31 de diciembre"]
[107,"90/01","Puebla","Mtro. Luis Banck Serrato","Presidente Municipal Sustituto","2017-01-01","2017-12-31","1 de enero","31 de diciembre"]
[108,"90/01","Organismo Operador del Servicio de Limpia del Municipio de Puebla","Mtro. Víctor Julio Casiano Urrutia","Excoordinador General","2017-01-01","2017-01-31","1 de enero","31 de enero"]
[109,"90/01_2","Organismo Operador del Servicio de Limpia del Municipio de Puebla","Lic. Jesús Mendieta García","Exencargado de Despacho","2017-02-01","2017-03-10","1 de febrero","10 de marzo"]
[110,"90/01_3","Organismo Operador del Servicio de Limpia del Municipio de Puebla","Lic. José de la Rosa López","Excoordinador General","2017-03-11","2017-12-31","11 de marzo","31 de diciembre"]
[111,"90/02","Industrial de Abastos Puebla","Lic. Julio César García Ángeles","Administrador General","2017-01-01","2017-12-31","1 de enero","31 de diciembre"]
[112,"95/02","Instituto Municipal del Deporte de Puebla","Juan Ignacio Basaguren Y García","Director General","2017-01-01","2017-12-31","1 de enero","31 de diciembre"]
[113,"95/04","Instituto Municipal de Arte y Cultura de Puebla","Dra. Anel Nochebuena Escobar","Exdirectora General","2017-01-01","2017-12-31","1 de enero","31 de diciembre"]
[114,"95/05","Instituto Municipal de Planeación","Mtro. José Luis Soberanes Reyes","Excoordinador General","2017-01-01","2017-12-31","1 de enero","31 de diciembre"]
[115,"95/06","Instituto de la Juventud del Municipio de Puebla","Lic. Ricardo Horacio Grau de la Rosa","Exdirector","2017-01-01","2017-12-31","1 de enero","31 de diciembre"]
[116,"901/01","Sistema Operador de los Servicios de Agua Potable y Alcantarillado del Municipio de Puebla","Lic. Gustavo Gaytán Alcaraz","Director General","2017-01-01","2017-12-31","1 de enero","31 de diciembre"]

{"sheet":"M","index":1,"n_rows":222,"n_cols":7,"rows_kept":222,"cut":false,"hidden":true,"merged":[]}
["Historial de Presidentes Municipales 2017"]
["No.","Clave","Sujeto","Titular","Cargo","Fecha de Inicio","Fecha de Conclusión"]
[1,"01/01","Puebla","Mtro. Luis Banck Serrato","Expresidente Municipal Sustituto","2017-01-01","2017-12-31"]
[2,"07/01","San Martín Texmelucan","Mtro. José Rafael Núñez Ramírez","Expresidente Municipal Constitucional","2017-01-01","2017-12-31"]
[3,"07/02","Chiautzingo","José Ramiro López Medina","Expresidente Municipal Constitucional","2017-01-01","2017-12-31"]
[4,"07/03","Huejotzingo","Mtro. Carlos Alberto Morales Álvarez","Expresidente Municipal Constitucional","2017-01-01","2017-12-31"]
[5,"07/04","San Felipe Teotlalcingo","Téc. Moisés Jiménez Fuentes","Expresidente Municipal Constitucional","2017-01-01","2017-12-31"]
[6,"07/05","San Matías Tlalancaleca","Lic. Oscar Anguiano Martínez","Expresidente Municipal Constitucional","2017-01-01","2017-12-31"]
[7,"07/06","San Salvador el Verde","José Gregorio Ojeda Ojeda","Expresidente Municipal Constitucional","2017-01-01","2017-12-31"]
[8,"07/07","Tlahuapan","Joel Díaz Ramírez","Expresidente Municipal Constitucional","2017-01-01","2017-12-31"]
[9,"08/01","San Pedro Cholula","Lic. José Juan Espinosa Torres","Expresidente Municipal Constitucional","2017-01-01","2017-12-31"]
[10,"08/02","Calpan","Leonardo Lázaro Jiménez","Expresidente Municipal Constitucional","2017-01-01","2017-12-31"]
[11,"08/03","Coronango","Lic. Hermelinda Macoto Chapuli","Expresidenta Municipal Constitucional","2017-01-01","2017-12-31"]
[12,"08/04","Cuautlancingo","Lic. José Félix Casiano Tlahque","Expresidente Municipal Constitucional","2017-01-01","2017-12-31"]
[13,"08/05","Domingo Arenas","Alfredo Francisco Meneses Muñoz","Expresidente Municipal Constitucional","2017-01-01","2017-12-31"]
[14,"08/06","Juan C. Bonilla","Dr. Filemón Aguilar Rodríguez","Expresidente Municipal Constitucional","2017-01-01","2017-12-31"]
[15,"08/07","San Gregorio Atzompa","Mtro. Horacio Tlahuel Abrajan","Expresidente Municipal Constitucional","2017-01-01","2017-12-31"]
[16,"08/08","San Jerónimo Tecuanipan","Lic. Porfirio Aguilar Tlaltecatl","Expresidente Municipal Constitucional","2017-01-01","2017-12-31"]
[17,"08/09","San Miguel Xoxtla","Lic. Miguel Ángel Hernández Ramírez","Expresidente Municipal Constitucional","2017-01-01","2017-12-31"]
[18,"08/10","Tlaltenango","Lic. Armando Actual Saldaña","Expresidente Municipal Constitucional","2017-01-01","2017-12-31"]
[19,"09/01","Atlixco","Ing. José Luis Galeazzi Berra","Expresidente Municipal Constitucional","2017-01-01","2017-12-31"]
[20,"09/02","Nealtican","Ing. Domingo Jiménez Luna","Expresidente Municipal Constitucional","2017-01-01","2017-12-31"]
[21,"09/03","Ocoyucan","José Santos Gregorio Tecuatl Mejía","Expresidente Municipal Sustituto","2017-01-01","2017-12-31"]
[22,"90/4","San Andrés Cholula","Leoncio Paisano Arias","Expresidente Municipal Constitucional","2017-01-01","2017-12-31"]
[23,"09/05","San Nicolás de los Ranchos","Trinidad Xoletl Meléndez","Expresidente Municipal Constitucional","2017-01-01","2017-12-31"]
[24,"09/06","Santa Isabel Cholula","Lic. Albino Espinoza Pantle","Expresidente Municipal Constitucional","2017-01-01","2017-12-31"]
[25,"09/07","Tianguismanalco","Artemio García Núñez","Expresidente Municipal Constitucional","2017-01-01","2017-12-31"]
[26,"09/08","Tochimilco","Téc. Albertana Calyeca Amelco","Expresidenta Municipal Constitucional","2017-01-01","2017-12-31"]
[27,"10/01","Izúcar de Matamoros","Lic. Manuel Madero González","Expresidente Municipal Constitucional","2017-01-01","2017-12-31"]
[28,"10/02","Acteopan","Juan Cuellar Bravo","Expresidente Municipal Constitucional","2017-01-01","2017-12-31"]
[29,"10/03","Ahuatlán","Cecilio Lezama Hernández","Expresidente Municipal Constitucional","2017-01-01","2017-12-31"]
[30,"10/04","Atzitzihuacán","Lic. Maricela Ramos Jiménez","Expresidenta Municipal Constitucional","2017-01-01","2017-12-31"]
[31,"10/05","Coatzingo","Andrés Gustavo Álvarez Moreno","Expresidente Municipal Constitucional","2017-01-01","2017-12-31"]
[32,"10/06","Cohuecan","Lic. Misael Aldama Martínez","Expresidente Municipal Constitucional","2017-01-01","2017-12-31"]
[33,"10/07","Epatlán","Arturo Ismael Bravo Santamaría","Expresidente Municipal Constitucional","2017-01-01","2017-12-31"]
[34,"10/08","Huaquechula","Lic. Edwin Mora Caballero","Expresidente Municipal Constitucional","2017-01-01","2017-12-31"]
[35,"10/09","San Diego la Mesa Tochimiltzingo","Braulio García Lezama","Expresidente Municipal Constitucional","2017-01-01","2017-12-31"]
[36,"10/10","San Martín Totoltepec","Domingo Chino Gutiérrez","Expresidente Municipal Constitucional","2017-01-01","2017-12-31"]
[37,"10/11","Teopantlán","Esteban Ramírez Rosales","Expresidente Municipal Constitucional","2017-01-01","2017-12-31"]
[38,"10/12","Tepemaxalco","Inocencio Muñoz Morales","Expresidente Municipal Constitucional","2017-01-01","2017-12-31"]
[39,"10/13","Tepeojuma","Lic. Gustavo Leoncio Sánchez Martiñon","Expresidente Municipal Constitucional","2017-01-01","2017-12-31"]
[40,"10/14","Tepexco","Antolín Vital Martínez","Expresidente Municipal Constitucional","2017-01-01","2017-01-31"]
[41,"10/14_2","Tepexco","Lic. Lorena Margarita Candelario Peña","Expresidenta Municipal Sustituta","2017-02-01","2017-12-31"]
[42,"10/15","Tilapa","Eliseo Morales Rosales","Expresidente Municipal Constitucional","2017-01-01","2017-12-31"]
[43,"10/16","Tlapanalá","Mtro. Gerardo Rosas Cázarez","Expresidente Municipal Constitucional","2017-01-01","2017-12-31"]
[44,"10/17","Xochiltepec","Onésimo Victorino Aquino Castelán","Expresidente Municipal Constitucional","2017-01-01","2017-12-31"]
[45,"11/01","Chiautla","Mtro. Jesús Castro Ramales","Expresidente Municipal Constitucional","2017-01-01","2017-12-31"]
[46,"11/02","Albino Zertuche","Bonifacio Anselmo Juárez De la Rosa","Expresidente Municipal Constitucional","2017-01-01","2017-12-31"]
[47,"11/03","Atzala","Alberto Ramos Morán","Expresidente Municipal Constitucional","2017-01-01","2017-12-31"]
[48,"11/04","Chietla","C.P. Edgardo Ponce Cortés","Expresidente Municipal Constitucional","2017-01-01","2017-12-31"]
[49,"11/05","Chila de la Sal","José Monge Cázares","Expresidente Municipal Constitucional","2017-01-01","2017-12-31"]
[50,"11/06","Cohetzala","Lic. Salvador Aguilar García","Expresidente Municipal Constitucional","2017-01-01","2017-12-31"]
[51,"11/07","Huehuetlán el Chico","Rogelio Pérez Casales","Expresidente Municipal Constitucional","2017-01-01","2017-12-31"]
[52,"11/08","Ixcamilpa de Guerrero","Daniel Hernández Rodríguez","Expresidente Municipal Constitucional","2017-01-01","2017-12-31"]
[53,"11/09","Jolalpan","Lic. Antonio Javana García","Expresidente Municipal Constitucional","2017-01-01","2017-12-31"]
[54,"11/10","Teotlalco","Javier Sánchez Espinoza","Expresidente Municipal Constitucional","2017-01-01","2017-12-31"]
[55,"11/11","Tulcingo","Emilio Delgado De Dios","Expresidente Municipal Constitucional","2017-01-01","2017-12-31"]
[56,"11/12","Xicotlán","Teófilo Eladio Herrera De Gante","Expresidente Municipal Constitucional","2017-01-01","2017-12-31"]
[57,"12/01","Acatlán","Arq. Guillermo Martínez Rodríguez","Expresidente Municipal Constitucional","2017-01-01","2017-12-31"]
[58,"12/02","Ahuehuetitla","Marbella Pilar Tlatelpa Bravo","Expresidenta Municipal Constitucional","2017-01-01","2017-12-31"]
[59,"12/03","Axutla","Guadalupe Martínez Zúñiga","Expresidente Municipal Constitucional","2017-01-01","2017-12-31"]
[60,"12/04","Chila","Lic. Manuel Loyola Tobón","Expresidente Municipal Constitucional","2017-01-01","2017-12-31"]
[61,"12/05","Chinantla","José Luis González Enríquez","Expresidente Municipal Constitucional","2017-01-01","2017-12-31"]
[62,"12/06","Guadalupe","Sandalio Honorio Cariño Martínez","Expresidente Municipal Constitucional","2017-01-01","2017-12-31"]
[63,"12/07","Petlalcingo","Dr. Marco Antonio Rodríguez Orozco","Expresidente Municipal Constitucional","2017-01-01","2017-12-31"]
[64,"12/08","Piaxtla","Lic. Erik Lucero Sánchez","Expresidente Municipal Constitucional","2017-01-01","2017-12-31"]
[65,"12/09","San Jerónimo Xayacatlán","Wilfrido Villanueva Martínez","Expresidente Municipal Constitucional","2017-01-01","2017-12-31"]
[66,"12/10","San Miguel Ixitlán","Lic. Claudio Ortiz Sarabia","Expresidente Municipal Constitucional","2017-01-01","2017-12-31"]
[67,"12/11","San Pablo Anicano","Dr. Amado Reyes Méndez","Expresidente Municipal Constitucional","2017-01-01","2017-12-31"]
[68,"12/12","San Pedro Yeloixtlahuaca","Orozco Oliverio Espinoza Ambrosio","Expresidente Municipal Constitucional","2017-01-01","2017-12-31"]
[69,"12/13","Tecomatlán","Téc. Inés Córdova Aguilar","Expresidenta Municipal Constitucional","2017-01-01","2017-12-31"]
[70,"12/14","Tehuitzingo","Dr. Juan Pablo Rincón Moreno","Expresidente Municipal Constitucional","2017-01-01","2017-12-31"]
[71,"12/15","Totoltepec de Guerrero","Everardo Santos Rodríguez","Expresidente Municipal Constitucional","2017-01-01","2017-12-31"]
[72,"12/16","Xayacatlán de Bravo","Profra. Maribel Ramírez Pablo","Expresidenta Municipal Constitucional","2017-01-01","2017-12-31"]
[73,"13/01","Tepexi de Rodríguez","María del Rocío Canales González","Expresidenta Municipal Constitucional","2017-01-01","2017-12-31"]
[74,"13/02","Atexcal","Francisco Reyes Luna","Expresidente Municipal Constitucional","2017-01-01","2017-12-31"]
[75,"13/03","Atoyatempan","Antonio Méndez Juárez","Expresidente Municipal Constitucional","2017-01-01","2017-12-31"]
[76,"13/04","Coyotepec","Alfredo Rodríguez Ocaña","Expresidente Municipal Constitucional","2017-01-01","2017-12-31"]
[77,"13/05","Cuayuca de Andrade","Graciela Perea Aranda","Expresidenta Municipal Constitucional","2017-01-01","2017-12-31"]
[78,"13/06","Chigmecatitlán","Hilario Rangel Ramírez","Expresidente Municipal Constitucional","2017-01-01","2017-12-31"]
[79,"13/07","Huatlatlauca","Nicolás Tecuautzin Campos","Expresidente Municipal Constitucional","2017-01-01","2017-12-31"]
[80,"13/08","Huehuetlán el Grande","Lázaro Luna Corona","Expresidente Municipal Sustituto","2017-01-01","2017-12-31"]
[81,"13/09","Huitziltepec","Lic. Julián Vázquez Ramírez","Expresidente Municipal Constitucional","2017-01-01","2017-12-31"]
[82,"13/10","Ixcaquixtla","Tomás Romero Reynoso","Expresidente Municipal Constitucional","2017-01-01","2017-12-31"]
[83,"13/11","Juan N. Méndez","Daniel López Cayetano","Expresidente Municipal Constitucional","2017-01-01","2017-12-31"]
[84,"13/12","La Magdalena Tlatlauquitepec","Teódulo Castillo Solís","Expresidente Municipal Constitucional","2017-01-01","2017-12-31"]
[85,"13/13","Molcaxac","David Víctor Flores Ortíz","Expresidente Municipal Constitucional","2017-01-01","2017-12-31"]
[86,"13/14","San Juan Atzompa","Teófilo Javier Hernández","Expresidente Municipal Constitucional","2017-01-01","2017-12-31"]
[87,"13/15","Santa Catarina Tlaltempan","Ignacio Zaragoza Navarro","Expresidente Municipal Constitucional","2017-01-01","2017-12-31"]
[88,"13/16","Santa Inés Ahuatempan","Lic. Rolando Artero Mendoza","Expresidente Municipal Constitucional","2017-01-01","2017-12-31"]
[89,"13/17","Tepeyahualco de Cuauhtémoc","Francisco Palacios Lorenzo","Expresidente Municipal Constitucional","2017-01-01","2017-12-31"]
[90,"13/18","Zacapala","Alfonso Huesca Flores","Expresidente Municipal Constitucional","2017-01-01","2017-12-31"]
[91,"14/01","Tehuacán","Téc. Ernestina Fernández Méndez","Expresidenta Municipal Constitucional","2017-01-01","2017-12-31"]
[92,"14/02","Tepanco de López","Crisóforo Castillo Hernández","Expresidente Municipal Constitucional","2017-01-01","2017-12-31"]
[93,"14/03","Chapulco","José Luis Valeriano Jiménez","Expresidente Municipal Constitucional","2017-01-01","2017-12-31"]
[94,"14/04","Santiago Miahuatlán","Lic. Luis Alberto Flores Rodríguez","Expresidente Municipal Constitucional","2017-01-01","2017-12-31"]
[95,"14/05","Nicolás Bravo","Antonio Ramírez Leynez","Expresidente Municipal Constitucional","2017-01-01","2017-12-31"]
[96,"15/01","Ajalpan","Ing. Gustavo Salomón Lara Torres","Expresidente Municipal Constitucional","2017-01-01","2017-12-31"]
[97,"15/02","Zapotitlán","Isidro Espinosa Fuentes","Expresidente Municipal Constitucional","2017-01-01","2017-12-31"]
[98,"15/03","Caltepec","Téc. Luis Enrique Hernández Juárez","Expresidente Municipal Constitucional","2017-01-01","2017-12-31"]
[99,"15/04","San Gabriel Chilac","Rigoberto David Martínez Rosas","Expresidente Municipal Constitucional","2017-01-01","2017-12-31"]
[100,"15/05","San José Miahuatlán","Juan Hernández González","Expresidente Municipal Constitucional","2017-01-01","2017-12-31"]
[101,"15/06","Altepexi","Lorenzo Reyes Mariano","Expresidente Municipal Constitucional","2017-01-01","2017-12-31"]
[102,"15/07","Zinacatepec","José Luis Lorenzo Moreno","Expresidente Municipal Constitucional","2017-01-01","2017-12-31"]
[103,"15/08","Coxcatlán","Arq. Vicente López De la Vega","Expresidente Municipal Constitucional","2017-01-01","2017-12-31"]
[104,"15/09","San Antonio Cañada","Fausto Espinoza Galicia","Expresidente Municipal Constitucional","2017-01-01","2017-12-31"]
[105,"15/10","Vicente Guerrero","Rafael Ginez Rodríguez","Expresidente Municipal Constitucional","2017-01-01","2017-12-31"]
[106,"15/11","Zoquitlán","Fermín González León","Expresidente Municipal Constitucional","2017-01-01","2017-12-31"]
[107,"15/12","Coyomeapan","Lic. Araceli Celestino Rosas","Expresidenta Municipal Constitucional","2017-01-01","2017-12-31"]
[108,"15/13","San Sebastián Tlacotepec","Lic. Cirilo Trujillo Lezama","Expresidente Municipal Constitucional","2017-01-01","2017-12-31"]
[109,"15/14","Eloxochitlán","Lic. Delfino Hernández Hernández","Expresidente Municipal Constitucional","2017-01-01","2017-12-31"]
[110,"16/01","Tepeaca","Mtro. David Edgardo Huerta Ruíz","Expresidente Municipal Constitucional","2017-01-01","2017-12-31"]
[111,"16/02","Acajete","Antonio Aguilar Reyes","Expresidente Municipal Constitucional","2017-01-01","2017-12-31"]
[112,"16/03","Amozoc","Lic. José Cruz Sánchez Rojas","Expresidente Municipal Constitucional","2017-01-01","2017-12-31"]
[113,"16/04","Cuautinchán","M.V.Z. Amelio Flores Sánchez","Expresidente Municipal Constitucional","2017-01-01","2017-12-31"]
[114,"16/05","Mixtla","Cirilo Munguía Espíndola","Expresidente Municipal Constitucional","2017-01-01","2017-12-31"]
[115,"16/06","Santo Tomás Hueyotlipan","Rodolfo Álvarez López","Expresidente Municipal Constitucional","2017-01-01","2017-12-31"]
[116,"16/07","Tecali de Herrera","Lic. Onésimo Téllez De los Santos","Expresidente Municipal Constitucional","2017-01-01","2017-12-31"]
[117,"16/08","Tepatlaxco de Hidalgo","Ing. Esdras Bonilla Flores","Expresidente Municipal Constitucional","2017-01-01","2017-12-31"]
[118,"16/09","Tzicatlacoyan","Mario Juárez Aguilar","Expresidente Municipal Constitucional","2017-01-01","2017-12-31"]
[119,"17/01","Tecamachalco","Lic. Inés Saturnino López Ponce","Expresidente Municipal Constitucional","2017-01-01","2017-12-31"]
[120,"17/02","Cuapiaxtla de Madero","Pablo Flores Andrade","Expresidente Municipal Constitucional","2017-01-01","2017-12-31"]
[121,"17/03","General Felipe Angeles","Dr. Leonardo Gómez Octaviano","Expresidente Municipal Constitucional","2017-01-01","2017-12-31"]
[122,"17/04","Palmar de Bravo","Lic. Pablo Morales Ugalde","Expresidente Municipal Constitucional","2017-01-01","2017-12-31"]
[123,"17/05","Quecholac","Téc. Néstor Camarillo Medina","Expresidente Municipal Constitucional","2017-01-01","2017-12-31"]
[124,"17/06","Los Reyes de Juárez","Lic. Rafael Ramos Bautista","Expresidente Municipal Constitucional","2017-01-01","2017-12-31"]
[125,"17/07","San Salvador Huixcolotla","Filomeno Cruz Gutiérrez","Expresidente Municipal Constitucional","2017-01-01","2017-12-31"]
[126,"17/08","Tlacotepec de Benito Juárez","Pablo Pérez Maceda","Expresidente Municipal Constitucional","2017-01-01","2017-12-31"]
[127,"17/09","Tlanepantla","José Efraín García García","Expresidente Municipal Constitucional","2017-01-01","2017-12-31"]
[128,"17/10","Tochtepec","Lic. Marcos Pérez Calderón","Expresidente Municipal Constitucional","2017-01-01","2017-12-31"]
[129,"17/11","Xochitlán Todos Santos","Matilde Demetrio Vallejo Juárez","Expresidente Municipal Constitucional","2017-01-01","2017-12-31"]
[130,"17/12","Yehualtepec","Ing. José Luis Tenorio Morales","Expresidente Municipal Constitucional","2017-01-01","2017-12-31"]
[131,"18/01","Acatzingo","Carlos Alejandro Váldez Tenorio","Expresidente Municipal Constitucional","2017-01-01","2017-12-31"]
[132,"18/02","Mazapiltepec de Juárez","Domingo Humberto Galicia Escarcega","Expresidente Municipal Constitucional","2017-01-01","2017-12-31"]
[133,"18/03","Nopalucan","Arq. Rogelio Roque Torres","Expresidente Municipal Constitucional","2017-01-01","2017-12-31"]
[134,"18/04","Rafael Lara Grajales","Víctor Manuel Gasca Arenas","Expresidente Municipal Constitucional","2017-01-01","2017-12-31"]
[135,"18/05","San José Chiapa","Josué Martínez Santos","Expresidente Municipal Constitucional","2017-01-01","2017-12-31"]
[136,"18/06","San Nicolás Buenos Aires","Arturo Ramírez Vázquez","Expresidente Municipal Constitucional","2017-01-01","2017-12-31"]
[137,"18/07","San Salvador el Seco","Ing. José Román Bartolo Pérez","Expresidente Municipal Constitucional","2017-01-01","2017-12-31"]
[138,"18/08","Soltepec","Andrés Galicia López","Expresidente Municipal Constitucional","2017-01-01","2017-12-31"]
[139,"19/01","Chalchicomula de Sesma","Juan Navarro Rodríguez","Expresidente Municipal Constitucional","2017-01-01","2017-12-31"]
[140,"19/02","Aljojuca","José Cecilio Rolando Martínez Serrano","Expresidente Municipal Constitucional","2017-01-01","2017-12-31"]
[141,"19/03","Atzitzintla","José Isaías Velázquez Reyes","Expresidente Municipal Constitucional","2017-01-01","2017-04-11"]
[142,"19/03_2","Atzitzintla","Higinio Cuevas de los Santos","Expresidente Municipal Sustituto","2017-04-12","2017-12-31"]
[143,"19/04","Cañada Morelos","Gaspar Rojas Torres","Expresidente Municipal Constitucional","2017-01-01","2017-12-31"]
[144,"19/05","Chichiquila","Luis Alfonso Hernández Montiel","Expresidente Municipal Constitucional","2017-01-01","2017-12-31"]
[145,"19/06","Chilchotla","Lic. Valentín Medel Hernández","Expresidente Municipal Constitucional","2017-01-01","2017-12-31"]
[146,"19/07","Esperanza","Téc. Eduardo Barojas Huerta","Expresidente Municipal Constitucional","2017-01-01","2017-12-31"]
[147,"19/08","Guadalupe Victoria","Antonio Rodríguez Mendoza","Expresidente Municipal Constitucional","2017-01-01","2017-12-31"]
[148,"19/09","Lafragua","José Eufracio Raúl Montes Hernández","Expresidente Municipal Constitucional","2017-01-01","2017-12-31"]
[149,"19/10","Quimixtlán","Juan Flores Hernández","Expresidente Municipal Constitucional","2017-01-01","2017-12-31"]
[150,"19/11","San Juan Atenco","Francisco Alejandro Mendoza","Expresidente Municipal Constitucional","2017-01-01","2017-12-31"]
[151,"19/12","Tlachichuca","Lic. Uruviel González Vieyra","Expresidente Municipal Constitucional","2017-01-01","2017-12-31"]
[152,"20/01","Tlatlauquitepec","José Ángel Pedro Guerrero Herrera","Expresidente Municipal Constitucional","2017-01-01","2017-12-31"]
[153,"20/02","Atempan","Mario Herrera Oropeza","Expresidente Municipal Constitucional","2017-01-01","2017-12-31"]
[154,"20/03","Hueyapan","Arq. Isaac Reyes Toribio","Expresidente Municipal Constitucional","2017-01-01","2017-12-31"]
[155,"20/04","Libres","Ing. Enrique Cerón Flores","Expresidente Municipal Constitucional","2017-01-01","2017-12-31"]
[156,"20/05","Oriental","Lic. Leopoldo Barrón Salazar","Expresidente Municipal Constitucional","2017-01-01","2017-12-31"]
[157,"20/06","Tepeyahualco","José Eladio Dimas Martínez Salinas","Expresidente Municipal Constitucional","2017-01-01","2017-12-31"]
[158,"20/07","Teteles de Ávila Castillo","Dr. José Pedro López Carcaño","Expresidente Municipal Constitucional","2017-01-01","2017-12-31"]
[159,"20/08","Yaonahuac","Ing. Fortino Salazar Morelos","Expresidente Municipal Constitucional","2017-01-01","2017-12-31"]
[160,"20/09","Zaragoza","Lic. Rigomar Martínez Morales","Expresidente Municipal Constitucional","2017-01-01","2017-12-31"]
[161,"21/01","Teziutlán","Edgar Antonio Vázquez Hernández","Expresidente Municipal Constitucional","2017-01-01","2017-12-31"]
[162,"21/02","Acateno","Téc. Julio César Cabañas Méndez","Expresidente Municipal Constitucional","2017-01-01","2017-12-31"]
[163,"21/03","Ayotoxco de Guerrero","Dr. Miguel Ángel Castillo Pérez","Expresidente Municipal Constitucional","2017-01-01","2017-12-31"]
[164,"21/04","Chignautla","Arturo Córdova Ruiz","Expresidente Municipal Constitucional","2017-01-01","2017-12-31"]
[165,"21/05","Hueytamalco","Ing. Rubén Martínez Castillo","Expresidente Municipal Constitucional","2017-01-01","2017-12-31"]
[166,"21/06","Tenampulco","Antonio Mora Sánchez","Expresidente Municipal Constitucional","2017-01-01","2017-12-31"]
[167,"21/07","Xiutetelco","Lucio Morales Cano","Expresidente Municipal Constitucional","2017-01-01","2017-12-31"]
[168,"22/01","Zacapoaxtla","Guillermo Lobato Toral","Expresidente Municipal Constitucional","2017-01-01","2017-12-31"]
[169,"22/02","Cuetzalan del Progreso","Lic. Oscar Paula Cruz","Expresidente Municipal Constitucional","2017-01-01","2017-12-31"]
[170,"22/03","Cuyoaco","Mtro. José Luis Rechy Tirado","Expresidente Municipal Constitucional","2017-01-01","2017-12-31"]
[171,"22/04","Jonotla","Gilberto Martínez García","Expresidente Municipal Constitucional","2017-01-01","2017-12-31"]
[172,"22/05","Nauzontla","Roque Martín Reyes Cabrera","Expresidente Municipal Constitucional","2017-01-01","2017-12-31"]
[173,"22/06","Ocotepec","Lic. Macaria Hernández Rodríguez","Expresidenta Municipal Constitucional","2017-01-01","2017-12-31"]
[174,"22/07","Tuzamapan de Galeana","Mtro. Antonio Muñoz Rodríguez","Expresidente Municipal Constitucional","2017-01-01","2017-12-31"]
[175,"22/08","Xochitlán de Vicente Suárez","José Antonio Romero Galaviz","Expresidente Municipal Constitucional","2017-01-01","2017-12-31"]
[176,"22/09","Zautla","Enrique Iglesias Contreras","Expresidente Municipal Constitucional","2017-01-01","2017-12-31"]
[177,"22/10","Zoquiapan","Lic. Kenny Hernández González","Expresidente Municipal Constitucional","2017-01-01","2017-12-31"]
[178,"23/01","Tetela de Ocampo","Ricardo Gualterio Aco Farfán","Expresidente Municipal Constitucional","2017-01-01","2017-12-31"]
[179,"23/02","Aquixtla","Lic. Heriberto Castilla Castilla","Expresidente Municipal Constitucional","2017-01-01","2017-12-31"]
[180,"23/03","Cuautempan","Lic. Flor de Coral Rodríguez Cárcamo","Expresidenta Municipal Constitucional","2017-01-01","2017-12-31"]
[181,"23/04","Chignahuapan","Lic. Juan Enrique Rivera Reyes","Expresidente Municipal Constitucional","2017-01-01","2017-12-31"]
[182,"23/05","Huitzilan de Serdán","Lic. Manuel Hernández Pasión","Expresidente Municipal Constitucional","2017-01-01","2017-10-30"]
[183,"23/05_2","Huitzilan de Serdán","Lic. Bartolomé Manzano Hernández","Expresidente Municipal Sustituto","2017-10-31","2017-12-31"]
[184,"23/06","Ixtacamaxtitlan","Ing. Eliazar Hernández Arroyo","Expresidente Municipal Constitucional","2017-01-01","2017-12-31"]
[185,"23/07","Xochiapulco","Lic. Franz Alexander Alejo Sánchez","Expresidente Municipal Constitucional","2017-01-01","2017-12-31"]
[186,"23/08","Zapotitlán de Méndez","Adelaido Vega Mendoza","Expresidente Municipal Constitucional","2017-01-01","2017-12-31"]
[187,"23/09","Zongozotla","Honorio Lima Manzano","Expresidente Municipal Constitucional","2017-01-01","2017-12-31"]
[188,"24/01","Zacatlán","Lic. Marcos Flores Morales","Expresidente Municipal Constitucional","2017-01-01","2017-12-31"]
[189,"24/02","Ahuacatlán","Miguel Sebastián Santos","Expresidente Municipal Constitucional","2017-01-01","2017-12-31"]
[190,"24/03","Amixtlán","Alejandro Javier Becerra Salazar","Expresidente Municipal Constitucional","2017-01-01","2017-12-31"]
[191,"24/04","Camocuautla","Moisés Velázquez Gómez","Expresidente Municipal Constitucional","2017-01-01","2017-12-31"]
[192,"24/05","Caxhuacan","Plutarco Domínguez Aguilar","Expresidente Municipal Constitucional","2017-01-01","2017-12-31"]
[193,"24/06","Coatepec","Reynaldo Miramón Jiménez","Expresidente Municipal Constitucional","2017-01-01","2017-12-31"]
[194,"24/07","Hermenegildo Galeana","José Manuel Rodríguez Cruz","Expresidente Municipal Constitucional","2017-01-01","2017-12-31"]
[195,"24/08","Huehuetla","Mtro. Rubén Vázquez Cabrera","Expresidente Municipal Constitucional","2017-01-01","2017-12-31"]
[196,"24/09","Hueytlalpan","Socorro González Galicia","Expresidente Municipal Constitucional","2017-01-01","2017-12-31"]
[197,"24/10","Atlequizayán","Lic. Bertha Rodríguez Rodríguez","Expresidenta Municipal Constitucional","2017-01-01","2017-12-31"]
[198,"24/11","Ixtepec","Francisco Guzmán Vázquez","Expresidente Municipal Constitucional","2017-01-01","2017-12-31"]
[199,"24/12","Jopala","Arturo Martínez Hernández","Expresidente Municipal Constitucional","2017-01-01","2017-12-31"]
[200,"24/13","Olintla","Ing. Abdi Abihud Ramírez Pérez","Expresidente Municipal Constitucional","2017-01-01","2017-12-31"]
[201,"24/14","San Felipe Tepatlán","Ramón Dávila Santos","Expresidente Municipal Constitucional","2017-01-01","2017-12-31"]
[202,"24/15","Tepango de Rodríguez","Vicente Lucia Morales","Expresidente Municipal Constitucional","2017-01-01","2017-12-31"]
[203,"24/16","Tepetzintla","Lic. Sebero Lozada Barrientos","Expresidente Municipal Constitucional","2017-01-01","2017-12-31"]
[204,"24/17","Tlapacoya","Armando Hernández Herrero","Expresidente Municipal Constitucional","2017-01-01","2017-12-31"]
[205,"25/01","Huauchinango","Mtro. Gabriel Álvarado Lorenzo","Expresidente Municipal Constitucional","2017-01-01","2017-12-31"]
[206,"25/02","Ahuazotepec","Eric Álvarado Bednar","Expresidente Municipal Constitucional","2017-01-01","2017-12-31"]
[207,"25/03","Chiconcuautla","Lic. Claudio Garrido Hernández","Expresidente Municipal Constitucional","2017-01-01","2017-12-31"]
[208,"25/04","Honey","Cirilo López Santos","Expresidente Municipal Constitucional","2017-01-01","2017-12-31"]
[209,"25/05","Juan Galindo","Lic. Luis Gerardo Martínez Gómez","Expresidente Municipal Constitucional","2017-01-01","2017-12-31"]
[210,"25/06","Naupan","Santiago Calva Domínguez","Expresidente Municipal Sustituto","2017-01-01","2017-12-31"]
[211,"25/07","Pahuatlán","Arturo Hernández Santos","Expresidente Municipal Constitucional","2017-01-01","2017-12-31"]
[212,"25/08","Tlaola","Lic. Abdías Castillo Castillo","Expresidente Municipal Constitucional","2017-01-01","2017-12-31"]
[213,"26/01","Xicotepec","Juan Carlos Valderrabano Vázquez","Expresidente Municipal Constitucional","2017-01-01","2017-12-31"]
[214,"26/02","Francisco Z. Mena","Lic. Víctor Vargas García","Expresidente Municipal Constitucional","2017-01-01","2017-12-31"]
[215,"26/03","Jalpan","Humberto Olarte Romero","Expresidente Municipal Constitucional","2017-01-01","2017-12-31"]
[216,"26/04","Pantepec","Braulio Tienda Gallegos","Expresidente Municipal Constitucional","2017-01-01","2017-12-31"]
[217,"26/05","Tlacuilotepec","Alejandro Josué Guzmán García","Expresidente Municipal Constitucional","2017-01-01","2017-12-31"]
[218,"26/06","Tlaxco","Lauro César Franco López","Expresidente Municipal Constitucional","2017-01-01","2017-12-31"]
[219,"26/07","Venustiano Carranza","Lic. Rafael Valencia Ávila","Expresidente Municipal Constitucional","2017-01-01","2017-12-31"]
[220,"26/08","Zihuateutla","Téc. Dolores Campos Pelcastre","Expresidente Municipal Constitucional","2017-01-01","2017-12-31"]

{"sheet":"1","index":2,"n_rows":47,"n_cols":28,"rows_kept":47,"cut":false,"hidden":true,"merged":[[46,0,48,6]]}
[null,1,2,3,4,5,6,7,8,9,10,11,12,13,14,15,16,17,18,19,20,21,22,23,24,25,26,27]
[1,"Por",{"$f":"DOLLAR(#REF!)","v":{"$error":"#REF!"}},"corresponde a la diferencia que resulto al comparar el rubro Resultados del Ejercicio (Ahorro/Desahorro) según Estado de Situación Financiera al 31 de diciembre de 2021 contra el mismo rubro según Estado de Actividades del 1 de enero al 31 de diciembre de 2021. (Anexo )"]
[2,"Por",{"$f":"DOLLAR(#REF!)","v":{"$error":"#REF!"}},"corresponde a la diferencia que resulto al comparar el rubro Resultados del Ejercicio (Ahorro/Desahorro) según Estado de Actividades del 1 de enero al 31 de diciembre de 2021 contra el mismo rubro según Estado de Variación en la Hacienda Pública del 1 de enero al 31 de diciembre de 2021. (Anexo )"]
[3,"Por",{"$f":"DOLLAR(#REF!)","v":{"$error":"#REF!"}},"corresponde a la diferencia que resulto al comparar ",{"$f":"IF(A35=1,\"el importe del rubro de \",\"la suma de los rubros de \")","v":{"$error":"#REF!"}},{"$f":"IF(#REF!<>0,\"Impuestos, \",\"\")","v":{"$error":"#REF!"}},{"$f":"IF(#REF!<>0,\"Cuotas y Aportaciones de Seguridad Social, \",\"\")","v":{"$error":"#REF!"}},{"$f":"IF(#REF!<>0,\"Contribuciones de Mejoras, \",\"\")","v":{"$error":"#REF!"}},{"$f":"IF(#REF!<>0,\"Derechos, \",\"\")","v":{"$error":"#REF!"}},{"$f":"IF(#REF!<>0,\"Productos, \",\"\")","v":{"$error":"#REF!"}},{"$f":"IF(#REF!<>0,\"Aprovechamientos, \",\"\")","v":{"$error":"#REF!"}},{"$f":"IF(#REF!<>0,\"Ingresos por Venta de Bienes, Prestación de Servicios y Otros Ingresos, \",\"\")","v":{"$error":"#REF!"}},{"$f":"IF(#REF!<>0,\"Participaciones, Aportaciones, Convenios, Incentivos Derivados de la Colaboración Fiscal y Fondos Distintos de Aportaciones, \",\"\")","v":{"$error":"#REF!"}},{"$f":"IF(#REF!<>0,\"Transferencias, Asignaciones, Subsidios y Subvenciones, y Pensiones y Jubilaciones, \",\"\")","v":{"$error":"#REF!"}},{"$f":"IF(#REF!<>0,\"Ingresos Derivados de Financiamientos, \",\"\")","v":{"$error":"#REF!"}},"según Estado de Actividades del 1 de enero al 31 de diciembre de 2021 contra ",{"$f":"IF(A35=1,\"el mismo rubro según \",\"los mismos rubros según \")","v":{"$error":"#REF!"}},"Estado Analítico de Ingresos del 1 de enero al 31 de diciembre de 2021. (Anexo )"]
[4,"Por",{"$f":"DOLLAR(#REF!)","v":{"$error":"#REF!"}},"corresponde a la diferencia que resulto al comparar ",{"$f":"IF(B45=1,\"el importe del rubro de \",\"la suma de los rubros de \")","v":{"$error":"#REF!"}},{"$f":"IF(#REF!<>0,\"Servicios Personales, \",\"\")","v":{"$error":"#REF!"}},{"$f":"IF(#REF!<>0,\"Materiales y Suministros, \",\"\")","v":{"$error":"#REF!"}},{"$f":"IF(#REF!<>0,\"Servicios Generales, \",\"\")","v":{"$error":"#REF!"}},{"$f":"IF(#REF!<>0,\"Transferencias Internas y Otras Asignaciones al Sector Público, \",\"\")","v":{"$error":"#REF!"}},{"$f":"IF(#REF!<>0,\"Transferencias al Resto del Sector Público, \",\"\")","v":{"$error":"#REF!"}},{"$f":"IF(#REF!<>0,\"Subsidios y Subvenciones, \",\"\")","v":{"$error":"#REF!"}},{"$f":"IF(#REF!<>0,\"Ayudas Sociales, \",\"\")","v":{"$error":"#REF!"}},{"$f":"IF(#REF!<>0,\"Pensiones y Jubilaciones, \",\"\")","v":{"$error":"#REF!"}},{"$f":"IF(#REF!<>0,\"Transferencias a Fideicomisos, Mandatos y Otros Análogos, \",\"\")","v":{"$error":"#REF!"}},{"$f":"IF(#REF!<>0,\"Transferencias a la Seguridad Social, \",\"\")","v":{"$error":"#REF!"}},{"$f":"IF(#REF!<>0,\"Donativos, \",\"\")","v":{"$error":"#REF!"}},{"$f":"IF(#REF!<>0,\"Transferencias al Exterior, \",\"\")","v":{"$error":"#REF!"}},{"$f":"IF(#REF!<>0,\"Participaciones, \",\"\")","v":{"$error":"#REF!"}},{"$f":"IF(#REF!<>0,\"Aportaciones, \",\"\")","v":{"$error":"#REF!"}},{"$f":"IF(#REF!<>0,\"Convenios, \",\"\")","v":{"$error":"#REF!"}},{"$f":"IF(#REF!<>0,\"Intereses de la Deuda Pública, \",\"\")","v":{"$error":"#REF!"}},{"$f":"IF(#REF!<>0,\"Comisones de la Deuda Pública, \",\"\")","v":{"$error":"#REF!"}},{"$f":"IF(#REF!<>0,\"Gastos de la Deuda Pública, \",\"\")","v":{"$error":"#REF!"}},{"$f":"IF(#REF!<>0,\"Costos por Coberturas, \",\"\")","v":{"$error":"#REF!"}},{"$f":"IF(#REF!<>0,\"Apoyos Financieros, \",\"\")","v":{"$error":"#REF!"}},"según Estado de Actividades del 1 de enero al 31 de diciembre de 2021 contra ",{"$f":"IF(B45=1,\"el mismo rubro según \",\"los mismos rubros según \")","v":{"$error":"#REF!"}},"Estado Analítico del Ejercicio del Presupuesto de Egresos Clasificación por Objeto del Gasto (Capítulo y Concepto) del 1 de enero al 31 de diciembre de 2021. (Anexo )"]
[5,"Por",{"$f":"DOLLAR(#REF!)","v":{"$error":"#REF!"}},"corresponde a la diferencia que resulto al comparar ",{"$f":"IF(C40=1,\"el importe del rubro de \",\"la suma de los rubros de \")","v":{"$error":"#REF!"}},{"$f":"IF(#REF!<>0,\"Servicios Personales, \",\"\")","v":{"$error":"#REF!"}},{"$f":"IF(#REF!<>0,\"Materiales y Suministros, \",\"\")","v":{"$error":"#REF!"}},{"$f":"IF(#REF!<>0,\"Servicios Generales, \",\"\")","v":{"$error":"#REF!"}},{"$f":"IF(#REF!<>0,\"Transferencias Internas y Otras Asignaciones al Sector Público, \",\"\")","v":{"$error":"#REF!"}},{"$f":"IF(#REF!<>0,\"Transferencias al Resto del Sector Público, \",\"\")","v":{"$error":"#REF!"}},{"$f":"IF(#REF!<>0,\"Subsidios y Subvenciones, \",\"\")","v":{"$error":"#REF!"}},{"$f":"IF(#REF!<>0,\"Ayudas Sociales, \",\"\")","v":{"$error":"#REF!"}},{"$f":"IF(#REF!<>0,\"Pensiones y Jubilaciones, \",\"\")","v":{"$error":"#REF!"}},{"$f":"IF(#REF!<>0,\"Transferencias a Fideicomisos, Mandatos y Otros Análogos, \",\"\")","v":{"$error":"#REF!"}},{"$f":"IF(#REF!<>0,\"Transferencias a la Seguridad Social, \",\"\")","v":{"$error":"#REF!"}},{"$f":"IF(#REF!<>0,\"Donativos, \",\"\")","v":{"$error":"#REF!"}},{"$f":"IF(#REF!<>0,\"Transferencias al Exterior, \",\"\")","v":{"$error":"#REF!"}},{"$f":"IF(#REF!<>0,\"Participaciones, \",\"\")","v":{"$error":"#REF!"}},{"$f":"IF(#REF!<>0,\"Aportaciones, \",\"\")","v":{"$error":"#REF!"}},{"$f":"IF(#REF!<>0,\"Convenios, \",\"\")","v":{"$error":"#REF!"}},"según Estado de Flujos de Efectivo del 1 de enero al 31 de diciembre de 2021 contra ",{"$f":"IF(C40=1,\"el mismo rubro según \",\"los mismos rubros según \")","v":{"$error":"#REF!"}},"Estado Analítico del Ejercicio del Presupuesto de Egresos Clasificación por Objeto del Gasto (Capítulo y Concepto) del 1 de enero al 31 de diciembre de 2021. (Anexo )"]
[6,"Por",{"$f":"DOLLAR(#REF!)","v":{"$error":"#REF!"}},"corresponde a la diferencia que resulto al comparar el rubro Total del Pasivo y Hacienda Pública/Patrimonio según Estado de Situación Financiera al 31 de diciembre de 2021 contra el Total del Activo de la columna Saldo Final según Estado Analítico del Activo del 1 de enero al 31 de diciembre de 2021. (Anexo )"]
[7,"Por",{"$f":"DOLLAR(#REF!)","v":{"$error":"#REF!"}},"corresponde a la diferencia que resulto al comparar el rubro Hacienda Pública/Patrimonio Contribuido según Estado de Situación Financiera al 31 de diciembre de 2021 contra el rubro Hacienda Pública/Patrimonio Contribuido Neto de 2019 de la columna Total según Estado de Variación en la Hacienda Pública del 1 de enero al 31 de diciembre de 2021. (Anexo )"]
[8,"Por",{"$f":"DOLLAR(#REF!)","v":{"$error":"#REF!"}},"corresponde a la diferencia que resulto al comparar ",{"$f":"IF(D35=1,\"el importe del rubro de \",\"la suma de los rubros de \")","v":{"$error":"#REF!"}},{"$f":"IF(#REF!<>0,\"Impuestos, \",\"\")","v":{"$error":"#REF!"}},{"$f":"IF(#REF!<>0,\"Cuotas y Aportaciones de Seguridad Social, \",\"\")","v":{"$error":"#REF!"}},{"$f":"IF(#REF!<>0,\"Contribuciones de Mejoras, \",\"\")","v":{"$error":"#REF!"}},{"$f":"IF(#REF!<>0,\"Derechos, \",\"\")","v":{"$error":"#REF!"}},{"$f":"IF(#REF!<>0,\"Productos, \",\"\")","v":{"$error":"#REF!"}},{"$f":"IF(#REF!<>0,\"Aprovechamientos, \",\"\")","v":{"$error":"#REF!"}},{"$f":"IF(#REF!<>0,\"Ingresos por Venta de Bienes, Prestación de Servicios y Otros Ingresos, \",\"\")","v":{"$error":"#REF!"}},{"$f":"IF(#REF!<>0,\"Participaciones, Aportaciones, Convenios, Incentivos Derivados de la Colaboración Fiscal y Fondos Distintos de Aportaciones, \",\"\")","v":{"$error":"#REF!"}},{"$f":"IF(#REF!<>0,\"Transferencias, Asignaciones, Subsidios y Subvenciones, y Pensiones y Jubilaciones, \",\"\")","v":{"$error":"#REF!"}},{"$f":"IF(#REF!<>0,\"Ingresos Derivados de Financiamientos, \",\"\")","v":{"$error":"#REF!"}},"según Estado de Flujos de Efectivo del 1 de enero al 31 de diciembre de 2021 contra ",{"$f":"IF(D35=1,\"el mismo rubro según \",\"los mismos rubros según \")","v":{"$error":"#REF!"}},"Estado Analítico de Ingresos del 1 de enero al 31 de diciembre de 2021. (Anexo )"]
[9,"Por",{"$f":"DOLLAR(#REF!)","v":{"$error":"#REF!"}},"corresponde a la diferencia que resulto al comparar los rubros Total Activo Circulante contra Total del Pasivo y Hacienda Pública/Patrimonio según Estado de Situación Financiera del 1 de enero al 31 de diciembre de 2021. (Anexo )"]
[10,"Por",{"$f":"DOLLAR(#REF!)","v":{"$error":"#REF!"}},"corresponde a la diferencia que resulto al comparar el Saldo Inicial del Periodo del Total de Otros Pasivos según Estado Analítico de la Deuda y Otros Pasivos al 31 de diciembre de 2021 contra el Total del Pasivo de 2020 según Estado de Situación Financiera al 31 de diciembre de 2021. (Anexo )","Por",{"$f":"DOLLAR(#REF!)","v":{"$error":"#REF!"}},"corresponde a la diferencia que resulto al comparar el Saldo Final del Periodo del Total de Otros Pasivos según Estado Analítico de la Deuda y Otros Pasivos al 31 de diciembre de 2021 contra el Total del Pasivo de 2021 según Estado de Situación Financiera al 31 de diciembre de 2021. (Anexo )"]
[11,"Por",{"$f":"DOLLAR(#REF!)","v":{"$error":"#REF!"}},"corresponde a la diferencia que resulto al comparar el rubro Efectivo y Equivalentes al Efectivo al Inicio del Ejercicio según Estado de Flujos de Efectivo del 1 de enero al 31 de diciembre de 2021 contra el rubro Efectivo y Equivalentes de 2020 según Estado de Situación Financiera al 31 de diciembre de 2021. (Anexo )","Por",{"$f":"DOLLAR(#REF!)","v":{"$error":"#REF!"}},"corresponde a la diferencia que resulto al comparar el rubro Efectivo y Equivalentes al Efectivo al Final del Ejercicio según Estado de Flujos de Efectivo del 1 de enero al 31 de diciembre de 2021 contra el rubro Efectivo y Equivalentes de 2021 según Estado de Situación Financiera al 31 de diciembre de 2021. (Anexo )"]
[12,"Por",{"$f":"DOLLAR(SUM(#REF!))","v":{"$error":"#REF!"}},"corresponde a la diferencia que resulto al comparar ",{"$f":"IF(E29=1,\"el importe del rubro de \",\"la suma de los rubros de \")","v":{"$error":"#REF!"}},{"$f":"IF(#REF!<>0,\"Estimado, \",\"\")","v":{"$error":"#REF!"}},{"$f":"IF(#REF!<>0,\"Ampliaciones y Reducciones, \",\"\")","v":{"$error":"#REF!"}},{"$f":"IF(#REF!<>0,\"Devengado, \",\"\")","v":{"$error":"#REF!"}},{"$f":"IF(#REF!<>0,\"Recaudado, \",\"\")","v":{"$error":"#REF!"}},"según Estado Analítico de Ingresos del 1 de enero al 31 de diciembre de 2021. (Anexo )"]
[13,"Por",{"$f":"DOLLAR(SUM(#REF!))","v":{"$error":"#REF!"}},"corresponde a la diferencia que resulto al comparar el rubro Total Activo Circulante de 2021 según Estado de Situación Financiera al 31 de diciembre de 2021 contra la columna Saldo Final del Total del Activo según Estado Analítico del Activo del 1 de enero al 31 de diciembre de 2021. (Anexo )"]
[14,"Por",{"$f":"DOLLAR(#REF!)","v":{"$error":"#REF!"}},"corresponde a la diferencia que resulto al comparar el rubro Efectivo y Equivalentes de la columna Variación del Periodo según Estado Analítico del Activo del 1 de enero al 31 de diciembre de 2021 contra el rubro Incremento/Disminución Neta en el Efectivo y Equivalentes al Efectivo del 2021 según Estado de Flujos de Efectivo del 1 de enero al 31 de diciembre de 2021. (Anexo )"]
[15,"Por",{"$f":"DOLLAR(#REF!)","v":{"$error":"#REF!"}},"corresponde a la diferencia que resulto al comparar el rubro Bienes Muebles de la columna Cargos del Periodo según Estado Analítico del Activo del 1 de enero al 31 de diciembre de 2021 contra ",{"$f":"IF(F32=1,\"el importe del rubro de \",\"la suma de los rubros de \")","v":{"$error":"#REF!"}},{"$f":"IF(#REF!<>0,\"Mobiliario y Equipo de Administración, \",\"\")","v":{"$error":"#REF!"}},{"$f":"IF(#REF!<>0,\"Mobiliario y Equipo Educacional y Recreativo, \",\"\")","v":{"$error":"#REF!"}},{"$f":"IF(#REF!<>0,\"Equipo e Instrumental Medico y de Laboratorio, \",\"\")","v":{"$error":"#REF!"}},{"$f":"IF(#REF!<>0,\"Vehículos y Equipo de Transporte, \",\"\")","v":{"$error":"#REF!"}},{"$f":"IF(#REF!<>0,\"Equipo de Defensa y Seguridad, \",\"\")","v":{"$error":"#REF!"}},{"$f":"IF(#REF!<>0,\"Maquinaria, Otros Equipos y Herramientas, \",\"\")","v":{"$error":"#REF!"}},{"$f":"IF(#REF!<>0,\"Activos Biológicos, \",\"\")","v":{"$error":"#REF!"}},"de la columna Devengado según Estado Analítico del Ejercicio del Presupuesto de Egresos Clasificación por Objeto del Gasto (Capítulo y Concepto) del 1 de enero al 31 de diciembre de 2021. (Anexo )"]
[null,"Por",{"$f":"DOLLAR(#REF!)","v":{"$error":"#REF!"}},"corresponde a la diferencia que resulto al comparar el rubro Bienes Inmuebles, Infraestructura y Construcciones en Proceso de la columna Cargos del Periodo según Estado Analítico del Activo del 1 de enero al 31 de diciembre de 2021 contra el rubro Bienes Inmuebles de la columna Devengado según Estado Analítico del Ejercicio del Presupuesto de Egresos Clasificación por Objeto del Gasto (Capítulo y Concepto) del 1 de enero al 31 de diciembre de 2021. (Anexo )"]
[null,"Por",{"$f":"DOLLAR(#REF!)","v":{"$error":"#REF!"}},"corresponde a la diferencia que resulto al comparar el rubro Activos Intangibles de la columna Cargos del Periodo según Estado Analítico del Activo del 1 de enero al 31 de diciembre de 2021 contra el mismo rubro según Estado Analítico del Ejercicio del Presupuesto de Egresos Clasificación por Objeto del Gasto (Capítulo y Concepto) del 1 de enero al 31 de diciembre de 2021. (Anexo )"]
[16,"Por",{"$f":"DOLLAR(#REF!)","v":{"$error":"#REF!"}},"corresponde a la diferencia que resulto al comparar el rubro Hacienda Pública/Patrimonio Contribuido de 2021 según Estado de Situación Financiera del 1 de enero al 31 de diciembre de 2021 contra el rubro Hacienda Pública/Patrimonio Neto Final de 2021 según Estado de Variación en la Hacienda Pública del 1 de enero al 31 de diciembre de 2021. (Anexo )","Por",{"$f":"DOLLAR(#REF!)","v":{"$error":"#REF!"}},"corresponde a la diferencia que resulto al comparar el rubro Hacienda Pública/Patrimonio Contribuido 2020 según Estado de Situación Financiera del 1 de enero al 31 de diciembre de 2021 contra el rubro Hacienda Pública/Patrimonio Neto del Ejericio 2020 según Estado de Variación en la Hacienda Pública del 1 de enero al 31 de diciembre de 2021. (Anexo )"]
[17,"Por",{"$f":"DOLLAR(#REF!)","v":{"$error":"#REF!"}},"corresponde a la diferencia que resulto al comparar ",{"$f":"IF(G41=1,\"el importe del rubro de \",\"la suma de los rubros de \")","v":{"$error":"#REF!"}},{"$f":"IF(#REF!<>0,\"Efectivo y Equivalentes, \",\"\")","v":{"$error":"#REF!"}},{"$f":"IF(#REF!<>0,\"Derechos a Recibir Efectivo o Equivalentes, \",\"\")","v":{"$error":"#REF!"}},{"$f":"IF(#REF!<>0,\"Derechos a Recibir Bienes o Servicios, \",\"\")","v":{"$error":"#REF!"}},{"$f":"IF(#REF!<>0,\"Inventarios, \",\"\")","v":{"$error":"#REF!"}},{"$f":"IF(#REF!<>0,\"Almacenes, \",\"\")","v":{"$error":"#REF!"}},{"$f":"IF(#REF!>0,\"Estimación por Pérdida o Derecho de Activos Circulantes, \",\"\")","v":{"$error":"#REF!"}},{"$f":"IF(#REF!<>0,\"Otros Activos Circulantes, \",\"\")","v":{"$error":"#REF!"}},{"$f":"IF(#REF!<>0,\"Inversiones Financieras a Largo Plazo, \",\"\")","v":{"$error":"#REF!"}},{"$f":"IF(#REF!<>0,\"Derechos a Recibir Efectivo o Equivalentes a Largo Plazo, \",\"\")","v":{"$error":"#REF!"}},{"$f":"IF(#REF!<>0,\"Bienes Inmuebles, Infraestructura y Construcciones en Proceso, \",\"\")","v":{"$error":"#REF!"}},{"$f":"IF(#REF!>0,\"Bienes Muebles, \",\"\")","v":{"$error":"#REF!"}},{"$f":"IF(#REF!<>0,\"Activos Intangibles, \",\"\")","v":{"$error":"#REF!"}},{"$f":"IF(#REF!<>0,\"Depreciación, Deterioro y Armortización Acumulada de Bienes, \",\"\")","v":{"$error":"#REF!"}},{"$f":"IF(#REF!<>0,\"Activos Diferidos, \",\"\")","v":{"$error":"#REF!"}},{"$f":"IF(#REF!<>0,\"Estimación por Pérdida o Deterioro de Activos no Circulantes, \",\"\")","v":{"$error":"#REF!"}},{"$f":"IF(#REF!<>0,\"Otros Activos no Circulantes, \",\"\")","v":{"$error":"#REF!"}},"según Estado de Situación Financiera al 31 de diciembre de 2021 contra ",{"$f":"IF(G41=1,\"el mismo rubro según \",\"los mismos rubros según \")","v":{"$error":"#REF!"}},"Estado Analítico del Activo del 1 de enero al 31 de diciembre de 2021. (Anexo )"]
[18,"Por",{"$f":"DOLLAR(#REF!)","v":{"$error":"#REF!"}},"corresponde a la diferencia que resulto al comparar ",{"$f":"IF(H41=1,\"el importe del rubro de \",\"la suma de los rubros de \")","v":{"$error":"#REF!"}},{"$f":"IF(#REF!<>0,\"Efectivo y Equivalentes, \",\"\")","v":{"$error":"#REF!"}},{"$f":"IF(#REF!<>0,\"Derechos a Recibir Efectivo o Equivalentes, \",\"\")","v":{"$error":"#REF!"}},{"$f":"IF(#REF!<>0,\"Derechos a Recibir Bienes o Servicios, \",\"\")","v":{"$error":"#REF!"}},{"$f":"IF(#REF!<>0,\"Inventarios, \",\"\")","v":{"$error":"#REF!"}},{"$f":"IF(#REF!<>0,\"Almacenes, \",\"\")","v":{"$error":"#REF!"}},{"$f":"IF(#REF!>0,\"Estimación por Pérdida o Derecho de Activos Circulantes, \",\"\")","v":{"$error":"#REF!"}},{"$f":"IF(#REF!<>0,\"Otros Activos Circulantes, \",\"\")","v":{"$error":"#REF!"}},{"$f":"IF(#REF!<>0,\"Inversiones Financieras a Largo Plazo, \",\"\")","v":{"$error":"#REF!"}},{"$f":"IF(#REF!<>0,\"Derechos a Recibir Efectivo o Equivalentes a Largo Plazo, \",\"\")","v":{"$error":"#REF!"}},{"$f":"IF(#REF!<>0,\"Bienes Inmuebles, Infraestructura y Construcciones en Proceso, \",\"\")","v":{"$error":"#REF!"}},{"$f":"IF(#REF!>0,\"Bienes Muebles, \",\"\")","v":{"$error":"#REF!"}},{"$f":"IF(#REF!<>0,\"Activos Intangibles, \",\"\")","v":{"$error":"#REF!"}},{"$f":"IF(#REF!<>0,\"Depreciación, Deterioro y Armortización Acumulada de Bienes, \",\"\")","v":{"$error":"#REF!"}},{"$f":"IF(#REF!<>0,\"Activos Diferidos, \",\"\")","v":{"$error":"#REF!"}},{"$f":"IF(#REF!<>0,\"Estimación por Pérdida o Deterioro de Activos no Circulantes, \",\"\")","v":{"$error":"#REF!"}},{"$f":"IF(#REF!<>0,\"Otros Activos no Circulantes, \",\"\")","v":{"$error":"#REF!"}},"según Estado Analítico del Activo del 1 de enero al 31 de diciembre de 2021 contra ",{"$f":"IF(H41=1,\"el mismo rubro según \",\"los mismos rubros según \")","v":{"$error":"#REF!"}},"Estado de Cambios en la Situación Financiera del 1 de enero al 31 de diciembre de 2021. (Anexo )"]
[19,"Por",{"$f":"DOLLAR(#REF!)","v":{"$error":"#REF!"}},"corresponde a la diferencia que resulto al comparar el rubro Bienes Muebles de 2021 según Estado de Flujos de Efectivo del 1 de enero al 31 de diciembre de 2021 contra ",{"$f":"IF(I32=1,\"el importe del rubro de \",\"la suma de los rubros de \")","v":{"$error":"#REF!"}},{"$f":"IF(#REF!<>0,\"Mobiliario y Equipo de Administración, \",\"\")","v":{"$error":"#REF!"}},{"$f":"IF(#REF!<>0,\"Mobiliario y Equipo Educacional y Recreativo, \",\"\")","v":{"$error":"#REF!"}},{"$f":"IF(#REF!<>0,\"Equipo e Instrumental Medico y de Laboratorio, \",\"\")","v":{"$error":"#REF!"}},{"$f":"IF(#REF!<>0,\"Vehículos y Equipo de Transporte, \",\"\")","v":{"$error":"#REF!"}},{"$f":"IF(#REF!<>0,\"Equipo de Defensa y Seguridad, \",\"\")","v":{"$error":"#REF!"}},{"$f":"IF(#REF!<>0,\"Maquinaria, Otros Equipos y Herramientas, \",\"\")","v":{"$error":"#REF!"}},{"$f":"IF(#REF!<>0,\"Activos Biológicos, \",\"\")","v":{"$error":"#REF!"}},"de la columna Devengado según Estado Analítico del Ejercicio del Presupuesto de Egresos Clasificación por Objeto del Gasto (Capítulo y Concepto) del 1 de enero al 31 de diciembre de 2021. (Anexo )"]
[]
[3,4,5,8,12,15,17,18,15,null,"FUNDAMENTO"]
[{"$f":"IF(#REF!<>0,1,\"\")","v":{"$error":"#REF!"}},{"$f":"IF(#REF!<>0,1,\"\")","v":{"$error":"#REF!"}},{"$f":"IF(#REF!<>0,1,\"\")","v":{"$error":"#REF!"}},{"$f":"IF(#REF!<>0,1,\"\")","v":{"$error":"#REF!"}},{"$f":"IF(#REF!<>0,1,\"\")","v":{"$error":"#REF!"}},{"$f":"IF(#REF!<>0,1,\"\")","v":{"$error":"#REF!"}},{"$f":"IF(#REF!<>0,1,\"\")","v":{"$error":"#REF!"}},{"$f":"IF(#REF!<>0,1,\"\")","v":{"$error":"#REF!"}},{"$f":"IF(#REF!<>0,1,\"\")","v":{"$error":"#REF!"}},null,"Por lo anterior incumplió con Capítulo VII de los Estados e Informes Contables, Presupuestarios, Programáticos y de los Indicadores de Postura Fiscal del Manual de Contabilidad Gubernamental; artículos 16, 17, 18,19, 33, 42 y 43 de la Ley General de Contabilidad Gubernamental; 33 fracción XXXVI y 54 fracciones IV incisos a) y b) y V de la Ley de Rendición de Cuentas y Fiscalización Superior del Estado de Puebla."]
[{"$f":"IF(#REF!<>0,1,\"\")","v":{"$error":"#REF!"}},{"$f":"IF(#REF!<>0,1,\"\")","v":{"$error":"#REF!"}},{"$f":"IF(#REF!<>0,1,\"\")","v":{"$error":"#REF!"}},{"$f":"IF(#REF!<>0,1,\"\")","v":{"$error":"#REF!"}},{"$f":"IF(#REF!<>0,1,\"\")","v":{"$error":"#REF!"}},{"$f":"IF(#REF!<>0,1,\"\")","v":{"$error":"#REF!"}},{"$f":"IF(#REF!<>0,1,\"\")","v":{"$error":"#REF!"}},{"$f":"IF(#REF!<>0,1,\"\")","v":{"$error":"#REF!"}},{"$f":"IF(#REF!<>0,1,\"\")","v":{"$error":"#REF!"}}]
[{"$f":"IF(#REF!<>0,1,\"\")","v":{"$error":"#REF!"}},{"$f":"IF(#REF!<>0,1,\"\")","v":{"$error":"#REF!"}},{"$f":"IF(#REF!<>0,1,\"\")","v":{"$error":"#REF!"}},{"$f":"IF(#REF!<>0,1,\"\")","v":{"$error":"#REF!"}},{"$f":"IF(#REF!<>0,1,\"\")","v":{"$error":"#REF!"}},{"$f":"IF(#REF!<>0,1,\"\")","v":{"$error":"#REF!"}},{"$f":"IF(#REF!<>0,1,\"\")","v":{"$error":"#REF!"}},{"$f":"IF(#REF!<>0,1,\"\")","v":{"$error":"#REF!"}},{"$f":"IF(#REF!<>0,1,\"\")","v":{"$error":"#REF!"}}]
[{"$f":"IF(#REF!<>0,1,\"\")","v":{"$error":"#REF!"}},{"$f":"IF(#REF!<>0,1,\"\")","v":{"$error":"#REF!"}},{"$f":"IF(#REF!<>0,1,\"\")","v":{"$error":"#REF!"}},{"$f":"IF(#REF!<>0,1,\"\")","v":{"$error":"#REF!"}},{"$f":"IF(#REF!<>0,1,\"\")","v":{"$error":"#REF!"}},{"$f":"IF(#REF!<>0,1,\"\")","v":{"$error":"#REF!"}},{"$f":"IF(#REF!<>0,1,\"\")","v":{"$error":"#REF!"}},{"$f":"IF(#REF!<>0,1,\"\")","v":{"$error":"#REF!"}},{"$f":"IF(#REF!<>0,1,\"\")","v":{"$error":"#REF!"}}]
[{"$f":"IF(#REF!<>0,1,\"\")","v":{"$error":"#REF!"}},{"$f":"IF(#REF!<>0,1,\"\")","v":{"$error":"#REF!"}},{"$f":"IF(#REF!<>0,1,\"\")","v":{"$error":"#REF!"}},{"$f":"IF(#REF!<>0,1,\"\")","v":{"$error":"#REF!"}},{"$f":"SUM(E25:E28)","v":{"$error":"#REF!"}},{"$f":"IF(#REF!<>0,1,\"\")","v":{"$error":"#REF!"}},{"$f":"IF(#REF!<>0,1,\"\")","v":{"$error":"#REF!"}},{"$f":"IF(#REF!<>0,1,\"\")","v":{"$error":"#REF!"}},{"$f":"IF(#REF!<>0,1,\"\")","v":{"$error":"#REF!"}}]
[{"$f":"IF(#REF!<>0,1,\"\")","v":{"$error":"#REF!"}},{"$f":"IF(#REF!<>0,1,\"\")","v":{"$error":"#REF!"}},{"$f":"IF(#REF!<>0,1,\"\")","v":{"$error":"#REF!"}},{"$f":"IF(#REF!<>0,1,\"\")","v":{"$error":"#REF!"}},null,{"$f":"IF(#REF!<>0,1,\"\")","v":{"$error":"#REF!"}},{"$f":"IF(#REF!<>0,1,\"\")","v":{"$error":"#REF!"}},{"$f":"IF(#REF!<>0,1,\"\")","v":{"$error":"#REF!"}},{"$f":"IF(#REF!<>0,1,\"\")","v":{"$error":"#REF!"}}]
[{"$f":"IF(#REF!<>0,1,\"\")","v":{"$error":"#REF!"}},{"$f":"IF(#REF!<>0,1,\"\")","v":{"$error":"#REF!"}},{"$f":"IF(#REF!<>0,1,\"\")","v":{"$error":"#REF!"}},{"$f":"IF(#REF!<>0,1,\"\")","v":{"$error":"#REF!"}},null,{"$f":"IF(#REF!<>0,1,\"\")","v":{"$error":"#REF!"}},{"$f":"IF(#REF!<>0,1,\"\")","v":{"$error":"#REF!"}},{"$f":"IF(#REF!<>0,1,\"\")","v":{"$error":"#REF!"}},{"$f":"IF(#REF!<>0,1,\"\")","v":{"$error":"#REF!"}}]
[{"$f":"IF(#REF!<>0,1,\"\")","v":{"$error":"#REF!"}},{"$f":"IF(#REF!<>0,1,\"\")","v":{"$error":"#REF!"}},{"$f":"IF(#REF!<>0,1,\"\")","v":{"$error":"#REF!"}},{"$f":"IF(#REF!<>0,1,\"\")","v":{"$error":"#REF!"}},null,{"$f":"SUM(F25:F31)","v":{"$error":"#REF!"}},{"$f":"IF(#REF!<>0,1,\"\")","v":{"$error":"#REF!"}},{"$f":"IF(#REF!<>0,1,\"\")","v":{"$error":"#REF!"}},{"$f":"SUM(I25:I31)","v":{"$error":"#REF!"}}]
[{"$f":"IF(#REF!<>0,1,\"\")","v":{"$error":"#REF!"}},{"$f":"IF(#REF!<>0,1,\"\")","v":{"$error":"#REF!"}},{"$f":"IF(#REF!<>0,1,\"\")","v":{"$error":"#REF!"}},{"$f":"IF(#REF!<>0,1,\"\")","v":{"$error":"#REF!"}},null,null,{"$f":"IF(#REF!<>0,1,\"\")","v":{"$error":"#REF!"}},{"$f":"IF(#REF!<>0,1,\"\")","v":{"$error":"#REF!"}}]
[{"$f":"IF(#REF!<>0,1,\"\")","v":{"$error":"#REF!"}},{"$f":"IF(#REF!<>0,1,\"\")","v":{"$error":"#REF!"}},{"$f":"IF(#REF!<>0,1,\"\")","v":{"$error":"#REF!"}},{"$f":"IF(#REF!<>0,1,\"\")","v":{"$error":"#REF!"}},null,null,{"$f":"IF(#REF!<>0,1,\"\")","v":{"$error":"#REF!"}},{"$f":"IF(#REF!<>0,1,\"\")","v":{"$error":"#REF!"}}]
[{"$f":"SUM(A25:A34)","v":{"$error":"#REF!"}},{"$f":"IF(#REF!<>0,1,\"\")","v":{"$error":"#REF!"}},{"$f":"IF(#REF!<>0,1,\"\")","v":{"$error":"#REF!"}},{"$f":"SUM(D25:D34)","v":{"$error":"#REF!"}},null,null,{"$f":"IF(#REF!<>0,1,\"\")","v":{"$error":"#REF!"}},{"$f":"IF(#REF!<>0,1,\"\")","v":{"$error":"#REF!"}}]
[null,{"$f":"IF(#REF!<>0,1,\"\")","v":{"$error":"#REF!"}},{"$f":"IF(#REF!<>0,1,\"\")","v":{"$error":"#REF!"}},null,null,null,{"$f":"IF(#REF!<>0,1,\"\")","v":{"$error":"#REF!"}},{"$f":"IF(#REF!<>0,1,\"\")","v":{"$error":"#REF!"}}]
[null,{"$f":"IF(#REF!<>0,1,\"\")","v":{"$error":"#REF!"}},{"$f":"IF(#REF!<>0,1,\"\")","v":{"$error":"#REF!"}},null,null,null,{"$f":"IF(#REF!<>0,1,\"\")","v":{"$error":"#REF!"}},{"$f":"IF(#REF!<>0,1,\"\")","v":{"$error":"#REF!"}}]
[null,{"$f":"IF(#REF!<>0,1,\"\")","v":{"$error":"#REF!"}},{"$f":"IF(#REF!<>0,1,\"\")","v":{"$error":"#REF!"}},null,null,null,{"$f":"IF(#REF!<>0,1,\"\")","v":{"$error":"#REF!"}},{"$f":"IF(#REF!<>0,1,\"\")","v":{"$error":"#REF!"}}]
[null,{"$f":"IF(#REF!<>0,1,\"\")","v":{"$error":"#REF!"}},{"$f":"IF(#REF!<>0,1,\"\")","v":{"$error":"#REF!"}},null,null,null,{"$f":"IF(#REF!<>0,1,\"\")","v":{"$error":"#REF!"}},{"$f":"IF(#REF!<>0,1,\"\")","v":{"$error":"#REF!"}}]
[null,{"$f":"IF(#REF!<>0,1,\"\")","v":{"$error":"#REF!"}},{"$f":"SUM(C25:C39)","v":{"$error":"#REF!"}},null,null,null,{"$f":"IF(#REF!<>0,1,\"\")","v":{"$error":"#REF!"}},{"$f":"IF(#REF!<>0,1,\"\")","v":{"$error":"#REF!"}}]
[null,{"$f":"IF(#REF!<>0,1,\"\")","v":{"$error":"#REF!"}},null,null,null,null,{"$f":"SUM(G25:G40)","v":{"$error":"#REF!"}},{"$f":"SUM(H25:H40)","v":{"$error":"#REF!"}}]
[null,{"$f":"IF(#REF!<>0,1,\"\")","v":{"$error":"#REF!"}}]
[null,{"$f":"IF(#REF!<>0,1,\"\")","v":{"$error":"#REF!"}}]
[null,{"$f":"IF(#REF!<>0,1,\"\")","v":{"$error":"#REF!"}}]
[null,{"$f":"SUM(B25:B44)","v":{"$error":"#REF!"}}]
[]
["Capítulo VII de los Estados e Informes Contables, Presupuestarios, Programáticos y de los Indicadores de Postura Fiscal del Manual de Contabilidad Gubernamental; artículos 16, 17, 18,19, 33, 42 y 43 de la Ley General de Contabilidad Gubernamental; 33 fracción XXXVI y 54 fracción IV incisos a) y b) y fracción V de la Ley de Rendición de Cuentas y Fiscalización Superior del Estado de Puebla."]

{"sheet":"2018","index":3,"n_rows":334,"n_cols":2,"rows_kept":334,"cut":false,"hidden":true,"merged":[]}
["Clave","Nombre"]
[1602,"Acajete"]
[2102,"Acateno"]
[1201,"Acatlán"]
[1801,"Acatzingo"]
[1002,"Acteopan"]
[2402,"Ahuacatlán"]
[1003,"Ahuatlán"]
[2502,"Ahuazotepec"]
[1202,"Ahuehuetitla"]
[1501,"Ajalpan"]
[1102,"Albino Zertuche"]
[1902,"Aljojuca"]
[1506,"Altepexi"]
[2403,"Amixtlán"]
[1603,"Amozoc"]
[2302,"Aquixtla"]
[2002,"Atempan"]
[1302,"Atexcal"]
[2410,"Atlequizayán"]
[901,"Atlixco"]
[1303,"Atoyatempan"]
[1103,"Atzala"]
[1004,"Atzitzihuacán"]
[1903,"Atzitzintla"]
[1203,"Axutla"]
[2103,"Ayotoxco de Guerrero"]
[802,"Calpan"]
[1503,"Caltepec"]
[2404,"Camocuautla"]
[1904,"Cañada Morelos"]
[2405,"Caxhuacan"]
[1901,"Chalchicomula de Sesma"]
[1403,"Chapulco"]
[1101,"Chiautla"]
[702,"Chiautzingo"]
[1905,"Chichiquila"]
[2503,"Chiconcuautla"]
[1104,"Chietla"]
[1306,"Chigmecatitlán"]
[2304,"Chignahuapan"]
[2104,"Chignautla"]
[1204,"Chila"]
[1105,"Chila de la Sal"]
[1906,"Chilchotla"]
[1205,"Chinantla"]
[2406,"Coatepec"]
[1005,"Coatzingo"]
[1106,"Cohetzala"]
[1006,"Cohuecan"]
[803,"Coronango"]
[1508,"Coxcatlán"]
[1512,"Coyomeapan"]
[1304,"Coyotepec"]
[1702,"Cuapiaxtla de Madero"]
[2303,"Cuautempan"]
[1604,"Cuautinchán"]
[804,"Cuautlancingo"]
[1305,"Cuayuca de Andrade"]
[2202,"Cuetzalan del Progreso"]
[2203,"Cuyoaco"]
[805,"Domingo Arenas"]
[1514,"Eloxochitlán"]
[1007,"Epatlán"]
[1907,"Esperanza"]
[2602,"Francisco Z. Mena"]
[1703,"General Felipe Angeles"]
[1206,"Guadalupe"]
[1908,"Guadalupe Victoria"]
[2407,"Hermenegildo Galeana"]
[2504,"Honey"]
[1008,"Huaquechula"]
[1307,"Huatlatlauca"]
[2501,"Huauchinango"]
[2408,"Huehuetla"]
[1107,"Huehuetlán el Chico"]
[1308,"Huehuetlán el Grande"]
[703,"Huejotzingo"]
[2003,"Hueyapan"]
[2105,"Hueytamalco"]
[2409,"Hueytlalpan"]
[2305,"Huitzilan de Serdán"]
[1309,"Huitziltepec"]
[1108,"Ixcamilpa de Guerrero"]
[1310,"Ixcaquixtla"]
[2306,"Ixtacamaxtitlan"]
[2411,"Ixtepec"]
[1001,"Izúcar de Matamoros"]
[2603,"Jalpan"]
[1109,"Jolalpan"]
[2204,"Jonotla"]
[2412,"Jopala"]
[806,"Juan C. Bonilla"]
[2505,"Juan Galindo"]
[1311,"Juan N. Méndez"]
[1312,"La Magdalena Tlatlauquitepec"]
[1909,"Lafragua"]
[2004,"Libres"]
[1706,"Los Reyes de Juárez"]
[1802,"Mazapiltepec de Juárez"]
[1605,"Mixtla"]
[1313,"Molcaxac"]
[2506,"Naupan"]
[2205,"Nauzontla"]
[902,"Nealtican"]
[1405,"Nicolás Bravo"]
[1803,"Nopalucan"]
[2206,"Ocotepec"]
[903,"Ocoyucan"]
[2413,"Olintla"]
[2005,"Oriental"]
[2507,"Pahuatlán"]
[1704,"Palmar de Bravo"]
[2604,"Pantepec"]
[1207,"Petlalcingo"]
[1208,"Piaxtla"]
[101,"Puebla"]
[1705,"Quecholac"]
[1910,"Quimixtlán"]
[1804,"Rafael Lara Grajales"]
[904,"San Andrés Cholula"]
[1509,"San Antonio Cañada"]
[1009,"San Diego la Mesa Tochimiltzingo"]
[704,"San Felipe Teotlalcingo"]
[2414,"San Felipe Tepatlán"]
[1504,"San Gabriel Chilac"]
[807,"San Gregorio Atzompa"]
[808,"San Jerónimo Tecuanipan"]
[1209,"San Jerónimo Xayacatlán"]
[1805,"San José Chiapa"]
[1505,"San José Miahuatlán"]
[1911,"San Juan Atenco"]
[1314,"San Juan Atzompa"]
[701,"San Martín Texmelucan"]
[1010,"San Martín Totoltepec"]
[705,"San Matías Tlalancaleca"]
[1210,"San Miguel Ixitlán"]
[809,"San Miguel Xoxtla"]
[1806,"San Nicolás Buenos Aires"]
[905,"San Nicolás de los Ranchos"]
[1211,"San Pablo Anicano"]
[801,"San Pedro Cholula"]
[1212,"San Pedro Yeloixtlahuaca"]
[1807,"San Salvador el Seco"]
[706,"San Salvador el Verde"]
[1707,"San Salvador Huixcolotla"]
[1513,"San Sebastián Tlacotepec"]
[1315,"Santa Catarina Tlaltempan"]
[1316,"Santa Inés Ahuatempan"]
[906,"Santa Isabel Cholula"]
[1404,"Santiago Miahuatlán"]
[1606,"Santo Tomás Hueyotlipan"]
[1808,"Soltepec"]
[1607,"Tecali de Herrera"]
[1701,"Tecamachalco"]
[1213,"Tecomatlán"]
[1401,"Tehuacán"]
[1214,"Tehuitzingo"]
[2106,"Tenampulco"]
[1011,"Teopantlán"]
[1110,"Teotlalco"]
[1402,"Tepanco de López"]
[2415,"Tepango de Rodríguez"]
[1608,"Tepatlaxco de Hidalgo"]
[1601,"Tepeaca"]
[1012,"Tepemaxalco"]
[1013,"Tepeojuma"]
[2416,"Tepetzintla"]
[1014,"Tepexco"]
[1301,"Tepexi de Rodríguez"]
[2006,"Tepeyahualco"]
[1317,"Tepeyahualco de Cuauhtémoc"]
[2301,"Tetela de Ocampo"]
[2007,"Teteles de Ávila Castillo"]
[2101,"Teziutlán"]
[907,"Tianguismanalco"]
[1015,"Tilapa"]
[1912,"Tlachichuca"]
[1708,"Tlacotepec de Benito Juárez"]
[2605,"Tlacuilotepec"]
[707,"Tlahuapan"]
[810,"Tlaltenango"]
[1709,"Tlanepantla"]
[2508,"Tlaola"]
[2417,"Tlapacoya"]
[1016,"Tlapanalá"]
[2001,"Tlatlauquitepec"]
[2606,"Tlaxco"]
[908,"Tochimilco"]
[1710,"Tochtepec"]
[1215,"Totoltepec de Guerrero"]
[1111,"Tulcingo"]
[2207,"Tuzamapan de Galeana"]
[1609,"Tzicatlacoyan"]
[2607,"Venustiano Carranza"]
[1510,"Vicente Guerrero"]
[1216,"Xayacatlán de Bravo"]
[2601,"Xicotepec"]
[1112,"Xicotlán"]
[2107,"Xiutetelco"]
[2307,"Xochiapulco"]
[1017,"Xochiltepec"]
[2208,"Xochitlán de Vicente Suárez"]
[1711,"Xochitlán Todos Santos"]
[2008,"Yaonahuac"]
[1712,"Yehualtepec"]
[1318,"Zacapala"]
[2201,"Zacapoaxtla"]
[2401,"Zacatlán"]
[1502,"Zapotitlán"]
[2308,"Zapotitlán de Méndez"]
[2009,"Zaragoza"]
[2209,"Zautla"]
[2608,"Zihuateutla"]
[1507,"Zinacatepec"]
[2309,"Zongozotla"]
[2210,"Zoquiapan"]
[1511,"Zoquitlán"]
[90101,"Sistema Operador de los Servicios de Agua Potable y Alcantarillado del Municipio de Puebla"]
[90701,"Sistema Operador de los Servicios de Agua Potable y Alcantarillado del Municipio de San Martín Texmelucan"]
[90703,"Sistema Operador de los Servicios de Agua Potable y Alcantarillado del Municipio de Huejotzingo"]
[90801,"Sistema Operador de los Servicios de Agua Potable y Alcantarillado del Municipio de San Pedro Cholula"]
[90804,"Sistema Operador de los Servicios de Agua Potable y Alcantarillado del Municipio de Cuautlancingo, Puebla"]
[90901,"Sistema Operador de los Servicios de Agua Potable y Alcantarillado del Municipio de Atlixco"]
[91001,"Sistema Operador de los Servicios de Agua Potable y Alcantarillado del Municipio de Izúcar de Matamoros"]
[91201,"Sistema Operador de los Servicios de Agua Potable y Alcantarillado del Municipio de Acatlán"]
[91310,"Sistema Operador de los Servicios de Agua Potable y Alcantarillado del Municipio de Ixcaquixtla, Puebla"]
[91401,"Organismo Operador de los Servicios de Agua Potable y Alcantarillado del Municipio de Tehuacán, Puebla"]
[91601,"Sistema Operador de los Servicios de Agua Potable y Alcantarillado del Municipio de Tepeaca"]
[91701,"Sistema Operador de los Servicios de Agua Potable y Alcantarillado del Municipio de Tecamachalco, Puebla"]
[91707,"Sistema Operador Municipal de los Servicios de Agua Potable y Alcantarillado de San Salvador Huixcolotla, Puebla"]
[91801,"Sistema Operador de los Servicios de Agua Potable y Alcantarillado del Municipio de Acatzingo de Hidalgo, Puebla"]
[91901,"Sistema Operador de los Servicios de Agua Potable y Alcantarillado del Municipio de Chalchicomula de Sesma"]
[91908,"Sistema Operador de los Servicios de Agua Potable y Alcantarillado del Municipio de Guadalupe Victoria, Puebla"]
[91912,"Sistema Operador de los Servicios de Agua Potable y Alcantarillado del Municipio de Tlachichuca"]
[92001,"Sistema Operador de los Servicios de Agua Potable y Alcantarillado del Municipio de Tlatlauquitepec"]
[92004,"Sistema Operador de los Servicios de Agua Potable y Alcantarillado del Municipio de Libres"]
[92101,"Sistema Operador de los Servicios de Agua Potable y Alcantarillado del Municipio de Teziutlán, Puebla"]
[92201,"Sistema Operador de Agua Potable y Alcantarillado del Municipio de Zacapoaxtla"]
[92304,"Sistema Operador de los Servicios de Agua Potable y Alcantarillado del Municipio de Chignahuapan"]
[92401,"Sistema Operador de los Servicios de Agua Potable y Alcantarillado del Municipio de Zacatlán"]
[92501,"Empresa de Servicios de Agua Potable y Alcantarillado de Huauchinango, Puebla"]
[92601,"Sistema Operador de los Servicios de Agua Potable y Alcantarillado del Municipio de Xicotepec de Juárez, Pue."]
["90/03","El Colegio de Puebla, A.C."]
["90/07","Colegio de Bachilleres del Estado de Puebla"]
["90/08","Instituto Poblano del Deporte"]
["90/10","Sistema para el Desarrollo Integral de la Familia del Estado de Puebla"]
["90/12","Instituto de Seguridad y Servicios Sociales de los Trabajadores al Servicio de los Poderes del Estado de Puebla"]
["90/14","Instituto de Administración Pública del Estado de Puebla, A.C."]
["90/15","Instituto de Capacitación para el Trabajo del Estado de Puebla"]
["90/20","Instituto Tecnológico Superior de Acatlán de Osorio"]
["90/22","Instituto Tecnológico Superior de Atlixco"]
["90/24","Instituto Tecnológico Superior de la Sierra Norte del Estado de Puebla"]
[9025,"Instituto Tecnológico Superior de Tepexi de Rodríguez"]
[9027,"Instituto Tecnológico Superior de Teziutlán"]
[9029,"Universidad Tecnológica de Puebla"]
[9030,"Comisión Estatal de Agua y Saneamiento de Puebla"]
[9032,"Comisión de Derechos Humanos del Estado de Puebla"]
[9036,"Colegio de Estudios Científicos y Tecnológicos del Estado de Puebla"]
[9037,"Instituto Tecnológico Superior de Zacapoaxtla"]
[9040,"Comité Administrador Poblano para la Construcción de Espacios Educativos"]
[9042,"Universidad Tecnológica de Huejotzingo"]
[9043,"Universidad Tecnológica de Izúcar de Matamoros"]
[9044,"Universidad Tecnológica de Tecamachalco"]
[9045,"Sistema Estatal de Telecomunicaciones"]
[9046,"Colegio de Educación Profesional Técnica del Estado de Puebla"]
[9047,"Instituto Estatal de Educación para Adultos"]
[9048,"Instituto Tecnológico Superior de Ciudad Serdán"]
[9049,"Benemérita Universidad Autónoma de Puebla"]
[9054,"Tribunal Electoral del Estado"]
[9056,"Fondo para el Fortalecimiento de la Microempresa"]
[9059,"Instituto Tecnológico Superior de Huauchinango"]
[9060,"Instituto Tecnológico Superior de Libres"]
[9061,"Instituto Tecnológico Superior de Tepeaca"]
[9062,"Instituto Electoral del Estado"]
[9063,"Carreteras de Cuota Puebla"]
[9064,"Instituto Poblano de la Juventud"]
[9076,"Universidad Tecnológica de Xicotepec de Juárez"]
[9077,"Fideicomiso Público para la Administración de Inmuebles y Ejecución de Obras Públicas en la Reserva Territorial Atlixcáyotl-Quetzalcóatl"]
[9082,"Corporación Auxiliar de Policía de Protección Ciudadana"]
[9086,"Fideicomiso del Programa de Becas Nacionales para la Educación Superior Manutención"]
[9087,"Universidad Politécnica de Puebla"]
[9088,"Instituto Tecnológico Superior de San Martín Texmelucan"]
[9090,"Fideicomiso Público PEC"]
[9092,"Consejo de Ciencia y Tecnología del Estado de Puebla"]
[9094,"Consejo Estatal de Coordinación del Sistema Nacional de Seguridad Pública"]
[9099,"Universidad Intercultural del Estado de Puebla"]
[90104,"Universidad Tecnológica de Oriental"]
[90105,"Universidad Interserrana del Estado de Puebla-Ahuacatlán"]
[90106,"Universidad Politécnica de Amozoc"]
[90107,"Instituto Tecnológico Superior de Venustiano Carranza"]
[90108,"Universidad Interserrana del Estado de Puebla - Chilchotla"]
[90109,"Instituto Tecnológico Superior de la Sierra Negra de Ajalpan"]
[90110,"Universidad Tecnológica de Tehuacán"]
[90113,"Instituto Poblano de Asistencia al Migrante"]
[90116,"Fideicomiso Público denominado \"Banco Estatal de Tierra\""]
[90118,"Universidad Politécnica Metropolitana de Puebla"]
[90121,"Convenciones y Parques"]
[90123,"Instituto de Educación Digital del Estado de Puebla"]
[90125,"Fideicomiso Público denominado “Comisión Estatal de Vivienda de Puebla”"]
[90126,"Instituto Tecnológico Superior de Tlatlauquitepec"]
[90127,"Fiscalía General del Estado de Puebla"]
[90128,"Universidad Tecnológica Bilingüe Internacional y Sustentable de Puebla"]
[90129,"Instituto de Transparencia, Acceso a la Información Pública y Protección de Datos Personales del Estado de Puebla"]
[90130,"Museos Puebla"]
[90132,"Ciudad Modelo"]
[90133,"Coordinación General de Comunicación y Agenda Digital"]
[90134,"Tribunal de Justicia Administrativa del Estado de Puebla"]
[90135,"Instituto de Profesionalización del Magisterio Poblano"]
[90137,"Secretaría Ejecutiva del Sistema Estatal Anticorrupción"]
[90138,"Centro de Conciliación Laboral del Estado de Puebla"]
[90139,"Agencia de Energía del Estado de Puebla"]
[90140,"Instituto Poblano de los Pueblos Indígenas"]
[90141,"Universidad de la Salud"]
[90142,"Fideicomiso Público Revocable Denominado “Fondo de Apoyo al Programa Estatal de Tecnologías Educativas de la Información para el Magisterio Poblano”"]
[90143,"Instituto de la Discapacidad del Estado de Puebla"]
[90144,"Comisión Ejecutiva Estatal de Atención a Víctimas"]
["90/01","Organismo Operador del Servicio de Limpia del Municipio de Puebla"]
["90/02","Industrial de Abastos Puebla"]
["90/34","Organismo Operador del Servicio de Limpia de Tehuacán"]
["95/02","Instituto Municipal del Deporte de Puebla"]
["95/03","Rastro Regional Zacatlán-Chignahuapan"]
["95/04","Instituto Municipal de Arte y Cultura de Puebla"]
["95/05","Instituto Municipal de Planeación"]
["95/06","Instituto de la Juventud del Municipio de Puebla"]
["70/01","H. Congreso del Estado de Puebla"]
["70/02","Poder Judicial del Estado de Puebla"]
["70/03","Auditoría Superior del Estado de Puebla"]
["80/09","Secretaría de Salud (Servicios de Salud del Estado de Puebla)"]
["80/10","Secretaría de Educación"]
["80/11","Secretaría de Cultura"]
["80/22","Secretaría de Infraestructura"]
["80/30","Secretaría de Planeación y Finanzas"]
["80/31","Secretaría de Igualdad Sustantiva"]

{"sheet":"ESF","index":4,"n_rows":53,"n_cols":81,"rows_kept":53,"cut":false,"hidden":false,"merged":[[0,0,0,84],[1,0,1,84],[2,3,2,5],[5,0,5,31],[5,32,5,36],[5,37,5,41],[5,43,5,74],[5,75,5,79],[5,80,5,84],[52,75,52,79],[52,80,52,84],[43,75,43,79],[43,80,43,84],[42,75,42,79],[42,80,42,84],[44,75,44,79],[44,80,44,84],[39,75,39,79],[39,80,39,84],[48,75,48,79],[48,80,48,84],[50,75,50,79],[50,80,50,84],[41,75,41,79],[41,80,41,84],[46,75,46,79],[46,80,46,84],[47,75,47,79],[47,80,47,84],[10,75,10,79],[10,80,10,84],[11,32,11,36],[11,37,11,41],[11,75,11,79],[11,80,11,84],[9,32,9,36],[9,37,9,41],[9,75,9,79],[9,80,9,84],[10,32,10,36],[10,37,10,41],[14,32,14,36],[14,37,14,41],[14,75,14,79],[14,80,14,84],[15,32,15,36],[15,37,15,41],[15,75,15,79],[15,80,15,84],[12,32,12,36],[12,37,12,41],[12,75,12,79],[12,80,12,84],[13,32,13,36],[13,37,13,41],[13,75,13,79],[13,80,13,84],[18,75,18,79],[18,80,18,84],[18,32,18,36],[18,37,18,41],[21,32,21,36],[21,37,21,41],[21,75,21,79],[21,80,21,84],[16,75,16,79],[16,80,16,84],[24,32,24,36],[24,37,24,41],[24,75,24,79],[24,80,24,84],[25,32,25,36],[25,37,25,41],[25,75,25,79],[25,80,25,84],[22,32,22,36],[22,37,22,41],[22,75,22,79],[22,80,22,84],[23,32,23,36],[23,37,23,41],[23,75,23,79],[23,80,23,84],[28,75,28,79],[28,80,28,84],[31,32,31,36],[31,37,31,41],[28,32,28,36],[28,37,28,41],[29,32,29,36],[29,37,29,41],[26,32,26,36],[26,37,26,41],[26,75,26,79],[26,80,26,84],[27,32,27,36],[27,37,27,41],[34,75,34,79],[34,80,34,84],[36,75,36,79],[36,80,36,84],[40,75,40,79],[40,80,40,84],[33,32,33,36],[33,37,33,41],[30,75,30,79],[30,80,30,84],[35,75,35,79],[35,80,35,84],[37,75,37,79],[37,80,37,84]]}
["Estado de Situación Financiera"]
["1 enero al 31 de diciembre de 2022"]
["CLAVE:",null,null,2415,null,null,null,null,null,null,null,null,null,null,null,null,null,null,null,null,null,null,null,null,null,null,null,null,null,null,null,null,null,null,null,null,null,null,null,null,null,null,"(Pesos)"]
["ENTE PÚBLICO:",null,null,null,null,null,{"$f":"VLOOKUP($D$3,'2018'!A2:B334,2,FALSE)","v":"Tepango de Rodríguez"}]
[]
["CONCEPTO",null,null,null,null,null,null,null,null,null,null,null,null,null,null,null,null,null,null,null,null,null,null,null,null,null,null,null,null,null,null,null,2022,null,null,null,null,2021,null,null,null,null,null,"CONCEPTO",null,null,null,null,null,null,null,null,null,null,null,null,null,null,null,null,null,null,null,null,null,null,null,null,null,null,null,null,null,null,null,2022,null,null,null,null,2021]
["ACTIVO",null,null,null,null,null,null,null,null,null,null,null,null,null,null,null,null,null,null,null,null,null,null,null,null,null,null,null,null,null,null,null,null,null,null,null,null,null,null,null,null,null,null,"PASIVO"]
[]
[null,"Activo Circulante",null,null,null,null,null,null,null,null,null,null,null,null,null,null,null,null,null,null,null,null,null,null,null,null,null,null,null,null,null,null,null,null,null,null,null,null,null,null,null,null,null,null,"Pasivo Circulante"]
[null,null,"Efectivo y Equivalentes",null,null,null,null,null,null,null,null,null,null,null,null,null,null,null,null,null,null,null,null,null,null,null,null,null,null,null,null,null,null,null,null,null,null,null,null,null,null,null,null,null,null,"Cuentas por Pagar a Corto Plazo"]
[null,null,"Derechos a Recibir Efectivo o Equivalentes",null,null,null,null,null,null,null,null,null,null,null,null,null,null,null,null,null,null,null,null,null,null,null,null,null,null,null,null,null,null,null,null,null,null,15000,null,null,null,null,null,null,null,"Documentos por Pagar a Corto Plazo"]
[null,null,"Derechos a Recibir Bienes o Servicios",null,null,null,null,null,null,null,null,null,null,null,null,null,null,null,null,null,null,null,null,null,null,null,null,null,null,null,null,null,10000,null,null,null,null,null,null,null,null,null,null,null,null,"Porción a Corto Plazo de la Deuda Pública a Largo Plazo",null,null,null,null,null,null,null,null,null,null,null,null,null,null,null,null,null,null,null,null,null,null,null,null,null,null,null,null,null,null,null,null,null,null,45000]
[null,null,"Inventarios",null,null,null,null,null,null,null,null,null,null,null,null,null,null,null,null,null,null,null,null,null,null,null,null,null,null,null,null,null,null,null,null,null,null,null,null,null,null,null,null,null,null,"Títulos y Valores a Corto Plazo",null,null,null,null,null,null,null,null,null,null,null,null,null,null,null,null,null,null,null,null,null,null,null,null,null,null,null,null,null,15000]
[null,null,"Almacenes",null,null,null,null,null,null,null,null,null,null,null,null,null,null,null,null,null,null,null,null,null,null,null,null,null,null,null,null,null,null,null,null,null,null,null,null,null,null,null,null,null,null,"Pasivos Diferidos a Corto Plazo"]
[null,null,"Estimación por Pérdidas o Deterioro de Activos Circulantes",null,null,null,null,null,null,null,null,null,null,null,null,null,null,null,null,null,null,null,null,null,null,null,null,null,null,null,null,null,null,null,null,null,null,null,null,null,null,null,null,null,null,"Fondos y Bienes de Terceros en Garantía y/o Administración a Corto Plazo"]
[null,null,"Otros Activos Circulantes",null,null,null,null,null,null,null,null,null,null,null,null,null,null,null,null,null,null,null,null,null,null,null,null,null,null,null,null,null,null,null,null,null,null,null,null,null,null,null,null,null,null,"Provisiones a Corto Plazo"]
[null,null,null,null,null,null,null,null,null,null,null,null,null,null,null,null,null,null,null,null,null,null,null,null,null,null,null,null,null,null,null,null,null,null,null,null,null,null,null,null,null,null,null,null,null,"Otros Pasivos a Corto Plazo"]
[]
[null,"Total de Activos Circulantes",null,null,null,null,null,null,null,null,null,null,null,null,null,null,null,null,null,null,null,null,null,null,null,null,null,null,null,null,null,null,{"$f":"SUM(AG10:AK17)","v":10000},null,null,null,null,{"$f":"SUM(AL10:AP17)","v":15000},null,null,null,null,null,null,"Total de Pasivos Circulantes",null,null,null,null,null,null,null,null,null,null,null,null,null,null,null,null,null,null,null,null,null,null,null,null,null,null,null,null,null,null,{"$f":"SUM(BX10:CB17)","v":15000},null,null,null,null,{"$f":"SUM(CC10:CG17)","v":45000}]
[]
[null,"Activo No Circulante",null,null,null,null,null,null,null,null,null,null,null,null,null,null,null,null,null,null,null,null,null,null,null,null,null,null,null,null,null,null,null,null,null,null,null,null,null,null,null,null,null,null,"Pasivo No Circulante"]
[null,null,"Inversiones Financieras a Largo Plazo",null,null,null,null,null,null,null,null,null,null,null,null,null,null,null,null,null,null,null,null,null,null,null,null,null,null,null,null,null,null,null,null,null,null,null,null,null,null,null,null,null,null,"Cuentas por Pagar a Largo Plazo"]
[null,null,"Derechos a Recibir Efectivo o Equivalentes a Largo Plazo",null,null,null,null,null,null,null,null,null,null,null,null,null,null,null,null,null,null,null,null,null,null,null,null,null,null,null,null,null,null,null,null,null,null,10000,null,null,null,null,null,null,null,"Documentos por Pagar a Largo Plazo"]
[null,null,"Bienes Inmuebles, Infraestructura y Construcciones en Proceso",null,null,null,null,null,null,null,null,null,null,null,null,null,null,null,null,null,null,null,null,null,null,null,null,null,null,null,null,null,150000,null,null,null,null,null,null,null,null,null,null,null,null,"Deuda Pública a Largo Plazo"]
[null,null,"Bienes Muebles",null,null,null,null,null,null,null,null,null,null,null,null,null,null,null,null,null,null,null,null,null,null,null,null,null,null,null,null,null,null,null,null,null,null,null,null,null,null,null,null,null,null,"Pasivos Diferidos a Largo Plazo"]
[null,null,"Activos Intangibles",null,null,null,null,null,null,null,null,null,null,null,null,null,null,null,null,null,null,null,null,null,null,null,null,null,null,null,null,null,null,null,null,null,null,null,null,null,null,null,null,null,null,"Fondos y Bienes de Terceros en Garantía y/o Administración a Largo Plazo"]
[null,null,"Depreciación, Deterioro y Armonización Acumulada de Bienes",null,null,null,null,null,null,null,null,null,null,null,null,null,null,null,null,null,null,null,null,null,null,null,null,null,null,null,null,null,null,null,null,null,null,null,null,null,null,null,null,null,null,"Provisiones a Largo Plazo"]
[null,null,"Activos Diferidos"]
[null,null,"Estimación por Pérdida o Deterioro de Activos no Circulantes",null,null,null,null,null,null,null,null,null,null,null,null,null,null,null,null,null,null,null,null,null,null,null,null,null,null,null,null,null,null,null,null,null,null,null,null,null,null,null,null,null,"Total de Pasivos Circulantes",null,null,null,null,null,null,null,null,null,null,null,null,null,null,null,null,null,null,null,null,null,null,null,null,null,null,null,null,null,null,{"$f":"SUM(BX22:CB27)","v":0},null,null,null,null,{"$f":"SUM(CC22:CG27)","v":0}]
[null,null,"Otros Activos no Circulantes"]
[null,null,null,null,null,null,null,null,null,null,null,null,null,null,null,null,null,null,null,null,null,null,null,null,null,null,null,null,null,null,null,null,null,null,null,null,null,null,null,null,null,null,null,null,"Total del Pasivo",null,null,null,null,null,null,null,null,null,null,null,null,null,null,null,null,null,null,null,null,null,null,null,null,null,null,null,null,null,null,{"$f":"BX19+BX29","v":15000},null,null,null,null,{"$f":"CC19+CC29","v":45000}]
[null,"Total de Activos No Circulantes",null,null,null,null,null,null,null,null,null,null,null,null,null,null,null,null,null,null,null,null,null,null,null,null,null,null,null,null,null,null,{"$f":"SUM(AG22:AK30)","v":150000},null,null,null,null,{"$f":"SUM(AL22:AP30)","v":10000}]
[null,null,null,null,null,null,null,null,null,null,null,null,null,null,null,null,null,null,null,null,null,null,null,null,null,null,null,null,null,null,null,null,null,null,null,null,null,null,null,null,null,null,null,"HACIENDA PÚBLICA/PATRIMONIO"]
[null,"Total Activo Circulante",null,null,null,null,null,null,null,null,null,null,null,null,null,null,null,null,null,null,null,null,null,null,null,null,null,null,null,null,null,null,{"$f":"AG19+AG32","v":160000},null,null,null,null,{"$f":"AL19+AL32","v":25000}]
[null,null,null,null,null,null,null,null,null,null,null,null,null,null,null,null,null,null,null,null,null,null,null,null,null,null,null,null,null,null,null,null,null,null,null,null,null,null,null,null,null,null,null,null,"Hacienda Pública/Patrimonio Contribuido",null,null,null,null,null,null,null,null,null,null,null,null,null,null,null,null,null,null,null,null,null,null,null,null,null,null,null,null,null,null,{"$f":"SUM(BX36:CB38)","v":0},null,null,null,null,{"$f":"SUM(CC36:CG38)","v":0}]
[null,null,null,null,null,null,null,null,null,null,null,null,null,null,null,null,null,null,null,null,null,null,null,null,null,null,null,null,null,null,null,null,null,null,null,null,null,null,null,null,null,null,null,null,null,"Aportaciones"]
[null,null,null,null,null,null,null,null,null,null,null,null,null,null,null,null,null,null,null,null,null,null,null,null,null,null,null,null,null,null,null,null,null,null,null,null,null,null,null,null,null,null,null,null,null,"Donaciones de Capital"]
[null,null,null,null,null,null,null,null,null,null,null,null,null,null,null,null,null,null,null,null,null,null,null,null,null,null,null,null,null,null,null,null,null,null,null,null,null,null,null,null,null,null,null,null,null,"Actualización de la Hacienda Pública / Patrimonio"]
[]
[null,null,null,null,null,null,null,null,null,null,null,null,null,null,null,null,null,null,null,null,null,null,null,null,null,null,null,null,null,null,null,null,null,null,null,null,null,null,null,null,null,null,null,null,"Hacienda Pública/Patrimonio Generado",null,null,null,null,null,null,null,null,null,null,null,null,null,null,null,null,null,null,null,null,null,null,null,null,null,null,null,null,null,null,{"$f":"SUM(BX41:CB45)","v":0},null,null,null,null,{"$f":"SUM(CC41:CG45)","v":0}]
[null,null,null,null,null,null,null,null,null,null,null,null,null,null,null,null,null,null,null,null,null,null,null,null,null,null,null,null,null,null,null,null,null,null,null,null,null,null,null,null,null,null,null,null,null,"Resultados del Ejercicio (Ahorro/Desahorro)"]
[null,null,null,null,null,null,null,null,null,null,null,null,null,null,null,null,null,null,null,null,null,null,null,null,null,null,null,null,null,null,null,null,null,null,null,null,null,null,null,null,null,null,null,null,null,"Resultados de Ejercicios Anteriores"]
[null,null,null,null,null,null,null,null,null,null,null,null,null,null,null,null,null,null,null,null,null,null,null,null,null,null,null,null,null,null,null,null,null,null,null,null,null,null,null,null,null,null,null,null,null,"Revalúos"]
[null,null,null,null,null,null,null,null,null,null,null,null,null,null,null,null,null,null,null,null,null,null,null,null,null,null,null,null,null,null,null,null,null,null,null,null,null,null,null,null,null,null,null,null,null,"Reservas"]
[null,null,null,null,null,null,null,null,null,null,null,null,null,null,null,null,null,null,null,null,null,null,null,null,null,null,null,null,null,null,null,null,null,null,null,null,null,null,null,null,null,null,null,null,null,"Rectificaciones de Resultados de Ejercicios Anteriores"]
[]
[null,null,null,null,null,null,null,null,null,null,null,null,null,null,null,null,null,null,null,null,null,null,null,null,null,null,null,null,null,null,null,null,null,null,null,null,null,null,null,null,null,null,null,null,"Exceso o Insuficiencia en la Actualización de la Hacienda Pública/Patrimonio",null,null,null,null,null,null,null,null,null,null,null,null,null,null,null,null,null,null,null,null,null,null,null,null,null,null,null,null,null,null,{"$f":"SUM(BX48:CB49)","v":0},null,null,null,null,{"$f":"SUM(CC48:CG49)","v":0}]
[null,null,null,null,null,null,null,null,null,null,null,null,null,null,null,null,null,null,null,null,null,null,null,null,null,null,null,null,null,null,null,null,null,null,null,null,null,null,null,null,null,null,null,null,null,"Resultado por Posición Monetaria"]
[null,null,null,null,null,null,null,null,null,null,null,null,null,null,null,null,null,null,null,null,null,null,null,null,null,null,null,null,null,null,null,null,null,null,null,null,null,null,null,null,null,null,null,null,null,"Resultado por Tendencia de Activos no Monetarios"]
[]
[null,null,null,null,null,null,null,null,null,null,null,null,null,null,null,null,null,null,null,null,null,null,null,null,null,null,null,null,null,null,null,null,null,null,null,null,null,null,null,null,null,null,null,"Total Hacienda Pública/Patrimonio",null,null,null,null,null,null,null,null,null,null,null,null,null,null,null,null,null,null,null,null,null,null,null,null,null,null,null,null,null,null,null,{"$f":"BX35+BX40+BX47","v":0},null,null,null,null,{"$f":"CC35+CC40+CC47","v":0}]
[]
[null,null,null,null,null,null,null,null,null,null,null,null,null,null,null,null,null,null,null,null,null,null,null,null,null,null,null,null,null,null,null,null,null,null,null,null,null,null,null,null,null,null,null,"Total del Pasivo y Hacienda Pública/Patrimonio",null,null,null,null,null,null,null,null,null,null,null,null,null,null,null,null,null,null,null,null,null,null,null,null,null,null,null,null,null,null,null,{"$f":"BX51+BX31","v":15000},null,null,null,null,{"$f":"CC51+CC31","v":45000}]

{"sheet":"EA","index":5,"n_rows":66,"n_cols":41,"rows_kept":66,"cut":false,"hidden":false,"merged":[[5,0,5,34],[5,35,5,39],[5,40,5,44],[0,0,0,44],[1,0,1,44],[11,35,11,39],[11,40,11,44],[8,35,8,39],[8,40,8,44],[12,35,12,39],[12,40,12,44],[9,35,9,39],[9,40,9,44],[30,35,30,39],[30,40,30,44],[10,35,10,39],[10,40,10,44],[31,35,31,39],[31,40,31,44],[13,35,13,39],[13,40,13,44],[29,35,29,39],[29,40,29,44],[19,40,19,44],[14,35,14,39],[14,40,14,44],[15,35,15,39],[15,40,15,44],[16,35,16,39],[16,40,16,44],[18,40,18,44],[19,35,19,39],[21,35,21,39],[36,35,36,39],[36,40,36,44],[26,35,26,39],[26,40,26,44],[23,35,23,39],[23,40,23,44],[24,35,24,39],[24,40,24,44],[50,35,50,39],[50,40,50,44],[21,40,21,44],[22,35,22,39],[22,40,22,44],[35,35,35,39],[35,40,35,44],[32,35,32,39],[32,40,32,44],[33,35,33,39],[33,40,33,44],[34,35,34,39],[34,40,34,44],[65,35,65,39],[65,40,65,44],[63,35,63,39],[63,40,63,44],[58,35,58,39],[58,40,58,44],[61,35,61,39],[61,40,61,44],[60,35,60,39],[60,40,60,44],[59,35,59,39],[59,40,59,44],[57,35,57,39],[57,40,57,44],[55,35,55,39],[55,40,55,44],[45,35,45,39],[45,40,45,44],[46,35,46,39],[46,40,46,44],[48,35,48,39],[48,40,48,44],[51,35,51,39],[51,40,51,44],[52,35,52,39],[52,40,52,44],[49,35,49,39],[49,40,49,44],[47,35,47,39],[47,40,47,44],[54,35,54,39],[54,40,54,44],[56,35,56,39],[56,40,56,44],[16,0,16,34],[39,35,39,39],[39,40,39,44],[40,35,40,39],[40,40,40,44],[41,35,41,39],[41,40,41,44],[53,35,53,39],[53,40,53,44],[44,35,44,39],[44,40,44,44],[17,35,17,39],[17,40,17,44],[42,35,42,39],[42,40,42,44],[43,35,43,39],[43,40,43,44],[20,35,20,39],[20,40,20,44],[37,35,37,39],[37,40,37,44],[38,35,38,39],[38,40,38,44],[18,35,18,39]]}
["Estado de Actividades"]
[{"$f":"ESF!A2","v":"1 enero al 31 de diciembre de 2022"}]
["CLAVE:",null,null,"=ESF!D3","=ESF!D3","=ESF!D3","=ESF!D3",null,null,null,null,null,null,null,null,null,null,null,null,null,null,null,null,"(Pesos)"]
["ENTE PÚBLICO:",null,null,null,null,null,{"$f":"ESF!G4","v":"Tepango de Rodríguez"}]
[]
["CONCEPTO",null,null,null,null,null,null,null,null,null,null,null,null,null,null,null,null,null,null,null,null,null,null,null,null,null,null,null,null,null,null,null,null,null,null,2022,null,null,null,null,2021]
[]
["INGRESOS Y OTROS BENEFICIOS"]
["Ingresos de la Gestión",null,null,null,null,null,null,null,null,null,null,null,null,null,null,null,null,null,null,null,null,null,null,null,null,null,null,null,null,null,null,null,null,null,null,{"$f":"SUM(AJ10:AN16)","v":0},null,null,null,null,{"$f":"SUM(AO10:AS16)","v":0}]
[null,"Impuestos"]
[null,"Cuotas y Aportaciones de Seguridad Social"]
[null,"Contribuciones de Mejoras"]
[null,"Derechos"]
[null,"Productos de Tipo Corriente"]
[null,"Aprovechamientos de Tipo Corriente"]
[null,"Ingresos por Venta de Bienes y Servicios"]
["Participaciones, Aportaciones, Convenios, Incentivos Derivados de la Colaboración Fiscal, Fondos Distintos de Aportaciones, Transferencias, Asignaciones, Subsidios y Subvenciones, y Pensiones y Jubilaciones",null,null,null,null,null,null,null,null,null,null,null,null,null,null,null,null,null,null,null,null,null,null,null,null,null,null,null,null,null,null,null,null,null,null,{"$f":"SUM(AJ18:AN19)","v":0},null,null,null,null,{"$f":"SUM(AO18:AS19)","v":0}]
[null,"Participaciones, Aportaciones, Convenios, Incentivos Derivados de la Colaboración Fiscal, Fondos Distintos de Aportaciones"]
[null,"Transferencias, Asignaciones, Subsidios y Subvenciones, y Pensiones y Jubilaciones "]
["Otros Ingresos y Beneficios",null,null,null,null,null,null,null,null,null,null,null,null,null,null,null,null,null,null,null,null,null,null,null,null,null,null,null,null,null,null,null,null,null,null,{"$f":"SUM(AJ21:AN25)","v":0},null,null,null,null,{"$f":"SUM(AO21:AS25)","v":0}]
[null,"Ingresos Financieros"]
[null,"Incremento de Variación de Inventarios"]
[null,"Disminución del Exceso de Estimaciones por Pérdida o Deterioro u Obsolescencia"]
[null,"Disminución del Exceso de Provisiones"]
[null,"Otros Ingresos y Beneficios Varios"]
[]
["Total de Ingresos y Otros Beneficios",null,null,null,null,null,null,null,null,null,null,null,null,null,null,null,null,null,null,null,null,null,null,null,null,null,null,null,null,null,null,null,null,null,null,{"$f":"AJ9+AJ17+AJ20","v":0},null,null,null,null,{"$f":"AO9+AO17+AO20","v":0}]
[]
["GASTOS Y OTRAS PÉRDIDAS"]
["Gastos de Funcionamiento",null,null,null,null,null,null,null,null,null,null,null,null,null,null,null,null,null,null,null,null,null,null,null,null,null,null,null,null,null,null,null,null,null,null,{"$f":"SUM(AJ31:AN33)","v":0},null,null,null,null,{"$f":"SUM(AO31:AS33)","v":0}]
[null,"Servicios Personales"]
[null,"Materiales y Suministros"]
[null,"Servicios Generales"]
["Transferencias, Asignaciones, Subsidios y Otras Ayudas",null,null,null,null,null,null,null,null,null,null,null,null,null,null,null,null,null,null,null,null,null,null,null,null,null,null,null,null,null,null,null,null,null,null,{"$f":"SUM(AJ35:AN43)","v":0},null,null,null,null,{"$f":"SUM(AO35:AS43)","v":0}]
[null,"Transferencias Internas y Asignaciones al Sector Público"]
[null,"Transferencias al Resto del Sector Público"]
[null,"Subsidios y Subvenciones"]
[null,"Ayudas Sociales"]
[null,"Pensiones y Jubilaciones"]
[null,"Tranferencias a Fideicomisos, Mandatos y Contratos Análogos"]
[null,"Transferencias a la Seguridad Social"]
[null,"Donativos"]
[null,"Transferencias al Exterior"]
["Participaciones y Aportaciones",null,null,null,null,null,null,null,null,null,null,null,null,null,null,null,null,null,null,null,null,null,null,null,null,null,null,null,null,null,null,null,null,null,null,{"$f":"SUM(AJ45:AN47)","v":0},null,null,null,null,{"$f":"SUM(AO45:AS47)","v":0}]
[null,"Participaciones"]
[null,"Aportaciones"]
[null,"Convenios"]
["Intereses, Comisiones y Otros Gastos de la Deuda Pública",null,null,null,null,null,null,null,null,null,null,null,null,null,null,null,null,null,null,null,null,null,null,null,null,null,null,null,null,null,null,null,null,null,null,{"$f":"SUM(AJ49:AN53)","v":0},null,null,null,null,{"$f":"SUM(AO49:AS53)","v":0}]
[null,"Intereses de la Deuda Pública"]
[null,"Comisiones de la Deuda Pública"]
[null,"Gastos de la Deuda Pública"]
[null,"Costo por Coberturas"]
[null,"Apoyos Financieros"]
["Otros Gastos y Pérdidas Extraordinarias",null,null,null,null,null,null,null,null,null,null,null,null,null,null,null,null,null,null,null,null,null,null,null,null,null,null,null,null,null,null,null,null,null,null,{"$f":"SUM(AJ55:AN60)","v":0},null,null,null,null,{"$f":"SUM(AO55:AS60)","v":0}]
[null,"Estimaciones, Depreciaciones, Deterioros, Obsolescencia y Armonizaciones"]
[null,"Provisiones"]
[null,"Disminución de Inventarios"]
[null,"Aumento por Insuficiencia de Estimaciones por Pérdida o Deterioro y Obsolescencia"]
[null,"Aumento por Insuficiencia de Proviciones"]
[null,"Otros Gastos"]
["Inversión Pública",null,null,null,null,null,null,null,null,null,null,null,null,null,null,null,null,null,null,null,null,null,null,null,null,null,null,null,null,null,null,null,null,null,null,{"$f":"AJ62","v":0},null,null,null,null,{"$f":"AO62","v":0}]
[null,"Inversión Pública no Capitalizable"]
[]
["Total de Gastos y Otras Pérdidas",null,null,null,null,null,null,null,null,null,null,null,null,null,null,null,null,null,null,null,null,null,null,null,null,null,null,null,null,null,null,null,null,null,null,{"$f":"AJ30+AJ34+AJ44+AJ48+AJ54+AJ61","v":0},null,null,null,null,{"$f":"AO30+AO34+AO44+AO48+AO54+AO61","v":0}]
[]
["Resultados del Ejercicio (Ahorro/Desahorro)",null,null,null,null,null,null,null,null,null,null,null,null,null,null,null,null,null,null,null,null,null,null,null,null,null,null,null,null,null,null,null,null,null,null,{"$f":"AJ27-AJ64","v":0},null,null,null,null,{"$f":"AO27-AO64","v":0}]

{"sheet":"EVHP","index":6,"n_rows":44,"n_cols":56,"rows_kept":44,"cut":false,"hidden":false,"merged":[[35,27,35,33],[36,27,36,33],[37,27,37,33],[33,27,33,33],[22,0,22,26],[26,27,26,33],[31,27,31,33],[39,0,39,26],[39,48,39,54],[39,55,39,61],[22,48,22,54],[22,55,22,61],[23,48,23,54],[23,55,23,61],[24,48,24,54],[24,55,24,61],[26,41,26,47],[26,55,26,61],[26,48,26,54],[29,27,29,33],[29,55,29,61],[28,27,28,33],[28,55,28,61],[0,0,0,61],[1,0,1,61],[2,3,2,5],[19,34,19,40],[19,55,19,61],[10,27,10,33],[11,27,11,33],[5,0,8,26],[5,27,8,33],[5,34,8,40],[5,41,8,47],[5,55,8,61],[5,48,8,54],[12,27,12,33],[13,27,13,33],[10,55,10,61],[11,55,11,61],[15,41,15,47],[15,55,15,61],[16,41,16,47],[16,55,16,61],[12,55,12,61],[13,55,13,61],[26,34,26,40],[17,34,17,40],[15,34,15,40],[20,34,20,40],[20,55,20,61],[18,34,18,40],[18,55,18,61],[17,55,17,61],[31,55,31,61],[30,27,30,33],[30,55,30,61],[34,41,34,47],[34,55,34,61],[33,34,33,40],[33,41,33,47],[33,55,33,61],[36,41,36,47],[36,55,36,61],[35,34,35,40],[35,41,35,47],[35,55,35,61],[36,34,36,40],[41,48,41,54],[41,55,41,61],[43,27,43,33],[43,34,43,40],[43,41,43,47],[43,48,43,54],[43,55,43,61],[37,34,37,40],[37,41,37,47],[37,55,37,61],[40,48,40,54],[40,55,40,61]]}
["Estado de Variación en la Hacienda Pública"]
[{"$f":"ESF!A2","v":"1 enero al 31 de diciembre de 2022"}]
["CLAVE:",null,null,"=ESF!D3",null,null,null,null,null,null,null,null,null,null,null,null,null,null,null,null,null,null,null,null,null,null,null,null,null,null,"(Pesos)"]
["ENTE PÚBLICO:",null,null,null,null,null,{"$f":"ESF!G4","v":"Tepango de Rodríguez"}]
[]
["CONCEPTO",null,null,null,null,null,null,null,null,null,null,null,null,null,null,null,null,null,null,null,null,null,null,null,null,null,null,"Hacienda Pública/Patrimonio Contribuido",null,null,null,null,null,null,"Hacienda Pública/Patrimonio Generados de Ejercicios Anteriores",null,null,null,null,null,null,"Hacienda Pública/Patrimonio Generado del Ejercicio",null,null,null,null,null,null,"Exceso o Insuficiencia en la Actualización de la Hacienda Pública / Patrimonio",null,null,null,null,null,null,"TOTAL"]
[]
[]
[]
[]
["Hacienda Pública/Patrimonio Contribuido Neto de 2020",null,null,null,null,null,null,null,null,null,null,null,null,null,null,null,null,null,null,null,null,null,null,null,null,null,null,{"$f":"SUM(AB12:AH14)","v":0},null,null,null,null,null,null,null,null,null,null,null,null,null,null,null,null,null,null,null,null,null,null,null,null,null,null,null,{"$f":"SUM(AB11:BC11)","v":0}]
[null,"Aportaciones",null,null,null,null,null,null,null,null,null,null,null,null,null,null,null,null,null,null,null,null,null,null,null,null,null,null,null,null,null,null,null,null,null,null,null,null,null,null,null,null,null,null,null,null,null,null,null,null,null,null,null,null,null,{"$f":"SUM(AB12:BC12)","v":0}]
[null,"Donaciones de Capital",null,null,null,null,null,null,null,null,null,null,null,null,null,null,null,null,null,null,null,null,null,null,null,null,null,null,null,null,null,null,null,null,null,null,null,null,null,null,null,null,null,null,null,null,null,null,null,null,null,null,null,null,null,{"$f":"SUM(AB13:BC13)","v":0}]
[null,"Actualización de la Hacienda Pública/Patrimonio",null,null,null,null,null,null,null,null,null,null,null,null,null,null,null,null,null,null,null,null,null,null,null,null,null,null,null,null,null,null,null,null,null,null,null,null,null,null,null,null,null,null,null,null,null,null,null,null,null,null,null,null,null,0]
[]
["Hacienda Pública/Patrimonio Generado Neto de 2020",null,null,null,null,null,null,null,null,null,null,null,null,null,null,null,null,null,null,null,null,null,null,null,null,null,null,null,null,null,null,null,null,null,{"$f":"SUM(AI17:AO21)","v":0},null,null,null,null,null,null,{"$f":"SUM(AP17:AV21)","v":0},null,null,null,null,null,null,null,null,null,null,null,null,null,{"$f":"SUM(AB16:BC16)","v":0}]
[null,"Resultados del Ejercicio (Ahorro/Desahorro)",null,null,null,null,null,null,null,null,null,null,null,null,null,null,null,null,null,null,null,null,null,null,null,null,null,null,null,null,null,null,null,null,null,null,null,null,null,null,null,null,null,null,null,null,null,null,null,null,null,null,null,null,null,0]
[null,"Resultados de Ejercicios Anteriores",null,null,null,null,null,null,null,null,null,null,null,null,null,null,null,null,null,null,null,null,null,null,null,null,null,null,null,null,null,null,null,null,null,null,null,null,null,null,null,null,null,null,null,null,null,null,null,null,null,null,null,null,null,0]
[null,"Revalúos",null,null,null,null,null,null,null,null,null,null,null,null,null,null,null,null,null,null,null,null,null,null,null,null,null,null,null,null,null,null,null,null,null,null,null,null,null,null,null,null,null,null,null,null,null,null,null,null,null,null,null,null,null,0]
[null,"Reservas",null,null,null,null,null,null,null,null,null,null,null,null,null,null,null,null,null,null,null,null,null,null,null,null,null,null,null,null,null,null,null,null,null,null,null,null,null,null,null,null,null,null,null,null,null,null,null,null,null,null,null,null,null,0]
[null,"Rectificaciones de Resultados de Ejercicios Anteriores",null,null,null,null,null,null,null,null,null,null,null,null,null,null,null,null,null,null,null,null,null,null,null,null,null,null,null,null,null,null,null,null,null,null,null,null,null,null,null,null,null,null,null,null,null,null,null,null,null,null,null,null,null,{"$f":"SUM(AB21:BC21)","v":0}]
[]
["Exceso o Insuficiencia en la Actualización de la Hacienda Pública/Patrimonio Neto de 2020",null,null,null,null,null,null,null,null,null,null,null,null,null,null,null,null,null,null,null,null,null,null,null,null,null,null,null,null,null,null,null,null,null,null,null,null,null,null,null,null,null,null,null,null,null,null,null,{"$f":"SUM(AW24:BC25)","v":0},null,null,null,null,null,null,{"$f":"SUM(AB23:BC23)","v":0}]
[null,"Resultado por Posición Monetaria",null,null,null,null,null,null,null,null,null,null,null,null,null,null,null,null,null,null,null,null,null,null,null,null,null,null,null,null,null,null,null,null,null,null,null,null,null,null,null,null,null,null,null,null,null,null,null,null,null,null,null,null,null,0]
[null,"Resultado por Tenencia de Activos no Monetarios",null,null,null,null,null,null,null,null,null,null,null,null,null,null,null,null,null,null,null,null,null,null,null,null,null,null,null,null,null,null,null,null,null,null,null,null,null,null,null,null,null,null,null,null,null,null,null,null,null,null,null,null,null,0]
[]
["Hacienda Pública/Patrimonio Neto del Ejericio 2020",null,null,null,null,null,null,null,null,null,null,null,null,null,null,null,null,null,null,null,null,null,null,null,null,null,null,{"$f":"SUM(AB11)","v":0},null,null,null,null,null,null,{"$f":"SUM(AI16)","v":0},null,null,null,null,null,null,{"$f":"SUM(AP16)","v":0},null,null,null,null,null,null,{"$f":"SUM(AW23)","v":0},null,null,null,null,null,null,{"$f":"SUM(AB27:BC27)","v":0}]
[]
["Cambios en la Hacienda Pública/Patrimonio Contribuido Neto de 2021",null,null,null,null,null,null,null,null,null,null,null,null,null,null,null,null,null,null,null,null,null,null,null,null,null,null,{"$f":"SUM(AB30:AH32)","v":0},null,null,null,null,null,null,null,null,null,null,null,null,null,null,null,null,null,null,null,null,null,null,null,null,null,null,null,{"$f":"SUM(AB29:BC29)","v":0}]
[null,"Aportaciones",null,null,null,null,null,null,null,null,null,null,null,null,null,null,null,null,null,null,null,null,null,null,null,null,null,null,null,null,null,null,null,null,null,null,null,null,null,null,null,null,null,null,null,null,null,null,null,null,null,null,null,null,null,0]
[null,"Donaciones de Capital",null,null,null,null,null,null,null,null,null,null,null,null,null,null,null,null,null,null,null,null,null,null,null,null,null,null,null,null,null,null,null,null,null,null,null,null,null,null,null,null,null,null,null,null,null,null,null,null,null,null,null,null,null,0]
[null,"Actualización de la Hacienda Pública/Patrimonio",null,null,null,null,null,null,null,null,null,null,null,null,null,null,null,null,null,null,null,null,null,null,null,null,null,null,null,null,null,null,null,null,null,null,null,null,null,null,null,null,null,null,null,null,null,null,null,null,null,null,null,null,null,0]
[]
["Variaciones de la Hacienda Pública/Patrimonio Generado Neto de 2021",null,null,null,null,null,null,null,null,null,null,null,null,null,null,null,null,null,null,null,null,null,null,null,null,null,null,{"$f":"SUM(AB36:AH38)","v":0},null,null,null,null,null,null,{"$f":"SUM(AI35:AO38)","v":0},null,null,null,null,null,null,{"$f":"SUM(AP35:AV38)","v":0},null,null,null,null,null,null,null,null,null,null,null,null,null,{"$f":"SUM(AB34:BC34)","v":0}]
[null,"Resultados del Ejercicio (Ahorro/Desahorro)",null,null,null,null,null,null,null,null,null,null,null,null,null,null,null,null,null,null,null,null,null,null,null,null,null,null,null,null,null,null,null,null,null,null,null,null,null,null,null,null,null,null,null,null,null,null,null,null,null,null,null,null,null,0]
[null,"Resultados de Ejercicios Anteriores",null,null,null,null,null,null,null,null,null,null,null,null,null,null,null,null,null,null,null,null,null,null,null,null,null,null,null,null,null,null,null,null,{"$f":"(ESF!BX42+ESF!CC42)","v":0},null,null,null,null,null,null,null,null,null,null,null,null,null,null,null,null,null,null,null,null,0]
[null,"Revalúos",null,null,null,null,null,null,null,null,null,null,null,null,null,null,null,null,null,null,null,null,null,null,null,null,null,null,null,null,null,null,null,null,null,null,null,null,null,null,null,null,null,null,null,null,null,null,null,null,null,null,null,null,null,0]
[null,"Reservas",null,null,null,null,null,null,null,null,null,null,null,null,null,null,null,null,null,null,null,null,null,null,null,null,null,null,null,null,null,null,null,null,null,null,null,null,null,null,null,null,null,null,null,null,null,null,null,null,null,null,null,null,null,0]
[]
["Cambios en el Exceso o Insuficiencia en la Actualización de la Hacienda Pública/Patrimonio Neto de 2021",null,null,null,null,null,null,null,null,null,null,null,null,null,null,null,null,null,null,null,null,null,null,null,null,null,null,null,null,null,null,null,null,null,null,null,null,null,null,null,null,null,null,null,null,null,null,null,{"$f":"SUM(AW41:BC42)","v":0},null,null,null,null,null,null,{"$f":"SUM(AB40:BC40)","v":0}]
[null,"Resultado por Posición Monetaria",null,null,null,null,null,null,null,null,null,null,null,null,null,null,null,null,null,null,null,null,null,null,null,null,null,null,null,null,null,null,null,null,null,null,null,null,null,null,null,null,null,null,null,null,null,null,null,null,null,null,null,null,null,0]
[null,"Resultado por Tenencia de Activos no Monetarios",null,null,null,null,null,null,null,null,null,null,null,null,null,null,null,null,null,null,null,null,null,null,null,null,null,null,null,null,null,null,null,null,null,null,null,null,null,null,null,null,null,null,null,null,null,null,null,null,null,null,null,null,null,0]
[]
["Hacienda Pública/Patrimonio Neto Final de 2021",null,null,null,null,null,null,null,null,null,null,null,null,null,null,null,null,null,null,null,null,null,null,null,null,null,null,{"$f":"AB27+AB34","v":0},null,null,null,null,null,null,{"$f":"AI27+AI34","v":0},null,null,null,null,null,null,{"$f":"AP27+AP34","v":0},null,null,null,null,null,null,{"$f":"AW40","v":0},null,null,null,null,null,null,{"$f":"SUM(AB44:BC44)","v":0}]

{"sheet":"EVHP (2)","index":7,"n_rows":48,"n_cols":56,"rows_kept":48,"cut":false,"hidden":true,"merged":[[26,41,26,47],[26,48,26,54],[26,55,26,61],[36,27,36,33],[36,34,36,40],[44,27,44,33],[44,34,44,40],[44,41,44,47],[44,48,44,54],[44,55,44,61],[36,41,36,47],[36,48,36,54],[36,55,36,61],[37,27,37,33],[37,34,37,40],[37,41,37,47],[37,48,37,54],[37,55,37,61],[33,27,33,33],[33,34,33,40],[33,41,33,47],[33,48,33,54],[33,55,33,61],[35,27,35,33],[24,27,24,33],[24,34,24,40],[24,41,24,47],[24,48,24,54],[24,55,24,61],[42,0,43,26],[43,27,43,33],[43,34,43,40],[43,41,43,47],[43,48,43,54],[43,55,43,61],[23,0,24,26],[39,27,39,33],[39,34,39,40],[39,41,39,47],[39,48,39,54],[39,55,39,61],[25,27,25,33],[25,34,25,40],[25,41,25,47],[25,48,25,54],[25,55,25,61],[26,27,26,33],[26,34,26,40],[47,27,47,33],[47,34,47,40],[47,41,47,47],[47,48,47,54],[47,55,47,61],[38,27,38,33],[38,34,38,40],[38,41,38,47],[38,48,38,54],[38,55,38,61],[40,27,40,33],[40,34,40,40],[40,41,40,47],[40,48,40,54],[40,55,40,61],[45,27,45,33],[45,34,45,40],[45,41,45,47],[45,48,45,54],[45,55,45,61],[35,34,35,40],[35,41,35,47],[35,48,35,54],[35,55,35,61],[31,27,31,33],[31,34,31,40],[31,41,31,47],[31,48,31,54],[31,55,31,61],[32,27,32,33],[32,34,32,40],[32,41,32,47],[32,48,32,54],[32,55,32,61],[28,27,28,33],[28,34,28,40],[28,41,28,47],[28,48,28,54],[28,55,28,61],[30,27,30,33],[30,34,30,40],[30,41,30,47],[30,48,30,54],[30,55,30,61],[19,27,19,33],[19,34,19,40],[19,41,19,47],[19,48,19,54],[19,55,19,61],[21,27,21,33],[21,34,21,40],[21,41,21,47],[21,48,21,54],[21,55,21,61],[20,27,20,33],[20,34,20,40],[20,41,20,47],[20,48,20,54],[20,55,20,61],[17,27,17,33],[17,34,17,40],[17,41,17,47],[17,48,17,54],[17,55,17,61],[18,27,18,33],[18,34,18,40],[18,41,18,47],[18,48,18,54],[18,55,18,61],[14,27,14,33],[14,34,14,40],[14,41,14,47],[14,48,14,54],[14,55,14,61],[16,27,16,33],[16,34,16,40],[16,41,16,47],[16,48,16,54],[16,55,16,61],[12,27,12,33],[12,34,12,40],[12,41,12,47],[12,48,12,54],[12,55,12,61],[13,27,13,33],[13,34,13,40],[13,41,13,47],[13,48,13,54],[13,55,13,61],[11,34,11,40],[11,41,11,47],[11,48,11,54],[11,27,11,33],[11,55,11,61],[0,0,0,61],[1,0,1,61],[2,0,2,61],[3,3,3,5],[6,0,9,26],[6,27,9,33],[6,34,9,40],[6,41,9,47],[6,48,9,54],[6,55,9,61]]}
["Cuenta Pública 2017"]
["Estado de Variación en la Hacienda Pública"]
[{"$f":"CONCATENATE(\"Del \",(VLOOKUP(D4,'2017'!B2:I117,7,FALSE)),\" al \",(VLOOKUP(D4,'2017'!B2:I117,8,FALSE)),\" de 2017\")","v":{"$error":"#N/A"}}]
["CLAVE:",null,null,{"$f":"ESF!D3","v":"1906-08-11"},null,null,null,null,null,null,null,null,null,null,null,null,null,null,null,null,null,null,null,null,null,null,null,null,null,null,"(Pesos)"]
["ENTE PÚBLICO:",null,null,null,null,null,{"$f":"ESF!G4","v":"Tepango de Rodríguez"}]
[]
["CONCEPTO",null,null,null,null,null,null,null,null,null,null,null,null,null,null,null,null,null,null,null,null,null,null,null,null,null,null,"Hacienda Pública/Patrimonio Contribuido",null,null,null,null,null,null,"Hacienda Pública/Patrimonio Generados de Ejercicios Anteriores",null,null,null,null,null,null,"Hacienda Pública/Patrimonio Generado del Ejercicio",null,null,null,null,null,null,"Exceso o Insuficiencia en la Actualización de la Hacienda Pública/Patrimonio",null,null,null,null,null,null,"TOTAL"]
[]
[]
[]
[]
["Hacienda Pública / Patrimonio Contribuido de 2016",null,null,null,null,null,null,null,null,null,null,null,null,null,null,null,null,null,null,null,null,null,null,null,null,null,null,{"$f":"SUM(AB13:AH15)","v":0},null,null,null,null,null,null,null,null,null,null,null,null,null,null,null,null,null,null,null,null,null,null,null,null,null,null,null,{"$f":"SUM(AB12:BC12)","v":0}]
["Aportaciones",null,null,null,null,null,null,null,null,null,null,null,null,null,null,null,null,null,null,null,null,null,null,null,null,null,null,null,null,null,null,null,null,null,null,null,null,null,null,null,null,null,null,null,null,null,null,null,null,null,null,null,null,null,null,{"$f":"SUM(AB13:BC13)","v":0}]
["Donaciones de Capital",null,null,null,null,null,null,null,null,null,null,null,null,null,null,null,null,null,null,null,null,null,null,null,null,null,null,null,null,null,null,null,null,null,null,null,null,null,null,null,null,null,null,null,null,null,null,null,null,null,null,null,null,null,null,0]
["Actualización de la Hacienda Pública/Patrimonio",null,null,null,null,null,null,null,null,null,null,null,null,null,null,null,null,null,null,null,null,null,null,null,null,null,null,null,null,null,null,null,null,null,null,null,null,null,null,null,null,null,null,null,null,null,null,null,null,null,null,null,null,null,null,{"$f":"SUM(AB15:BC15)","v":0}]
[]
["Hacienda Pública / Patrimonio Generado Neto de 2016",null,null,null,null,null,null,null,null,null,null,null,null,null,null,null,null,null,null,null,null,null,null,null,null,null,null,null,null,null,null,null,null,null,{"$f":"SUM(AI19:AO22)","v":0},null,null,null,null,null,null,{"$f":"SUM(AP18)","v":0},null,null,null,null,null,null,null,null,null,null,null,null,null,{"$f":"SUM(AB17:BC17)","v":0}]
["Resultados del Ejercicio (Ahorro/Desahorro)",null,null,null,null,null,null,null,null,null,null,null,null,null,null,null,null,null,null,null,null,null,null,null,null,null,null,null,null,null,null,null,null,null,null,null,null,null,null,null,null,null,null,null,null,null,null,null,null,null,null,null,null,null,null,0]
["Resultados de Ejercicios Anteriores",null,null,null,null,null,null,null,null,null,null,null,null,null,null,null,null,null,null,null,null,null,null,null,null,null,null,null,null,null,null,null,null,null,null,null,null,null,null,null,null,null,null,null,null,null,null,null,null,null,null,null,null,null,null,0]
["Revalúos",null,null,null,null,null,null,null,null,null,null,null,null,null,null,null,null,null,null,null,null,null,null,null,null,null,null,null,null,null,null,null,null,null,null,null,null,null,null,null,null,null,null,null,null,null,null,null,null,null,null,null,null,null,null,0]
["Reservas",null,null,null,null,null,null,null,null,null,null,null,null,null,null,null,null,null,null,null,null,null,null,null,null,null,null,null,null,null,null,null,null,null,null,null,null,null,null,null,null,null,null,null,null,null,null,null,null,null,null,null,null,null,null,{"$f":"SUM(AB21:BC21)","v":0}]
["Rectificaciones de Resultados en Ejercicios Anteriores",null,null,null,null,null,null,null,null,null,null,null,null,null,null,null,null,null,null,null,null,null,null,null,null,null,null,null,null,null,null,null,null,null,null,null,null,null,null,null,null,null,null,null,null,null,null,null,null,null,null,null,null,null,null,0]
[]
["Exceso o Insuficiencia en la Actualización de la Hacienda Pública / Patrimonio Neto de 2016"]
[null,null,null,null,null,null,null,null,null,null,null,null,null,null,null,null,null,null,null,null,null,null,null,null,null,null,null,null,null,null,null,null,null,null,null,null,null,null,null,null,null,null,null,null,null,null,null,null,{"$f":"SUM(AW26:BC27)","v":0},null,null,null,null,null,null,{"$f":"SUM(AB25:BC25)","v":0}]
["Resultado por Posición Monetaria",null,null,null,null,null,null,null,null,null,null,null,null,null,null,null,null,null,null,null,null,null,null,null,null,null,null,null,null,null,null,null,null,null,null,null,null,null,null,null,null,null,null,null,null,null,null,null,null,null,null,null,null,null,null,{"$f":"SUM(AB26:BC26)","v":0}]
["Resultado por Tenencia de Activos no Monetarios",null,null,null,null,null,null,null,null,null,null,null,null,null,null,null,null,null,null,null,null,null,null,null,null,null,null,null,null,null,null,null,null,null,null,null,null,null,null,null,null,null,null,null,null,null,null,null,null,null,null,null,null,null,null,{"$f":"SUM(AB27:BC27)","v":0}]
[]
["Hacienda Pública/Patrimonio Neto Final del 2016",null,null,null,null,null,null,null,null,null,null,null,null,null,null,null,null,null,null,null,null,null,null,null,null,null,null,{"$f":"AB12+AB17+AB25","v":0},null,null,null,null,null,null,{"$f":"AI12+AI17+AI25","v":0},null,null,null,null,null,null,{"$f":"AP12+AP17+AP25","v":0},null,null,null,null,null,null,{"$f":"AW12+AW17+AW25","v":0},null,null,null,null,null,null,{"$f":"SUM(AB29:BC29)","v":0}]
[]
["Cambios en la Hacienda Pública/Patrimonio Contribuido Neto de 2017",null,null,null,null,null,null,null,null,null,null,null,null,null,null,null,null,null,null,null,null,null,null,null,null,null,null,{"$f":"SUM(AB32:AH34)","v":0},null,null,null,null,null,null,null,null,null,null,null,null,null,null,null,null,null,null,null,null,null,null,null,null,null,null,null,{"$f":"SUM(AB31:BC31)","v":0}]
["Aportaciones",null,null,null,null,null,null,null,null,null,null,null,null,null,null,null,null,null,null,null,null,null,null,null,null,null,null,null,null,null,null,null,null,null,null,null,null,null,null,null,null,null,null,null,null,null,null,null,null,null,null,null,null,null,null,0]
["Donaciones de Capital",null,null,null,null,null,null,null,null,null,null,null,null,null,null,null,null,null,null,null,null,null,null,null,null,null,null,null,null,null,null,null,null,null,null,null,null,null,null,null,null,null,null,null,null,null,null,null,null,null,null,null,null,null,null,0]
["Actualización de la Hacienda Pública/Patrimonio",null,null,null,null,null,null,null,null,null,null,null,null,null,null,null,null,null,null,null,null,null,null,null,null,null,null,null,null,null,null,null,null,null,null,null,null,null,null,null,null,null,null,null,null,null,null,null,null,null,null,null,null,null,null,0]
[]
["Variaciones de la Hacienda Pública/Patrimonio Generado Neto de 2017",null,null,null,null,null,null,null,null,null,null,null,null,null,null,null,null,null,null,null,null,null,null,null,null,null,null,null,null,null,null,null,null,null,{"$f":"SUM(AI38)","v":0},null,null,null,null,null,null,{"$f":"SUM(AP37:AV41)","v":0},null,null,null,null,null,null,null,null,null,null,null,null,null,{"$f":"SUM(AB36:BC36)","v":0}]
["Resultados del Ejercicio (Ahorro/Desahorro)",null,null,null,null,null,null,null,null,null,null,null,null,null,null,null,null,null,null,null,null,null,null,null,null,null,null,null,null,null,null,null,null,null,null,null,null,null,null,null,null,null,null,null,null,null,null,null,null,null,null,null,null,null,null,0]
["Resultados de Ejercicios Anteriores",null,null,null,null,null,null,null,null,null,null,null,null,null,null,null,null,null,null,null,null,null,null,null,null,null,null,null,null,null,null,null,null,null,null,null,null,null,null,null,null,null,null,null,null,null,null,null,null,null,null,null,null,null,null,0]
["Revalúos",null,null,null,null,null,null,null,null,null,null,null,null,null,null,null,null,null,null,null,null,null,null,null,null,null,null,null,null,null,null,null,null,null,null,null,null,null,null,null,null,null,null,null,null,null,null,null,null,null,null,null,null,null,null,0]
["Reservas",null,null,null,null,null,null,null,null,null,null,null,null,null,null,null,null,null,null,null,null,null,null,null,null,null,null,null,null,null,null,null,null,null,null,null,null,null,null,null,null,null,null,null,null,null,null,null,null,null,null,null,null,null,null,{"$f":"SUM(AB40:BC40)","v":0}]
["Rectificaciones de Resultados en Ejercicios Anteriores",null,null,null,null,null,null,null,null,null,null,null,null,null,null,null,null,null,null,null,null,null,null,null,null,null,null,null,null,null,null,null,null,null,null,null,null,null,null,null,null,null,null,null,null,null,null,null,null,null,null,null,null,null,null,0]
[]
["Cambios en el Exceso o Insuficiencia en la Actualización de la Hacienda Pública / Patrimonio Neto de 2017"]
[null,null,null,null,null,null,null,null,null,null,null,null,null,null,null,null,null,null,null,null,null,null,null,null,null,null,null,null,null,null,null,null,null,null,null,null,null,null,null,null,null,null,null,null,null,null,null,null,{"$f":"SUM(AW45:BC46)","v":0},null,null,null,null,null,null,{"$f":"SUM(AB44:BC44)","v":0}]
["Resultado por Posición Monetaria",null,null,null,null,null,null,null,null,null,null,null,null,null,null,null,null,null,null,null,null,null,null,null,null,null,null,null,null,null,null,null,null,null,null,null,null,null,null,null,null,null,null,null,null,null,null,null,null,null,null,null,null,null,null,{"$f":"SUM(AB45:BC45)","v":0}]
["Resultado por Tenencia de Activos no Monetarios",null,null,null,null,null,null,null,null,null,null,null,null,null,null,null,null,null,null,null,null,null,null,null,null,null,null,null,null,null,null,null,null,null,null,null,null,null,null,null,null,null,null,null,null,null,null,null,null,null,null,null,null,null,null,{"$f":"SUM(AB46:BC46)","v":0}]
[]
["Hacienda Pública / Patrimonio Neto Final 2017",null,null,null,null,null,null,null,null,null,null,null,null,null,null,null,null,null,null,null,null,null,null,null,null,null,null,{"$f":"AB29+AB31","v":0},null,null,null,null,null,null,{"$f":"AI29+AI36","v":0},null,null,null,null,null,null,{"$f":"AP29+AP36","v":0},null,null,null,null,null,null,{"$f":"AW29+AW44","v":0},null,null,null,null,null,null,{"$f":"SUM(AB48:BC48)","v":0}]

{"sheet":"ECSF","index":8,"n_rows":64,"n_cols":33,"rows_kept":64,"cut":false,"hidden":false,"merged":[[2,3,2,5],[5,0,5,26],[5,27,5,31],[5,32,5,36],[10,27,10,31],[10,32,10,36],[9,27,9,31],[9,32,9,36],[30,27,30,31],[30,32,30,36],[28,27,28,31],[28,32,28,36],[14,27,14,31],[14,32,14,36],[8,27,8,31],[8,32,8,36],[29,27,29,31],[29,32,29,36],[23,27,23,31],[23,32,23,36],[24,27,24,31],[24,32,24,36],[6,32,6,36],[35,32,35,36],[12,27,12,31],[12,32,12,36],[13,27,13,31],[13,32,13,36],[11,27,11,31],[11,32,11,36],[32,27,32,31],[32,32,32,36],[18,32,18,36],[19,27,19,31],[19,32,19,36],[31,27,31,31],[31,32,31,36],[20,27,20,31],[20,32,20,36],[18,27,18,31],[26,27,26,31],[26,32,26,36],[25,27,25,31],[25,32,25,36],[22,27,22,31],[22,32,22,36],[63,27,63,31],[63,32,63,36],[33,27,33,31],[33,32,33,36],[39,27,39,31],[39,32,39,36],[42,27,42,31],[42,32,42,36],[60,27,60,31],[60,32,60,36],[55,27,55,31],[53,27,53,31],[53,32,53,36],[50,32,50,36],[51,27,51,31],[51,32,51,36],[49,27,49,31],[49,32,49,36],[50,27,50,31],[47,27,47,31],[47,32,47,36],[62,27,62,31],[62,32,62,36],[45,32,45,36],[0,0,0,36],[1,0,1,36],[55,32,55,36],[56,27,56,31],[56,32,56,36],[21,27,21,31],[21,32,21,36],[7,27,7,31],[7,32,7,36],[40,27,40,31],[40,32,40,36],[41,27,41,31],[41,32,41,36],[37,27,37,31],[37,32,37,36],[17,27,17,31],[17,32,17,36],[15,27,15,31],[15,32,15,36],[36,27,36,31],[36,32,36,36],[34,27,34,31],[34,32,34,36],[35,27,35,31],[57,27,57,31],[57,32,57,36],[58,27,58,31],[58,32,58,36],[43,27,43,31],[43,32,43,36],[48,27,48,31],[48,32,48,36],[54,27,54,31],[54,32,54,36],[44,27,44,31],[44,32,44,36],[45,27,45,31]]}
["Estado de Cambios en la Situación Financiera"]
[{"$f":"ESF!A2","v":"1 enero al 31 de diciembre de 2022"}]
["CLAVE:",null,null,{"$f":"ESF!D3","v":2415},null,null,null,null,null,null,null,null,null,null,null,null,null,null,"(Pesos)"]
["ENTE PÚBLICO:",null,null,null,null,null,{"$f":"ESF!G4","v":"Tepango de Rodríguez"}]
[]
["CONCEPTO",null,null,null,null,null,null,null,null,null,null,null,null,null,null,null,null,null,null,null,null,null,null,null,null,null,null,"Origen",null,null,null,null,"Aplicación"]
[null,null,null,null,null,null,null,null,null,null,null,null,null,null,null,null,null,null,null,null,null,null,null,null,null,null,null,null,null,null,null,null,{"$f":"AG8-AB8","v":0}]
["ACTIVO",null,null,null,null,null,null,null,null,null,null,null,null,null,null,null,null,null,null,null,null,null,null,null,null,null,null,{"$f":"AB9+AB18","v":0},null,null,null,null,{"$f":"AG9+AG18","v":0}]
[null,"Activo Circulante",null,null,null,null,null,null,null,null,null,null,null,null,null,null,null,null,null,null,null,null,null,null,null,null,null,{"$f":"SUM(AB10:AF16)","v":0},null,null,null,null,{"$f":"SUM(AG10:AK16)","v":0}]
[null,null,"Efectivo y Equivalentes"]
[null,null,"Derechos a Recibir Efectivo o Equivalentes"]
[null,null,"Derechos a Recibir Bienes o Servicios"]
[null,null,"Inventarios"]
[null,null,"Almacenes"]
[null,null,"Estimación por Pérdida o Derecho de Activos Circulantes"]
[null,null,"Otros Activos Circulantes"]
[]
[null,"Activo No Circulante",null,null,null,null,null,null,null,null,null,null,null,null,null,null,null,null,null,null,null,null,null,null,null,null,null,{"$f":"SUM(AB19:AF27)","v":0},null,null,null,null,{"$f":"SUM(AG19:AK27)","v":0}]
[null,null,"Inversiones Financieras a Largo Plazo"]
[null,null,"Derechos a Recibir Efectivo o Equivalentes a Largo Plazo"]
[null,null,"Bienes Inmuebles, Infraestructura y Construcciones en Proceso"]
[null,null,"Bienes Muebles"]
[null,null,"Activos Intangibles"]
[null,null,"Depreciación, Deterioro y Armortización Acumulada de Bienes "]
[null,null,"Activos Diferidos"]
[null,null,"Estimación por Pérdida o Deterioro de Activos no Circulantes"]
[null,null,"Otros Activos no Circulantes"]
[]
["PASIVO",null,null,null,null,null,null,null,null,null,null,null,null,null,null,null,null,null,null,null,null,null,null,null,null,null,null,{"$f":"AB30+AB40","v":0},null,null,null,null,{"$f":"AG30+AG40","v":0}]
[null,"Pasivo Circulante",null,null,null,null,null,null,null,null,null,null,null,null,null,null,null,null,null,null,null,null,null,null,null,null,null,{"$f":"SUM(AB31:AF38)","v":0},null,null,null,null,{"$f":"SUM(AG31:AK38)","v":0}]
[null,null,"Cuentas por Pagar a Corto Plazo"]
[null,null,"Documentos por Pagar a Corto Plazo"]
[null,null,"Porción a Corto Plazo de la Deuda Pública a Largo Plazo"]
[null,null,"Títulos y Valores a Corto Plazo"]
[null,null,"Pasivos Diferidos a Corto Plazo"]
[null,null,"Fondos y Bienes de Terceros en Garantía y/o Administración a Corto Plazo"]
[null,null,"Provisiones a Corto Plazo"]
[null,null,"Otros Pasivos a Corto Plazo"]
[]
[null,"Pasivo No Circulante",null,null,null,null,null,null,null,null,null,null,null,null,null,null,null,null,null,null,null,null,null,null,null,null,null,{"$f":"SUM(AB41:AF46)","v":0},null,null,null,null,{"$f":"SUM(AG41:AK46)","v":0}]
[null,null,"Cuentas por Pagar a Largo Plazo"]
[null,null,"Documentos por Pagar a Largo Plazo"]
[null,null,"Deuda Pública a Largo Plazo"]
[null,null,"Pasivos Diferidos a Largo Plazo"]
[null,null,"Fondos y Bienes de Terceros en Garantía y/o Administración a Largo Plazo"]
[null,null,"Provisiones a Largo Plazo"]
[]
["HACIENDA PÚBLICA/PATRIMONIO",null,null,null,null,null,null,null,null,null,null,null,null,null,null,null,null,null,null,null,null,null,null,null,null,null,null,{"$f":"AB49+AB54","v":0},null,null,null,null,{"$f":"AG49+AG54","v":0}]
[null,"Hacienda Pública/Patrimonio Contribuido",null,null,null,null,null,null,null,null,null,null,null,null,null,null,null,null,null,null,null,null,null,null,null,null,null,{"$f":"SUM(AB50:AF52)","v":0},null,null,null,null,{"$f":"SUM(AG50:AK52)","v":0}]
[null,null,"Aportaciones"]
[null,null,"Donaciones a Capital"]
[null,null,"Actualización de la Hacienda Pública/Patrimonio"]
[]
[null,"Hacienda Pública/Patrimonio Generado",null,null,null,null,null,null,null,null,null,null,null,null,null,null,null,null,null,null,null,null,null,null,null,null,null,{"$f":"SUM(AB55:AF59)","v":0},null,null,null,null,{"$f":"SUM(AG55:AK59)","v":0}]
[null,null,"Resultados del Ejercicio (Ahorro/Desahorro)"]
[null,null,"Resultados de Ejercicios Anteriores"]
[null,null,"Revalúos"]
[null,null,"Reservas"]
[null,null,"Rectificaciones de Resultados de Ejercicios Anteriores"]
[]
[null,"Exceso o Insuficiencia en la Actualización de la Hacienda Pública/Patrimonio",null,null,null,null,null,null,null,null,null,null,null,null,null,null,null,null,null,null,null,null,null,null,null,null,null,{"$f":"SUM(AB63:AF64)","v":0},null,null,null,null,{"$f":"SUM(AG63:AK64)","v":0}]
[]
[null,"Resultado por Posición Monetaria"]
[null,"Resultado por Tendencia de Activos no Monetarios"]

{"sheet":"EFE","index":9,"n_rows":67,"n_cols":38,"rows_kept":67,"cut":false,"hidden":false,"merged":[[2,3,2,5],[12,2,12,31],[13,32,13,36],[14,32,14,36],[8,32,8,36],[8,37,8,41],[9,37,9,41],[10,37,10,41],[11,37,11,41],[12,37,12,41],[13,37,13,41],[14,37,14,41],[13,2,13,31],[14,2,14,31],[9,2,9,31],[10,2,10,31],[11,2,11,31],[5,37,5,41],[5,32,5,36],[5,0,5,31],[9,32,9,36],[10,32,10,36],[11,32,11,36],[12,32,12,36],[17,37,17,41],[18,37,18,41],[15,32,15,36],[16,32,16,36],[16,37,16,41],[15,37,15,41],[15,2,15,31],[59,2,59,31],[53,32,53,36],[53,37,53,41],[20,2,20,31],[21,2,21,31],[22,2,22,31],[23,2,23,31],[24,2,24,31],[25,2,25,31],[17,32,17,36],[18,32,18,36],[16,2,16,31],[17,2,17,31],[18,2,18,31],[33,37,33,41],[34,32,34,36],[35,32,35,36],[26,2,26,31],[27,2,27,31],[28,2,28,31],[29,2,29,31],[30,2,30,31],[31,2,31,31],[19,32,19,36],[26,32,26,36],[27,32,27,36],[28,32,28,36],[29,32,29,36],[30,32,30,36],[31,32,31,36],[20,32,20,36],[21,32,21,36],[22,32,22,36],[23,32,23,36],[24,32,24,36],[25,32,25,36],[19,37,19,41],[20,37,20,41],[21,37,21,41],[22,37,22,41],[23,37,23,41],[24,37,24,41],[25,37,25,41],[26,37,26,41],[27,37,27,41],[28,37,28,41],[29,37,29,41],[55,37,55,41],[54,2,54,31],[54,32,54,36],[54,37,54,41],[42,2,42,31],[42,32,42,36],[42,37,42,41],[47,32,47,36],[47,37,47,41],[45,2,45,31],[45,32,45,36],[45,37,45,41],[43,32,43,36],[43,37,43,41],[44,2,44,31],[44,32,44,36],[44,37,44,41],[51,2,51,31],[51,32,51,36],[51,37,51,41],[36,32,36,36],[32,32,32,36],[55,32,55,36],[30,37,30,41],[31,37,31,41],[38,32,38,36],[38,37,38,41],[39,32,39,36],[39,37,39,41],[40,2,40,31],[40,32,40,36],[40,37,40,41],[41,2,41,31],[41,32,41,36],[41,37,41,41],[50,32,50,36],[50,37,50,41],[52,32,52,36],[52,37,52,41],[35,37,35,41],[36,37,36,41],[32,2,32,31],[33,2,33,31],[34,2,34,31],[35,2,35,31],[32,37,32,41],[56,32,56,36],[56,37,56,41],[33,32,33,36],[34,37,34,41],[0,0,0,41],[1,0,1,41],[64,32,64,36],[64,37,64,41],[66,32,66,36],[66,37,66,41],[60,32,60,36],[60,37,60,41],[62,32,62,36],[62,37,62,41],[46,2,46,31],[46,32,46,36],[46,37,46,41],[59,32,59,36],[59,37,59,41],[58,32,58,36],[58,37,58,41],[56,2,56,31],[57,32,57,36],[57,37,57,41]]}
["Estado de Flujos de Efectivo"]
[{"$f":"ESF!A2","v":"1 enero al 31 de diciembre de 2022"}]
["CLAVE:",null,null,{"$f":"ESF!D3","v":2415},null,null,null,null,null,null,null,null,null,null,null,null,null,null,null,null,null,"(Pesos)"]
["ENTE PÚBLICO:",null,null,null,null,null,{"$f":"ESF!G4","v":"Tepango de Rodríguez"}]
[]
["CONCEPTO",null,null,null,null,null,null,null,null,null,null,null,null,null,null,null,null,null,null,null,null,null,null,null,null,null,null,null,null,null,null,null,2022,null,null,null,null,2021]
[]
["Flujos de Efectivo de Operación"]
[null,"Origen",null,null,null,null,null,null,null,null,null,null,null,null,null,null,null,null,null,null,null,null,null,null,null,null,null,null,null,null,null,null,{"$f":"SUM(AG10:AK19)","v":0},null,null,null,null,{"$f":"SUM(AL10:AP19)","v":0}]
[null,null,"Impuestos"]
[null,null,"Cuotas y Aportaciones de Seguridad Social"]
[null,null,"Contribuciones de mejoras"]
[null,null,"Derechos"]
[null,null,"Productos"]
[null,null,"Aprovechamientos"]
[null,null,"Ingresos por Venta de Bienes y Prestación de Servicios"]
[null,null,"Participaciones, Aportaciones, Convenios, Incentivos Derivados de la Colaboración Fiscal y Fondos Distintos de Aportaciones"]
[null,null,"Transferencias, Asignaciones, Subsidios y Subvenciones, y Pensiones y Jubilaciones"]
[null,null,"Otros Orígenes de Operación"]
[null,"Aplicación",null,null,null,null,null,null,null,null,null,null,null,null,null,null,null,null,null,null,null,null,null,null,null,null,null,null,null,null,null,null,{"$f":"SUM(AG21:AK36)","v":0},null,null,null,null,{"$f":"SUM(AL21:AP36)","v":0}]
[null,null,"Servicios Personales"]
[null,null,"Materiales y Suministros"]
[null,null,"Servicios Generales"]
[null,null,"Transferencias Internas y Asignación al Sector Público"]
[null,null,"Tranferencias al resto del Sector Público"]
[null,null,"Subsidios y Subvenciones"]
[null,null,"Ayudas Sociales"]
[null,null,"Pensiones y Jubilaciones"]
[null,null,"Tranferencias a Fideicomisos, Mandatos y Contratos Análogos"]
[null,null,"Transferencias a la Seguridad Social"]
[null,null,"Donativos"]
[null,null,"Tranferencias al Exterior"]
[null,null,"Participaciones"]
[null,null,"Aportaciones"]
[null,null,"Convenios"]
[null,null,"Otras Aplicaciones de Operación"]
["Flujos Netos de Efectivo por Actividades de Operación",null,null,null,null,null,null,null,null,null,null,null,null,null,null,null,null,null,null,null,null,null,null,null,null,null,null,null,null,null,null,null,{"$f":"AG9-AG20","v":0},null,null,null,null,{"$f":"AL9-AL20","v":0}]
[]
["Flujos de Efectivo de las Actividades de Inversión"]
[null,"Origen",null,null,null,null,null,null,null,null,null,null,null,null,null,null,null,null,null,null,null,null,null,null,null,null,null,null,null,null,null,null,{"$f":"SUM(AG41:AK43)","v":0},null,null,null,null,{"$f":"SUM(AL41:AP43)","v":0}]
[null,null,"Bienes Inmuebles, Infraestructura y Construcciónes en Proceso"]
[null,null,"Bienes Muebles"]
[null,null,"Otros Orígenes de Inversión"]
[null,"Aplicación",null,null,null,null,null,null,null,null,null,null,null,null,null,null,null,null,null,null,null,null,null,null,null,null,null,null,null,null,null,null,{"$f":"SUM(AG45:AK47)","v":0},null,null,null,null,{"$f":"SUM(AL45:AP47)","v":0}]
[null,null,"Bienes Inmuebles, Infraestructura y Construcciónes en Proceso"]
[null,null,"Bienes Muebles"]
[null,null,"Otras Aplicaciones de Inversión"]
["Flujos Netos de Efectivo por Actividades de Inversión",null,null,null,null,null,null,null,null,null,null,null,null,null,null,null,null,null,null,null,null,null,null,null,null,null,null,null,null,null,null,null,{"$f":"AG40-AG44","v":0},null,null,null,null,{"$f":"AL40-AL44","v":0}]
[]
["Flujos de Efectivo de las Actividades de Financiamiento"]
[null,"Origen",null,null,null,null,null,null,null,null,null,null,null,null,null,null,null,null,null,null,null,null,null,null,null,null,null,null,null,null,null,null,{"$f":"SUM(AG52:AK55)","v":0},null,null,null,null,{"$f":"SUM(AL52:AP55)","v":0}]
[null,null,"Endeudamiento Neto"]
[null,null,null,"Interno"]
[null,null,null,"Exrerno"]
[null,null,"Otros Orígenes de Financiamiento"]
[null,"Aplicación",null,null,null,null,null,null,null,null,null,null,null,null,null,null,null,null,null,null,null,null,null,null,null,null,null,null,null,null,null,null,{"$f":"SUM(AG57:AK60)","v":0},null,null,null,null,{"$f":"SUM(AL57:AP60)","v":0}]
[null,null,"Servicios de la Deuda"]
[null,null,null,"Interno"]
[null,null,null,"Exrerno"]
[null,null,"Otras Aplicaciones de Financiamiento"]
["Flujos Netos de Efectivo por Atividades de Financiamiento",null,null,null,null,null,null,null,null,null,null,null,null,null,null,null,null,null,null,null,null,null,null,null,null,null,null,null,null,null,null,null,{"$f":"AG51-AG56","v":0},null,null,null,null,{"$f":"AL51-AL56","v":0}]
[]
["Incremento/Disminución Neta en el Efectivo y Equivalentes al Efectivo",null,null,null,null,null,null,null,null,null,null,null,null,null,null,null,null,null,null,null,null,null,null,null,null,null,null,null,null,null,null,null,{"$f":"AG37+AG48+AG61","v":0},null,null,null,null,{"$f":"AL37+AL48+AL61","v":0}]
[]
["Efectivo y Equivalentes al Efectivo al Inicio del Ejercicio",null,null,null,null,null,null,null,null,null,null,null,null,null,null,null,null,null,null,null,null,null,null,null,null,null,null,null,null,null,null,null,{"$f":"AL67","v":0}]
[]
["Efectivo y Equivalentes al Efectivo al Final del Ejercicio",null,null,null,null,null,null,null,null,null,null,null,null,null,null,null,null,null,null,null,null,null,null,null,null,null,null,null,null,null,null,null,{"$f":"AG63+AG65","v":0},null,null,null,null,{"$f":"AL65+AL63","v":0}]

{"sheet":"EFE (2)","index":10,"n_rows":46,"n_cols":81,"rows_kept":46,"cut":false,"hidden":true,"merged":[[44,75,44,79],[44,80,44,84],[45,75,45,79],[45,80,45,84],[40,2,40,31],[40,32,40,36],[40,37,40,41],[40,75,40,79],[40,80,40,84],[42,32,42,36],[42,37,42,41],[42,75,42,79],[42,80,42,84],[38,2,38,31],[38,32,38,36],[38,37,38,41],[39,2,39,31],[39,32,39,36],[39,37,39,41],[37,2,37,31],[37,32,37,36],[37,37,37,41],[37,45,37,74],[37,75,37,79],[37,80,37,84],[36,2,36,31],[36,32,36,36],[36,37,36,41],[36,46,36,74],[36,75,36,79],[36,80,36,84],[34,80,34,84],[35,2,35,31],[35,32,35,36],[35,37,35,41],[35,46,35,74],[35,75,35,79],[35,80,35,84],[33,2,33,31],[33,32,33,36],[33,37,33,41],[33,75,33,79],[33,80,33,84],[34,2,34,31],[34,32,34,36],[34,37,34,41],[34,45,34,74],[34,75,34,79],[31,2,31,31],[31,32,31,36],[31,37,31,41],[32,2,32,31],[32,32,32,36],[32,37,32,41],[30,2,30,31],[30,32,30,36],[30,37,30,41],[30,45,30,74],[30,75,30,79],[30,80,30,84],[29,2,29,31],[29,32,29,36],[29,37,29,41],[29,46,29,74],[29,75,29,79],[29,80,29,84],[28,2,28,31],[28,32,28,36],[28,37,28,41],[28,46,28,74],[28,75,28,79],[28,80,28,84],[26,75,26,79],[26,80,26,84],[27,2,27,31],[27,32,27,36],[27,37,27,41],[27,45,27,74],[27,75,27,79],[27,80,27,84],[24,32,24,36],[24,37,24,41],[25,2,25,31],[25,32,25,36],[25,37,25,41],[26,2,26,31],[26,32,26,36],[26,37,26,41],[21,45,21,74],[21,75,21,79],[21,80,21,84],[22,2,22,31],[22,32,22,36],[22,37,22,41],[20,2,20,31],[20,32,20,36],[20,37,20,41],[21,2,21,31],[21,32,21,36],[21,37,21,41],[18,2,19,31],[18,32,19,36],[18,37,19,41],[18,45,18,74],[18,75,18,79],[18,80,18,84],[17,2,17,31],[17,32,17,36],[17,37,17,41],[17,45,17,74],[17,75,17,79],[17,80,17,84],[15,75,15,79],[15,80,15,84],[16,2,16,31],[16,32,16,36],[16,37,16,41],[16,45,16,74],[16,75,16,79],[16,80,16,84],[14,2,14,31],[14,32,14,36],[14,37,14,41],[15,2,15,31],[15,32,15,36],[15,37,15,41],[13,2,13,31],[13,32,13,36],[13,37,13,41],[13,45,13,74],[13,75,13,79],[13,80,13,84],[12,2,12,31],[12,32,12,36],[12,37,12,41],[12,45,12,74],[12,75,12,79],[12,80,12,84],[11,2,11,31],[11,32,11,36],[11,37,11,41],[11,45,11,74],[11,75,11,79],[11,80,11,84],[8,75,8,79],[8,80,8,84],[10,32,10,36],[10,37,10,41],[10,75,10,79],[10,80,10,84],[0,0,0,84],[1,0,1,84],[2,0,2,84],[3,3,3,5],[6,0,6,31],[6,32,6,36],[6,37,6,41],[6,43,6,74],[6,75,6,79],[6,80,6,84]]}
["Cuenta Pública 2016"]
["Estado de Flujos de Efectivo"]
[{"$f":"CONCATENATE(\"Del \",(VLOOKUP(D4,#REF!,8,FALSE)),\" al \",(VLOOKUP(D4,#REF!,9,FALSE)),\" de 2016\")","v":{"$error":"#REF!"}}]
["CLAVE:",null,null,{"$f":"ESF!D3","v":"1906-08-11"},null,null,null,null,null,null,null,null,null,null,null,null,null,null,null,null,null,null,null,null,null,null,null,null,null,null,null,null,null,null,null,null,null,null,null,null,null,null,"(Pesos)"]
["ENTE PÚBLICO:",null,null,null,null,null,{"$f":"ESF!G4","v":"Tepango de Rodríguez"}]
[]
["CONCEPTO",null,null,null,null,null,null,null,null,null,null,null,null,null,null,null,null,null,null,null,null,null,null,null,null,null,null,null,null,null,null,null,2016,null,null,null,null,2015,null,null,null,null,null,"CONCEPTO",null,null,null,null,null,null,null,null,null,null,null,null,null,null,null,null,null,null,null,null,null,null,null,null,null,null,null,null,null,null,null,2016,null,null,null,null,2015]
[]
["Flujos de Efectivo de las Actividades de Operación",null,null,null,null,null,null,null,null,null,null,null,null,null,null,null,null,null,null,null,null,null,null,null,null,null,null,null,null,null,null,null,null,null,null,null,null,null,null,null,null,null,null,"Flujos de Efectivo de las Actividades de Inversión"]
[]
[null,"Origen",null,null,null,null,null,null,null,null,null,null,null,null,null,null,null,null,null,null,null,null,null,null,null,null,null,null,null,null,null,null,{"$f":"SUM(AG12:AK23)","v":0},null,null,null,null,{"$f":"SUM(AL12:AP23)","v":0},null,null,null,null,null,null,"Origen",null,null,null,null,null,null,null,null,null,null,null,null,null,null,null,null,null,null,null,null,null,null,null,null,null,null,null,null,null,null,{"$f":"SUM(BX12:CB14)","v":0},null,null,null,null,{"$f":"SUM(CC12:CG14)","v":0}]
[null,null,"Impuestos",null,null,null,null,null,null,null,null,null,null,null,null,null,null,null,null,null,null,null,null,null,null,null,null,null,null,null,null,null,null,null,null,null,null,null,null,null,null,null,null,null,null,"Bienes Inmuebles, Infraestructura y Construcciónes en Proceso"]
[null,null,"Cuotas y Aportaciones de Seguridad Social",null,null,null,null,null,null,null,null,null,null,null,null,null,null,null,null,null,null,null,null,null,null,null,null,null,null,null,null,null,null,null,null,null,null,null,null,null,null,null,null,null,null,"Bienes Muebles"]
[null,null,"Contribuciones de mejoras",null,null,null,null,null,null,null,null,null,null,null,null,null,null,null,null,null,null,null,null,null,null,null,null,null,null,null,null,null,null,null,null,null,null,null,null,null,null,null,null,null,null,"Otros Orígenes de Inversión"]
[null,null,"Derechos"]
[null,null,"Productos de Tipo Corriente",null,null,null,null,null,null,null,null,null,null,null,null,null,null,null,null,null,null,null,null,null,null,null,null,null,null,null,null,null,null,null,null,null,null,null,null,null,null,null,null,null,"Aplicación",null,null,null,null,null,null,null,null,null,null,null,null,null,null,null,null,null,null,null,null,null,null,null,null,null,null,null,null,null,null,{"$f":"SUM(BX17:CB19)","v":0},null,null,null,null,{"$f":"SUM(CC17:CG19)","v":0}]
[null,null,"Aprovechamientos de Tipo Corriente",null,null,null,null,null,null,null,null,null,null,null,null,null,null,null,null,null,null,null,null,null,null,null,null,null,null,null,null,null,null,null,null,null,null,null,null,null,null,null,null,null,null,"Bienes Inmuebles, Infraestructura y Construcciónes en Proceso"]
[null,null,"Ingresos por Venta de Bienes y Servicios",null,null,null,null,null,null,null,null,null,null,null,null,null,null,null,null,null,null,null,null,null,null,null,null,null,null,null,null,null,null,null,null,null,null,null,null,null,null,null,null,null,null,"Bienes Muebles"]
[null,null,"Ingresos no Comprendidos en las Fracciones de la Ley de Ingresos Causados en Ejercicios Fiscales Anteriores Pendientes de Liquidación o Pago",null,null,null,null,null,null,null,null,null,null,null,null,null,null,null,null,null,null,null,null,null,null,null,null,null,null,null,null,null,null,null,null,null,null,null,null,null,null,null,null,null,null,"Otras Aplicaciones de Inversión"]
[]
[null,null,"Participaciones y Aportaciones"]
[null,null,"Transferencias, Asignaciones y Subsidios y Otras Ayudas",null,null,null,null,null,null,null,null,null,null,null,null,null,null,null,null,null,null,null,null,null,null,null,null,null,null,null,null,null,null,null,null,null,null,null,null,null,null,null,null,null,null,"Flujos Netos de Efectivo por Actividades de Inversión",null,null,null,null,null,null,null,null,null,null,null,null,null,null,null,null,null,null,null,null,null,null,null,null,null,null,null,null,null,{"$f":"BX11-BX16","v":0},null,null,null,null,{"$f":"CC11-CC16","v":0}]
[null,null,"Otros Orígenes de Operación"]
[]
[null,"Aplicación",null,null,null,null,null,null,null,null,null,null,null,null,null,null,null,null,null,null,null,null,null,null,null,null,null,null,null,null,null,null,{"$f":"SUM(AG26:AK41)","v":0},null,null,null,null,{"$f":"SUM(AL26:AP41)","v":0},null,null,null,null,null,"Flujos de Efectivo de las Actividades de Financiamiento"]
[null,null,"Servicios Personales"]
[null,null,"Materiales y Suministros",null,null,null,null,null,null,null,null,null,null,null,null,null,null,null,null,null,null,null,null,null,null,null,null,null,null,null,null,null,null,null,null,null,null,null,null,null,null,null,null,null,"Origen",null,null,null,null,null,null,null,null,null,null,null,null,null,null,null,null,null,null,null,null,null,null,null,null,null,null,null,null,null,null,{"$f":"SUM(BX28:CB31)","v":0},null,null,null,null,{"$f":"SUM(CC28:CG31)","v":0}]
[null,null,"Servicios Generales",null,null,null,null,null,null,null,null,null,null,null,null,null,null,null,null,null,null,null,null,null,null,null,null,null,null,null,null,null,null,null,null,null,null,null,null,null,null,null,null,null,null,"Endeudamiento Neto"]
[null,null,"Transferencias Internas y Asignación al Sector Público",null,null,null,null,null,null,null,null,null,null,null,null,null,null,null,null,null,null,null,null,null,null,null,null,null,null,null,null,null,null,null,null,null,null,null,null,null,null,null,null,null,null,null,"Interno"]
[null,null,"Tranferencias al resto del Sector Público",null,null,null,null,null,null,null,null,null,null,null,null,null,null,null,null,null,null,null,null,null,null,null,null,null,null,null,null,null,null,null,null,null,null,null,null,null,null,null,null,null,null,null,"Externo"]
[null,null,"Subsidios y Subvenciones",null,null,null,null,null,null,null,null,null,null,null,null,null,null,null,null,null,null,null,null,null,null,null,null,null,null,null,null,null,null,null,null,null,null,null,null,null,null,null,null,null,null,"Otros Origenes de Financiamiento"]
[null,null,"Ayudas Sociales"]
[null,null,"Pensiones y Jubilaciones"]
[null,null,"Transferencias a Fideicomisos, Mandatos y Contratos Análogos",null,null,null,null,null,null,null,null,null,null,null,null,null,null,null,null,null,null,null,null,null,null,null,null,null,null,null,null,null,null,null,null,null,null,null,null,null,null,null,null,null,"Aplicación",null,null,null,null,null,null,null,null,null,null,null,null,null,null,null,null,null,null,null,null,null,null,null,null,null,null,null,null,null,null,{"$f":"SUM(BX35:CB38)","v":0},null,null,null,null,{"$f":"SUM(CC35:CG38)","v":0}]
[null,null,"Transferencias a la Seguridad Social",null,null,null,null,null,null,null,null,null,null,null,null,null,null,null,null,null,null,null,null,null,null,null,null,null,null,null,null,null,null,null,null,null,null,null,null,null,null,null,null,null,null,"Servcios de la Deuda"]
[null,null,"Donativos",null,null,null,null,null,null,null,null,null,null,null,null,null,null,null,null,null,null,null,null,null,null,null,null,null,null,null,null,null,null,null,null,null,null,null,null,null,null,null,null,null,null,null,"Interno"]
[null,null,"Tranferencias al Exterior",null,null,null,null,null,null,null,null,null,null,null,null,null,null,null,null,null,null,null,null,null,null,null,null,null,null,null,null,null,null,null,null,null,null,null,null,null,null,null,null,null,null,null,"Externo"]
[null,null,"Participaciones",null,null,null,null,null,null,null,null,null,null,null,null,null,null,null,null,null,null,null,null,null,null,null,null,null,null,null,null,null,null,null,null,null,null,null,null,null,null,null,null,null,null,"Otras Aplicaciones de Financiamiento"]
[null,null,"Aportaciones"]
[null,null,"Convenios"]
[null,null,"Otras Aplicaciones de Operación",null,null,null,null,null,null,null,null,null,null,null,null,null,null,null,null,null,null,null,null,null,null,null,null,null,null,null,null,null,null,null,null,null,null,null,null,null,null,null,null,"Flujos netos de Efectivo por Atividades de Financiamiento",null,null,null,null,null,null,null,null,null,null,null,null,null,null,null,null,null,null,null,null,null,null,null,null,null,null,null,null,null,null,null,{"$f":"BX27-BX34","v":0},null,null,null,null,{"$f":"CC27-CC34","v":0}]
[]
[null,"Flujos Netos de Efectivo por Actividades de Operación",null,null,null,null,null,null,null,null,null,null,null,null,null,null,null,null,null,null,null,null,null,null,null,null,null,null,null,null,null,null,{"$f":"AG11-AG25","v":0},null,null,null,null,{"$f":"AL11-AL25","v":0},null,null,null,null,null,"Incremento/Disminución Neta en el Efectivo y Equivalentes al Efectivo",null,null,null,null,null,null,null,null,null,null,null,null,null,null,null,null,null,null,null,null,null,null,null,null,null,null,null,null,null,null,null,{"$f":"AG43+BX22+BX41","v":0},null,null,null,null,{"$f":"AL43+CC22+CC41","v":0}]
[]
[null,null,null,null,null,null,null,null,null,null,null,null,null,null,null,null,null,null,null,null,null,null,null,null,null,null,null,null,null,null,null,null,null,null,null,null,null,null,null,null,null,null,null,"Efectivo y Equivalentes al Efectivo al Inicio del Ejercicio",null,null,null,null,null,null,null,null,null,null,null,null,null,null,null,null,null,null,null,null,null,null,null,null,null,null,null,null,null,null,null,{"$f":"CC46","v":0}]
[null,null,null,null,null,null,null,null,null,null,null,null,null,null,null,null,null,null,null,null,null,null,null,null,null,null,null,null,null,null,null,null,null,null,null,null,null,null,null,null,null,null,null,"Efectivo y Equivalentes al Efectivo al Final del Ejercicio",null,null,null,null,null,null,null,null,null,null,null,null,null,null,null,null,null,null,null,null,null,null,null,null,null,null,null,null,null,null,null,{"$f":"BX43+BX45","v":0},null,null,null,null,{"$f":"CC45+CC43","v":0}]

{"sheet":"EAA","index":11,"n_rows":32,"n_cols":56,"rows_kept":32,"cut":false,"hidden":false,"merged":[[9,27,9,33],[9,34,9,40],[9,41,9,47],[9,48,9,54],[9,55,9,61],[25,34,25,40],[25,41,25,47],[0,0,0,61],[1,0,1,61],[2,3,2,5],[5,0,7,26],[5,27,7,33],[5,34,7,40],[5,41,7,47],[5,48,7,54],[5,55,7,61],[14,55,14,61],[15,27,15,33],[15,34,15,40],[15,41,15,47],[15,48,15,54],[15,55,15,61],[13,27,13,33],[13,34,13,40],[13,41,13,47],[13,48,13,54],[13,55,13,61],[12,27,12,33],[12,34,12,40],[12,41,12,47],[12,48,12,54],[12,55,12,61],[20,27,20,33],[20,34,20,40],[20,41,20,47],[20,48,20,54],[20,55,20,61],[16,27,16,33],[16,34,16,40],[16,41,16,47],[16,48,16,54],[16,55,16,61],[18,27,18,33],[18,34,18,40],[18,41,18,47],[18,48,18,54],[18,55,18,61],[14,27,14,33],[14,34,14,40],[14,41,14,47],[14,48,14,54],[17,27,17,33],[17,34,17,40],[17,41,17,47],[17,48,17,54],[17,55,17,61],[21,27,21,33],[21,34,21,40],[21,41,21,47],[21,48,21,54],[21,55,21,61],[27,55,27,61],[22,27,22,33],[22,34,22,40],[22,41,22,47],[22,48,22,54],[22,55,22,61],[23,48,23,54],[23,55,23,61],[25,48,25,54],[25,55,25,61],[26,48,26,54],[26,55,26,61],[24,48,24,54],[24,55,24,61],[26,27,26,33],[26,34,26,40],[26,41,26,47],[23,27,23,33],[23,34,23,40],[23,41,23,47],[24,27,24,33],[24,34,24,40],[24,41,24,47],[25,27,25,33],[31,27,31,33],[31,34,31,40],[31,41,31,47],[31,48,31,54],[31,55,31,61],[11,27,11,33],[11,34,11,40],[11,41,11,47],[11,48,11,54],[11,55,11,61],[28,27,28,33],[28,34,28,40],[28,41,28,47],[28,48,28,54],[28,55,28,61],[29,27,29,33],[29,34,29,40],[29,41,29,47],[29,48,29,54],[29,55,29,61],[27,27,27,33],[27,34,27,40],[27,41,27,47],[27,48,27,54]]}
["Estado Analítico del Activo"]
[{"$f":"ESF!A2","v":"1 enero al 31 de diciembre de 2022"}]
["CLAVE:",null,null,{"$f":"ESF!D3","v":2415},null,null,null,null,null,null,null,null,null,null,null,null,null,null,null,null,null,null,null,null,null,null,null,null,null,null,"(Pesos)"]
["ENTE PÚBLICO:",null,null,null,null,null,{"$f":"ESF!G4","v":"Tepango de Rodríguez"}]
[]
["CONCEPTO",null,null,null,null,null,null,null,null,null,null,null,null,null,null,null,null,null,null,null,null,null,null,null,null,null,null,"Saldo Inicial\n1",null,null,null,null,null,null,"Cargos del Periodo\n2",null,null,null,null,null,null,"Abonos del Periodo\n3",null,null,null,null,null,null,"Saldo Final\n4=(1+2-3)",null,null,null,null,null,null,"Variación del Periodo\n4-1"]
[]
[]
[]
[null,"ACTIVO",null,null,null,null,null,null,null,null,null,null,null,null,null,null,null,null,null,null,null,null,null,null,null,null,null,{"$f":"AB32","v":0},null,null,null,null,null,null,{"$f":"AI32","v":0},null,null,null,null,null,null,{"$f":"AP32","v":0},null,null,null,null,null,null,{"$f":"AW32","v":0},null,null,null,null,null,null,{"$f":"BD32","v":0}]
[]
[null,"Activo Circulante",null,null,null,null,null,null,null,null,null,null,null,null,null,null,null,null,null,null,null,null,null,null,null,null,null,{"$f":"SUM(AB13:AH19)","v":0},null,null,null,null,null,null,{"$f":"SUM(AI13:AO19)","v":0},null,null,null,null,null,null,{"$f":"SUM(AP13:AV19)","v":0},null,null,null,null,null,null,{"$f":"AB12+AI12-AP12","v":0},null,null,null,null,null,null,{"$f":"AW12-AB12","v":0}]
[null,"Efectivo y Equivalentes",null,null,null,null,null,null,null,null,null,null,null,null,null,null,null,null,null,null,null,null,null,null,null,null,null,null,null,null,null,null,null,null,null,null,null,null,null,null,null,null,null,null,null,null,null,null,{"$f":"AB13+AI13-AP13","v":0},null,null,null,null,null,null,{"$f":"AW13-AB13","v":0}]
[null,"Derechos a Recibir Efectivo o Equivalentes",null,null,null,null,null,null,null,null,null,null,null,null,null,null,null,null,null,null,null,null,null,null,null,null,null,null,null,null,null,null,null,null,null,null,null,null,null,null,null,null,null,null,null,null,null,null,0,null,null,null,null,null,null,0]
[null,"Derechos a Recibir Bienes o Servicios",null,null,null,null,null,null,null,null,null,null,null,null,null,null,null,null,null,null,null,null,null,null,null,null,null,null,null,null,null,null,null,null,null,null,null,null,null,null,null,null,null,null,null,null,null,null,0,null,null,null,null,null,null,0]
[null,"Inventarios",null,null,null,null,null,null,null,null,null,null,null,null,null,null,null,null,null,null,null,null,null,null,null,null,null,null,null,null,null,null,null,null,null,null,null,null,null,null,null,null,null,null,null,null,null,null,0,null,null,null,null,null,null,0]
[null,"Almacenes",null,null,null,null,null,null,null,null,null,null,null,null,null,null,null,null,null,null,null,null,null,null,null,null,null,null,null,null,null,null,null,null,null,null,null,null,null,null,null,null,null,null,null,null,null,null,0,null,null,null,null,null,null,0]
[null,"Estimación por Pérdida o Derecho de Activos Circulantes",null,null,null,null,null,null,null,null,null,null,null,null,null,null,null,null,null,null,null,null,null,null,null,null,null,null,null,null,null,null,null,null,null,null,null,null,null,null,null,null,null,null,null,null,null,null,0,null,null,null,null,null,null,0]
[null,"Otros Activos Circulantes",null,null,null,null,null,null,null,null,null,null,null,null,null,null,null,null,null,null,null,null,null,null,null,null,null,null,null,null,null,null,null,null,null,null,null,null,null,null,null,null,null,null,null,null,null,null,0,null,null,null,null,null,null,0]
[]
[null,"Activo No Circulante",null,null,null,null,null,null,null,null,null,null,null,null,null,null,null,null,null,null,null,null,null,null,null,null,null,{"$f":"SUM(AB22:AH30)","v":0},null,null,null,null,null,null,{"$f":"SUM(AI22:AO30)","v":0},null,null,null,null,null,null,{"$f":"SUM(AP22:AV30)","v":0},null,null,null,null,null,null,{"$f":"AB21+AI21-AP21","v":0},null,null,null,null,null,null,{"$f":"AW21-AB21","v":0}]
[null,"Inversiones Financieras a Largo Plazo",null,null,null,null,null,null,null,null,null,null,null,null,null,null,null,null,null,null,null,null,null,null,null,null,null,null,null,null,null,null,null,null,null,null,null,null,null,null,null,null,null,null,null,null,null,null,{"$f":"AB22+AI22-AP22","v":0},null,null,null,null,null,null,{"$f":"AW22-AB22","v":0}]
[null,"Derechos a Recibir Efectivo o Equivalentes a Largo Plazo",null,null,null,null,null,null,null,null,null,null,null,null,null,null,null,null,null,null,null,null,null,null,null,null,null,null,null,null,null,null,null,null,null,null,null,null,null,null,null,null,null,null,null,null,null,null,0,null,null,null,null,null,null,0]
[null,"Bienes Inmuebles, Infraestructura y Construcciones en Proceso",null,null,null,null,null,null,null,null,null,null,null,null,null,null,null,null,null,null,null,null,null,null,null,null,null,null,null,null,null,null,null,null,null,null,null,null,null,null,null,null,null,null,null,null,null,null,{"$f":"AB24+AI24-AP24","v":0},null,null,null,null,null,null,{"$f":"AW24-AB24","v":0}]
[null,"Bienes Muebles",null,null,null,null,null,null,null,null,null,null,null,null,null,null,null,null,null,null,null,null,null,null,null,null,null,null,null,null,null,null,null,null,null,null,null,null,null,null,null,null,null,null,null,null,null,null,0,null,null,null,null,null,null,0]
[null,"Activos Intangibles",null,null,null,null,null,null,null,null,null,null,null,null,null,null,null,null,null,null,null,null,null,null,null,null,null,null,null,null,null,null,null,null,null,null,null,null,null,null,null,null,null,null,null,null,null,null,0,null,null,null,null,null,null,0]
[null,"Depreciación, Deterioro y Armortización Acumulada de Bienes ",null,null,null,null,null,null,null,null,null,null,null,null,null,null,null,null,null,null,null,null,null,null,null,null,null,null,null,null,null,null,null,null,null,null,null,null,null,null,null,null,null,null,null,null,null,null,0,null,null,null,null,null,null,0]
[null,"Activos Diferidos",null,null,null,null,null,null,null,null,null,null,null,null,null,null,null,null,null,null,null,null,null,null,null,null,null,null,null,null,null,null,null,null,null,null,null,null,null,null,null,null,null,null,null,null,null,null,0,null,null,null,null,null,null,0]
[null,"Estimación por Pérdida o Deterioro de Activos no Circulantes",null,null,null,null,null,null,null,null,null,null,null,null,null,null,null,null,null,null,null,null,null,null,null,null,null,null,null,null,null,null,null,null,null,null,null,null,null,null,null,null,null,null,null,null,null,null,0,null,null,null,null,null,null,0]
[null,"Otros Activos no Circulantes",null,null,null,null,null,null,null,null,null,null,null,null,null,null,null,null,null,null,null,null,null,null,null,null,null,null,null,null,null,null,null,null,null,null,null,null,null,null,null,null,null,null,null,null,null,null,0,null,null,null,null,null,null,0]
[]
[null,"TOTAL DEL ACTIVO",null,null,null,null,null,null,null,null,null,null,null,null,null,null,null,null,null,null,null,null,null,null,null,null,null,{"$f":"AB12+AB21","v":0},null,null,null,null,null,null,{"$f":"AI12+AI21","v":0},null,null,null,null,null,null,{"$f":"AP12+AP21","v":0},null,null,null,null,null,null,{"$f":"AW12+AW21","v":0},null,null,null,null,null,null,{"$f":"BD12+BD21","v":0}]

{"sheet":"EADOP","index":12,"n_rows":41,"n_cols":52,"rows_kept":41,"cut":false,"hidden":false,"merged":[[0,0,0,58],[1,0,1,58],[2,3,2,5],[5,0,7,26],[5,27,7,34],[5,35,7,42],[5,43,7,50],[5,51,7,58],[11,43,11,50],[11,51,11,58],[17,27,17,34],[17,35,17,42],[17,43,17,50],[17,51,17,58],[14,35,14,42],[12,43,12,50],[12,51,12,58],[13,43,13,50],[13,51,13,58],[14,43,14,50],[14,51,14,58],[20,27,20,34],[20,35,20,42],[20,43,20,50],[20,51,20,58],[18,27,18,34],[18,35,18,42],[18,43,18,50],[18,51,18,58],[19,27,19,34],[19,35,19,42],[19,43,19,50],[19,51,19,58],[26,27,26,34],[26,35,26,42],[26,43,26,50],[26,51,26,58],[22,43,22,50],[22,51,22,58],[27,27,27,34],[27,35,27,42],[27,43,27,50],[27,51,27,58],[28,27,28,34],[28,35,28,42],[28,43,28,50],[28,51,28,58],[31,27,31,34],[31,35,31,42],[31,43,31,50],[31,51,31,58],[32,27,32,34],[32,35,32,42],[32,43,32,50],[32,51,32,58],[38,27,38,34],[38,35,38,42],[40,43,40,50],[40,51,40,58],[12,27,12,34],[13,27,13,34],[14,27,14,34],[12,35,12,42],[13,35,13,42],[33,27,33,34],[33,35,33,42],[33,43,33,50],[33,51,33,58],[34,27,34,34],[34,35,34,42],[34,43,34,50],[37,43,37,50],[37,51,37,58],[38,43,38,50],[38,51,38,58],[16,43,16,50],[16,51,16,58],[25,43,25,50],[25,51,25,58],[36,43,36,50],[36,51,36,58],[34,51,34,58],[30,43,30,50],[30,51,30,58]]}
["Estado Analítico de la Deuda y Otros Pasivos"]
[{"$f":"ESF!A2","v":"1 enero al 31 de diciembre de 2022"}]
["CLAVE:",null,null,{"$f":"ESF!D3","v":2415},null,null,null,null,null,null,null,null,null,null,null,null,null,null,null,null,null,null,null,null,null,null,null,null,null,null,null,"(Pesos)"]
["ENTE PÚBLICO:",null,null,null,null,null,{"$f":"ESF!G4","v":"Tepango de Rodríguez"}]
[]
["Denominación de las Deudas",null,null,null,null,null,null,null,null,null,null,null,null,null,null,null,null,null,null,null,null,null,null,null,null,null,null,"Moneda de Contratación",null,null,null,null,null,null,null,"Institución o País Acreedor",null,null,null,null,null,null,null,"Saldo Inicial del Periodo",null,null,null,null,null,null,null,"Saldo Final del Periodo"]
[]
[]
[]
["DEUDA PÚBLICA"]
[null,null,null,null,null,null,null,null,"Corto Plazo"]
[null,"Deuda Interna",null,null,null,null,null,null,null,null,null,null,null,null,null,null,null,null,null,null,null,null,null,null,null,null,null,null,null,null,null,null,null,null,null,null,null,null,null,null,null,null,null,{"$f":"SUM(AR13:AY15)","v":0},null,null,null,null,null,null,null,{"$f":"SUM(AZ13:BG15)","v":0}]
[null,null,"Instituciones de Crédito",null,null,null,null,null,null,null,null,null,null,null,null,null,null,null,null,null,null,null,null,null,null,null,null,"Peso",null,null,null,null,null,null,null,"México"]
[null,null,"Títulos y Valores",null,null,null,null,null,null,null,null,null,null,null,null,null,null,null,null,null,null,null,null,null,null,null,null,"Peso",null,null,null,null,null,null,null,"México"]
[null,null,"Arrendamientos Financieros",null,null,null,null,null,null,null,null,null,null,null,null,null,null,null,null,null,null,null,null,null,null,null,null,"Peso",null,null,null,null,null,null,null,"México"]
[]
[null,"Deuda Externa",null,null,null,null,null,null,null,null,null,null,null,null,null,null,null,null,null,null,null,null,null,null,null,null,null,null,null,null,null,null,null,null,null,null,null,null,null,null,null,null,null,{"$f":"SUM(AR18:AY21)","v":0},null,null,null,null,null,null,null,{"$f":"SUM(AZ18:BG21)","v":0}]
[null,null,"Organismos Financieros",null,null,null,null,null,null,null,null,null,null,null,null,null,null,null,null,null,null,null,null,null,null,null,null,"Peso",null,null,null,null,null,null,null,"México"]
[null,null,"Deuda Bilateral",null,null,null,null,null,null,null,null,null,null,null,null,null,null,null,null,null,null,null,null,null,null,null,null,"Peso",null,null,null,null,null,null,null,"México"]
[null,null,"Títulos y Valores",null,null,null,null,null,null,null,null,null,null,null,null,null,null,null,null,null,null,null,null,null,null,null,null,"Peso",null,null,null,null,null,null,null,"México"]
[null,null,"Arrendamientos Financieros",null,null,null,null,null,null,null,null,null,null,null,null,null,null,null,null,null,null,null,null,null,null,null,null,"Peso",null,null,null,null,null,null,null,"México"]
[]
[null,"Subtotal de Deuda Pública a Corto Plazo ",null,null,null,null,null,null,null,null,null,null,null,null,null,null,null,null,null,null,null,null,null,null,null,null,null,null,null,null,null,null,null,null,null,null,null,null,null,null,null,null,null,{"$f":"AR12+AR17","v":0},null,null,null,null,null,null,null,{"$f":"AZ12+AZ17","v":0}]
[]
[null,null,null,null,null,null,null,null,"Largo Plazo"]
[null,"Deuda Interna",null,null,null,null,null,null,null,null,null,null,null,null,null,null,null,null,null,null,null,null,null,null,null,null,null,null,null,null,null,null,null,null,null,null,null,null,null,null,null,null,null,{"$f":"SUM(AR27:AY29)","v":0},null,null,null,null,null,null,null,{"$f":"SUM(AZ27:BG29)","v":0}]
[null,null,"Instituciones de Crédito",null,null,null,null,null,null,null,null,null,null,null,null,null,null,null,null,null,null,null,null,null,null,null,null,"Peso",null,null,null,null,null,null,null,"México"]
[null,null,"Títulos y Valores",null,null,null,null,null,null,null,null,null,null,null,null,null,null,null,null,null,null,null,null,null,null,null,null,"Peso",null,null,null,null,null,null,null,"México"]
[null,null,"Arrendamientos Financieros",null,null,null,null,null,null,null,null,null,null,null,null,null,null,null,null,null,null,null,null,null,null,null,null,"Peso",null,null,null,null,null,null,null,"México"]
[]
[null,"Deuda Externa",null,null,null,null,null,null,null,null,null,null,null,null,null,null,null,null,null,null,null,null,null,null,null,null,null,null,null,null,null,null,null,null,null,null,null,null,null,null,null,null,null,{"$f":"SUM(AR32:AY35)","v":0},null,null,null,null,null,null,null,{"$f":"SUM(AZ32:BG35)","v":0}]
[null,null,"Organismos Financieros Internacionales",null,null,null,null,null,null,null,null,null,null,null,null,null,null,null,null,null,null,null,null,null,null,null,null,"Peso",null,null,null,null,null,null,null,"México"]
[null,null,"Deuda Bilateral",null,null,null,null,null,null,null,null,null,null,null,null,null,null,null,null,null,null,null,null,null,null,null,null,"Peso",null,null,null,null,null,null,null,"México"]
[null,null,"Títulos y Valores",null,null,null,null,null,null,null,null,null,null,null,null,null,null,null,null,null,null,null,null,null,null,null,null,"Peso",null,null,null,null,null,null,null,"México"]
[null,null,"Arrendamientos Financieros",null,null,null,null,null,null,null,null,null,null,null,null,null,null,null,null,null,null,null,null,null,null,null,null,"Peso",null,null,null,null,null,null,null,"México"]
[]
[null,"Subtotal a Largo Plazo",null,null,null,null,null,null,null,null,null,null,null,null,null,null,null,null,null,null,null,null,null,null,null,null,null,null,null,null,null,null,null,null,null,null,null,null,null,null,null,null,null,{"$f":"AR26+AR31","v":0},null,null,null,null,null,null,null,{"$f":"AZ26+AZ31","v":0}]
[]
["Total de Otros Pasivos  (otros conceptos que no se toman en cuenta",null,null,null,null,null,null,null,null,null,null,null,null,null,null,null,null,null,null,null,null,null,null,null,null,null,null,"Peso",null,null,null,null,null,null,null,"México"]
[]
["Total de Deuda y Otros Pasivos",null,null,null,null,null,null,null,null,null,null,null,null,null,null,null,null,null,null,null,null,null,null,null,null,null,null,null,null,null,null,null,null,null,null,null,null,null,null,null,null,null,null,{"$f":"AR23+AR37+AR39","v":0},null,null,null,null,null,null,null,{"$f":"AZ23+AZ37+AZ39","v":0}]

{"sheet":"EAI","index":13,"n_rows":48,"n_cols":63,"rows_kept":48,"cut":false,"hidden":false,"merged":[[0,0,0,68],[1,0,1,68],[2,3,2,5],[5,0,8,26],[28,34,28,40],[28,41,28,47],[28,55,28,61],[28,62,28,68],[6,55,7,61],[5,27,5,61],[5,62,7,68],[8,27,8,33],[8,34,8,40],[8,41,8,47],[8,48,8,54],[8,55,8,61],[8,62,8,68],[6,27,7,33],[6,34,7,40],[6,41,7,47],[6,48,7,54],[11,48,11,54],[11,55,11,61],[11,62,11,68],[33,27,33,33],[33,34,33,40],[33,41,33,47],[33,55,33,61],[33,62,33,68],[30,27,30,33],[30,34,30,40],[30,41,30,47],[30,55,30,61],[30,62,30,68],[31,27,31,33],[31,34,31,40],[31,41,31,47],[31,55,31,61],[31,62,31,68],[32,62,32,68],[33,48,33,54],[38,27,38,33],[38,34,38,40],[38,41,38,47],[38,55,38,61],[38,62,38,68],[34,27,34,33],[34,34,34,40],[34,41,34,47],[34,55,34,61],[35,27,35,33],[35,34,35,40],[35,41,35,47],[35,55,35,61],[34,62,34,68],[37,27,37,33],[37,34,37,40],[37,41,37,47],[12,27,12,33],[12,34,12,40],[12,41,12,47],[12,48,12,54],[12,55,12,61],[12,62,12,68],[11,27,11,33],[11,34,11,40],[11,41,11,47],[14,27,14,33],[14,34,14,40],[14,41,14,47],[14,48,14,54],[14,55,14,61],[14,62,14,68],[13,27,13,33],[13,34,13,40],[13,41,13,47],[13,48,13,54],[13,55,13,61],[13,62,13,68],[15,27,15,33],[15,34,15,40],[15,41,15,47],[15,48,15,54],[15,55,15,61],[15,62,15,68],[16,27,16,33],[16,34,16,40],[16,41,16,47],[16,48,16,54],[16,55,16,61],[16,62,16,68],[10,27,10,33],[10,34,10,40],[10,41,10,47],[10,48,10,54],[10,55,10,61],[10,62,10,68],[19,27,19,33],[19,34,19,40],[19,41,19,47],[19,48,19,54],[19,55,19,61],[19,62,19,68],[18,27,18,33],[18,34,18,40],[18,41,18,47],[18,48,18,54],[18,55,18,61],[18,62,18,68],[17,27,17,33],[17,34,17,40],[17,41,17,47],[17,48,17,54],[17,55,17,61],[17,62,17,68],[20,48,20,54],[20,62,21,68],[23,0,26,26],[23,27,23,61],[23,62,25,68],[24,27,25,33],[24,34,25,40],[24,41,25,47],[24,48,25,54],[24,55,25,61],[20,55,20,61],[21,48,21,61],[26,27,26,33],[26,34,26,40],[26,41,26,47],[26,55,26,61],[26,62,26,68],[20,27,20,33],[20,34,20,40],[20,41,20,47],[20,0,20,26],[26,48,26,54],[28,27,28,33],[29,27,29,33],[29,34,29,40],[29,41,29,47],[29,55,29,61],[32,27,32,33],[32,34,32,40],[32,41,32,47],[32,48,32,54],[32,55,32,61],[28,48,28,54],[29,48,29,54],[30,48,30,54],[31,48,31,54],[29,62,29,68],[46,62,47,68],[47,48,47,61],[35,48,35,54],[35,62,35,68],[46,48,46,54],[40,48,40,54],[34,48,34,54],[37,48,37,54],[38,48,38,54],[44,48,44,54],[46,55,46,61],[37,55,37,61],[44,62,44,68],[43,48,43,54],[43,55,43,61],[43,62,43,68],[41,48,41,54],[41,55,41,61],[41,62,41,68],[37,62,37,68],[39,62,39,68],[40,62,40,68],[44,27,44,33],[46,27,46,33],[46,34,46,40],[46,0,46,26],[46,41,46,47],[44,34,44,40],[44,41,44,47],[44,55,44,61],[43,27,43,33],[43,34,43,40],[43,41,43,47],[41,27,41,33],[41,34,41,40],[41,41,41,47],[39,27,39,33],[39,34,39,40],[39,41,39,47],[39,48,39,54],[39,55,39,61],[40,27,40,33],[40,34,40,40],[40,41,40,47],[40,55,40,61]]}
["Estado Analítico de Ingresos"]
[{"$f":"ESF!A2","v":"1 enero al 31 de diciembre de 2022"}]
["CLAVE:",null,null,{"$f":"ESF!D3","v":2415},null,null,null,null,null,null,null,null,null,null,null,null,null,null,null,null,null,null,null,null,null,null,null,null,null,null,null,null,null,null,"(Pesos)"]
["ENTE PÚBLICO:",null,null,null,null,null,{"$f":"ESF!G4","v":"Tepango de Rodríguez"}]
[]
["Rubro de Ingresos",null,null,null,null,null,null,null,null,null,null,null,null,null,null,null,null,null,null,null,null,null,null,null,null,null,null,"Ingreso",null,null,null,null,null,null,null,null,null,null,null,null,null,null,null,null,null,null,null,null,null,null,null,null,null,null,null,null,null,null,null,null,null,null,"Direfencia"]
[null,null,null,null,null,null,null,null,null,null,null,null,null,null,null,null,null,null,null,null,null,null,null,null,null,null,null,"Estimado",null,null,null,null,null,null,"Ampliaciones y Reducciones",null,null,null,null,null,null,"Modificado",null,null,null,null,null,null,"Devengado",null,null,null,null,null,null,"Recaudado"]
[]
[null,null,null,null,null,null,null,null,null,null,null,null,null,null,null,null,null,null,null,null,null,null,null,null,null,null,null,"(1)",null,null,null,null,null,null,"(2)",null,null,null,null,null,null,"(3=1+2)",null,null,null,null,null,null,"(4)",null,null,null,null,null,null,"(5)",null,null,null,null,null,null,"(6=5-1)"]
[]
["Impuestos",null,null,null,null,null,null,null,null,null,null,null,null,null,null,null,null,null,null,null,null,null,null,null,null,null,null,null,null,null,null,null,null,null,null,null,null,null,null,null,null,{"$f":"AB11+AI11","v":0},null,null,null,null,null,null,null,null,null,null,null,null,null,null,null,null,null,null,null,null,{"$f":"BD11-AB11","v":0}]
["Cuotas y Aportaciones de Seguridad Social",null,null,null,null,null,null,null,null,null,null,null,null,null,null,null,null,null,null,null,null,null,null,null,null,null,null,null,null,null,null,null,null,null,null,null,null,null,null,null,null,0,null,null,null,null,null,null,null,null,null,null,null,null,null,null,null,null,null,null,null,null,{"$f":"BD12-AB12","v":0}]
["Contribuciones de Mejoras",null,null,null,null,null,null,null,null,null,null,null,null,null,null,null,null,null,null,null,null,null,null,null,null,null,null,null,null,null,null,null,null,null,null,null,null,null,null,null,null,0,null,null,null,null,null,null,null,null,null,null,null,null,null,null,null,null,null,null,null,null,0]
["Derechos",null,null,null,null,null,null,null,null,null,null,null,null,null,null,null,null,null,null,null,null,null,null,null,null,null,null,null,null,null,null,null,null,null,null,null,null,null,null,null,null,0,null,null,null,null,null,null,null,null,null,null,null,null,null,null,null,null,null,null,null,null,0]
["Productos",null,null,null,null,null,null,null,null,null,null,null,null,null,null,null,null,null,null,null,null,null,null,null,null,null,null,null,null,null,null,null,null,null,null,null,null,null,null,null,null,{"$f":"AB15+AI15","v":0},null,null,null,null,null,null,null,null,null,null,null,null,null,null,null,null,null,null,null,null,{"$f":"BD15-AB15","v":0}]
["Aprovechamientos",null,null,null,null,null,null,null,null,null,null,null,null,null,null,null,null,null,null,null,null,null,null,null,null,null,null,null,null,null,null,null,null,null,null,null,null,null,null,null,null,0,null,null,null,null,null,null,null,null,null,null,null,null,null,null,null,null,null,null,null,null,{"$f":"BD16-AB16","v":0}]
["Ingresos por Venta de Bienes, Prestación de Servicios y Otros Ingresos",null,null,null,null,null,null,null,null,null,null,null,null,null,null,null,null,null,null,null,null,null,null,null,null,null,null,null,null,null,null,null,null,null,null,null,null,null,null,null,null,0,null,null,null,null,null,null,null,null,null,null,null,null,null,null,null,null,null,null,null,null,0]
["Participaciones, Aportaciones, Convenios, Incentivos Derivados de la Colaboración Fiscal y Fondos Distintos de Aportaciones",null,null,null,null,null,null,null,null,null,null,null,null,null,null,null,null,null,null,null,null,null,null,null,null,null,null,null,null,null,null,null,null,null,null,null,null,null,null,null,null,0,null,null,null,null,null,null,null,null,null,null,null,null,null,null,null,null,null,null,null,null,0]
["Transferencias, Asignaciones, Subsidios y Subvenciones, y Pensiones y Jubilaciones",null,null,null,null,null,null,null,null,null,null,null,null,null,null,null,null,null,null,null,null,null,null,null,null,null,null,null,null,null,null,null,null,null,null,null,null,null,null,null,null,0,null,null,null,null,null,null,null,null,null,null,null,null,null,null,null,null,null,null,null,null,0]
["Ingresos Derivados de Financiamientos",null,null,null,null,null,null,null,null,null,null,null,null,null,null,null,null,null,null,null,null,null,null,null,null,null,null,null,null,null,null,null,null,null,null,null,null,null,null,null,null,0,null,null,null,null,null,null,null,null,null,null,null,null,null,null,null,null,null,null,null,null,0]
["Total",null,null,null,null,null,null,null,null,null,null,null,null,null,null,null,null,null,null,null,null,null,null,null,null,null,null,{"$f":"SUM(AB11:AH20)","v":0},null,null,null,null,null,null,{"$f":"SUM(AI11:AO20)","v":0},null,null,null,null,null,null,{"$f":"SUM(AP11:AV20)","v":0},null,null,null,null,null,null,{"$f":"SUM(AW11:BC20)","v":0},null,null,null,null,null,null,{"$f":"SUM(BD11:BJ20)","v":0},null,null,null,null,null,null,{"$f":"SUM(BK11:BQ20)","v":0}]
[null,null,null,null,null,null,null,null,null,null,null,null,null,null,null,null,null,null,null,null,null,null,null,null,null,null,null,null,null,null,null,null,null,null,null,null,null,null,null,null,null,null,null,null,null,null,null,null,"Ingresos excedentes"]
[]
["Estado Analítico de Ingresos \nPor Fuente de Financiamiento",null,null,null,null,null,null,null,null,null,null,null,null,null,null,null,null,null,null,null,null,null,null,null,null,null,null,"Ingreso",null,null,null,null,null,null,null,null,null,null,null,null,null,null,null,null,null,null,null,null,null,null,null,null,null,null,null,null,null,null,null,null,null,null,"Direfencia"]
[null,null,null,null,null,null,null,null,null,null,null,null,null,null,null,null,null,null,null,null,null,null,null,null,null,null,null,"Estimado",null,null,null,null,null,null,"Ampliaciones y Reducciones",null,null,null,null,null,null,"Modificado",null,null,null,null,null,null,"Devengado",null,null,null,null,null,null,"Recaudado"]
[]
[null,null,null,null,null,null,null,null,null,null,null,null,null,null,null,null,null,null,null,null,null,null,null,null,null,null,null,"(1)",null,null,null,null,null,null,"(2)",null,null,null,null,null,null,"(3=1+2)",null,null,null,null,null,null,"(4)",null,null,null,null,null,null,"(5)",null,null,null,null,null,null,"(6=5-1)"]
[]
["Ingresos del Poder Ejecutivo Federal o Estatal y de los Municipios",null,null,null,null,null,null,null,null,null,null,null,null,null,null,null,null,null,null,null,null,null,null,null,null,null,null,{"$f":"SUM(AB30:AH36)","v":0},null,null,null,null,null,null,{"$f":"SUM(AI30:AO36)","v":0},null,null,null,null,null,null,{"$f":"SUM(AP30:AV36)","v":0},null,null,null,null,null,null,{"$f":"SUM(AW30:BC36)","v":0},null,null,null,null,null,null,{"$f":"SUM(BD30:BJ36)","v":0},null,null,null,null,null,null,{"$f":"BD29-AB29","v":0}]
[null,"Impuestos",null,null,null,null,null,null,null,null,null,null,null,null,null,null,null,null,null,null,null,null,null,null,null,null,null,null,null,null,null,null,null,null,null,null,null,null,null,null,null,{"$f":"AB30+AI30","v":0},null,null,null,null,null,null,null,null,null,null,null,null,null,null,null,null,null,null,null,null,{"$f":"BD30-AB30","v":0}]
[null,"Cuotas y Aportaciones de Seguridad Social",null,null,null,null,null,null,null,null,null,null,null,null,null,null,null,null,null,null,null,null,null,null,null,null,null,null,null,null,null,null,null,null,null,null,null,null,null,null,null,{"$f":"AB31+AI31","v":0},null,null,null,null,null,null,null,null,null,null,null,null,null,null,null,null,null,null,null,null,0]
[null,"Derechos",null,null,null,null,null,null,null,null,null,null,null,null,null,null,null,null,null,null,null,null,null,null,null,null,null,null,null,null,null,null,null,null,null,null,null,null,null,null,null,0,null,null,null,null,null,null,null,null,null,null,null,null,null,null,null,null,null,null,null,null,0]
[null,"Productos",null,null,null,null,null,null,null,null,null,null,null,null,null,null,null,null,null,null,null,null,null,null,null,null,null,null,null,null,null,null,null,null,null,null,null,null,null,null,null,0,null,null,null,null,null,null,null,null,null,null,null,null,null,null,null,null,null,null,null,null,{"$f":"BD33-AB33","v":0}]
[null,"Aprovechamientos",null,null,null,null,null,null,null,null,null,null,null,null,null,null,null,null,null,null,null,null,null,null,null,null,null,null,null,null,null,null,null,null,null,null,null,null,null,null,null,0,null,null,null,null,null,null,null,null,null,null,null,null,null,null,null,null,null,null,null,null,0]
[null,"Participaciones, Aportaciones, Convenios, Incentivos Derivados de la Colaboración Fiscal y Fondos Distintos de Aportaciones",null,null,null,null,null,null,null,null,null,null,null,null,null,null,null,null,null,null,null,null,null,null,null,null,null,null,null,null,null,null,null,null,null,null,null,null,null,null,null,0,null,null,null,null,null,null,null,null,null,null,null,null,null,null,null,null,null,null,null,null,0]
[null,"Transferencias, Asignaciones, Subsidios y Subvenciones, y Pensiones y Jubilaciones",null,null,null,null,null,null,null,null,null,null,null,null,null,null,null,null,null,null,null,null,null,null,null,null,null,null,null,null,null,null,null,null,null,null,null,null,null,null,null,0,null,null,null,null,null,null,null,null,null,null,null,null,null,null,null,null,null,null,null,null,0]
[]
["Ingresos de los Entes Públicos de los Poderes Legislativo y Judicial, de los Órganos Autónomos y del Sector Paraestatal o Paramunicipal, así como de las Empresas Productivas del Estado",null,null,null,null,null,null,null,null,null,null,null,null,null,null,null,null,null,null,null,null,null,null,null,null,null,null,{"$f":"SUM(AB39:AH42)","v":0},null,null,null,null,null,null,{"$f":"SUM(AI39:AO42)","v":0},null,null,null,null,null,null,{"$f":"SUM(AP39:AV42)","v":0},null,null,null,null,null,null,{"$f":"SUM(AW39:BC42)","v":0},null,null,null,null,null,null,{"$f":"SUM(BD39:BJ42)","v":0},null,null,null,null,null,null,{"$f":"BD38-AB38","v":0}]
[null,"Cuotas y Aportaciones de Seguridad Social",null,null,null,null,null,null,null,null,null,null,null,null,null,null,null,null,null,null,null,null,null,null,null,null,null,null,null,null,null,null,null,null,null,null,null,null,null,null,null,{"$f":"AB39+AI39","v":0},null,null,null,null,null,null,null,null,null,null,null,null,null,null,null,null,null,null,null,null,0]
[null,"Productos",null,null,null,null,null,null,null,null,null,null,null,null,null,null,null,null,null,null,null,null,null,null,null,null,null,null,null,null,null,null,null,null,null,null,null,null,null,null,null,{"$f":"AB40+AI40","v":0},null,null,null,null,null,null,null,null,null,null,null,null,null,null,null,null,null,null,null,null,{"$f":"BD40-AB40","v":0}]
[null,"Ingresos por Venta de Bienes, Prestación de Servicios y Otros Ingresos",null,null,null,null,null,null,null,null,null,null,null,null,null,null,null,null,null,null,null,null,null,null,null,null,null,null,null,null,null,null,null,null,null,null,null,null,null,null,null,{"$f":"AB41+AI41","v":0},null,null,null,null,null,null,null,null,null,null,null,null,null,null,null,null,null,null,null,null,0]
[null,"Transferencias, Asignaciones, Subsidios y Subvenciones, y Pensiones y Jubilaciones",null,null,null,null,null,null,null,null,null,null,null,null,null,null,null,null,null,null,null,null,null,null,null,null,null,null,null,null,null,null,null,null,null,null,null,null,null,null,null,{"$f":"AB42+AI42","v":0},null,null,null,null,null,null,null,null,null,null,null,null,null,null,null,null,null,null,null,null,0]
[]
["Ingresos derivados de Financiamiento",null,null,null,null,null,null,null,null,null,null,null,null,null,null,null,null,null,null,null,null,null,null,null,null,null,null,{"$f":"SUM(AB45)","v":0},null,null,null,null,null,null,{"$f":"SUM(AI45)","v":0},null,null,null,null,null,null,{"$f":"SUM(AP45)","v":0},null,null,null,null,null,null,{"$f":"SUM(AW45)","v":0},null,null,null,null,null,null,{"$f":"SUM(BD45)","v":0},null,null,null,null,null,null,{"$f":"BD44-AB44","v":0}]
[null,null,"Ingresos Derivados de Financiamientos",null,null,null,null,null,null,null,null,null,null,null,null,null,null,null,null,null,null,null,null,null,null,null,null,null,null,null,null,null,null,null,null,null,null,null,null,null,null,{"$f":"AB45+AI45","v":0},null,null,null,null,null,null,null,null,null,null,null,null,null,null,null,null,null,null,null,null,{"$f":"BD45-AB45","v":0}]
[]
["Total",null,null,null,null,null,null,null,null,null,null,null,null,null,null,null,null,null,null,null,null,null,null,null,null,null,null,{"$f":"AB29+AB38+AB44","v":0},null,null,null,null,null,null,{"$f":"AI29+AI38+AI44","v":0},null,null,null,null,null,null,{"$f":"AP29+AP38+AP44","v":0},null,null,null,null,null,null,{"$f":"AW29+AW38+AW44","v":0},null,null,null,null,null,null,{"$f":"BD29+BD38+BD44","v":0},null,null,null,null,null,null,{"$f":"BK29+BK38+BK44","v":0}]
[null,null,null,null,null,null,null,null,null,null,null,null,null,null,null,null,null,null,null,null,null,null,null,null,null,null,null,null,null,null,null,null,null,null,null,null,null,null,null,null,null,null,null,null,null,null,null,null,"Ingresos excedentes"]

{"sheet":"EAEPE OG","index":14,"n_rows":84,"n_cols":63,"rows_kept":84,"cut":false,"hidden":false,"merged":[[83,0,83,26],[7,48,8,54],[7,55,8,61],[9,27,9,33],[9,34,9,40],[9,41,9,47],[9,48,9,54],[9,55,9,61],[0,0,0,68],[2,0,2,68],[3,3,3,5],[6,0,9,26],[6,27,6,61],[6,62,8,68],[7,27,8,33],[7,34,8,40],[7,41,8,47],[9,62,9,68],[1,0,1,68],[12,27,12,33],[12,34,12,40],[12,41,12,47],[12,48,12,54],[12,55,12,61],[12,62,12,68],[11,27,11,33],[11,34,11,40],[11,41,11,47],[11,48,11,54],[11,55,11,61],[11,62,11,68],[14,27,14,33],[14,34,14,40],[14,41,14,47],[14,48,14,54],[14,55,14,61],[14,62,14,68],[13,27,13,33],[13,34,13,40],[13,41,13,47],[13,48,13,54],[13,55,13,61],[13,62,13,68],[16,27,16,33],[16,34,16,40],[16,41,16,47],[16,48,16,54],[16,55,16,61],[16,62,16,68],[15,27,15,33],[15,34,15,40],[15,41,15,47],[15,48,15,54],[15,55,15,61],[15,62,15,68],[18,27,18,33],[18,34,18,40],[18,41,18,47],[18,48,18,54],[18,55,18,61],[18,62,18,68],[17,27,17,33],[17,34,17,40],[17,41,17,47],[17,48,17,54],[17,55,17,61],[17,62,17,68],[20,27,20,33],[20,34,20,40],[20,41,20,47],[20,48,20,54],[20,55,20,61],[20,62,20,68],[19,27,19,33],[19,34,19,40],[19,41,19,47],[19,48,19,54],[19,55,19,61],[19,62,19,68],[83,62,83,68],[24,27,24,33],[24,34,24,40],[24,41,24,47],[24,48,24,54],[24,55,24,61],[24,62,24,68],[23,27,23,33],[23,34,23,40],[23,41,23,47],[23,48,23,54],[23,55,23,61],[23,62,23,68],[25,27,25,33],[25,34,25,40],[25,41,25,47],[25,48,25,54],[25,55,25,61],[25,62,25,68],[28,27,28,33],[28,34,28,40],[28,41,28,47],[28,48,28,54],[28,55,28,61],[22,27,22,33],[22,34,22,40],[22,41,22,47],[22,48,22,54],[22,55,22,61],[22,62,22,68],[21,27,21,33],[21,34,21,40],[21,41,21,47],[21,48,21,54],[21,55,21,61],[21,62,21,68],[28,62,28,68],[27,27,27,33],[27,34,27,40],[27,41,27,47],[27,48,27,54],[27,55,27,61],[27,62,27,68],[26,27,26,33],[26,34,26,40],[26,41,26,47],[26,48,26,54],[26,55,26,61],[26,62,26,68],[31,27,31,33],[31,34,31,40],[31,41,31,47],[31,48,31,54],[31,55,31,61],[31,62,31,68],[29,41,29,47],[29,48,29,54],[29,55,29,61],[29,62,29,68],[30,27,30,33],[30,34,30,40],[30,41,30,47],[30,48,30,54],[30,55,30,61],[30,62,30,68],[29,27,29,33],[29,34,29,40],[33,27,33,33],[33,34,33,40],[33,41,33,47],[33,48,33,54],[33,55,33,61],[33,62,33,68],[32,27,32,33],[32,34,32,40],[32,41,32,47],[32,48,32,54],[32,55,32,61],[32,62,32,68],[35,27,35,33],[35,34,35,40],[35,41,35,47],[35,48,35,54],[35,55,35,61],[35,62,35,68],[34,27,34,33],[34,34,34,40],[34,41,34,47],[34,48,34,54],[34,55,34,61],[34,62,34,68],[37,27,37,33],[37,34,37,40],[37,41,37,47],[37,48,37,54],[37,55,37,61],[37,62,37,68],[36,27,36,33],[36,34,36,40],[36,41,36,47],[36,48,36,54],[36,55,36,61],[36,62,36,68],[39,27,39,33],[39,34,39,40],[39,41,39,47],[39,48,39,54],[39,55,39,61],[39,62,39,68],[38,27,38,33],[38,34,38,40],[38,41,38,47],[38,48,38,54],[38,55,38,61],[38,62,38,68],[41,27,41,33],[41,34,41,40],[41,41,41,47],[41,48,41,54],[41,55,41,61],[41,62,41,68],[40,27,40,33],[40,34,40,40],[40,41,40,47],[40,48,40,54],[40,55,40,61],[40,62,40,68],[43,27,43,33],[43,34,43,40],[43,41,43,47],[43,48,43,54],[43,55,43,61],[43,62,43,68],[42,27,42,33],[42,34,42,40],[42,41,42,47],[42,48,42,54],[42,55,42,61],[42,62,42,68],[45,27,45,33],[45,34,45,40],[45,41,45,47],[45,48,45,54],[45,55,45,61],[45,62,45,68],[44,27,44,33],[44,34,44,40],[44,41,44,47],[44,48,44,54],[44,55,44,61],[44,62,44,68],[47,27,47,33],[47,34,47,40],[47,41,47,47],[47,48,47,54],[47,55,47,61],[47,62,47,68],[46,27,46,33],[46,34,46,40],[46,41,46,47],[46,48,46,54],[46,55,46,61],[46,62,46,68],[49,27,49,33],[49,34,49,40],[49,41,49,47],[49,48,49,54],[49,55,49,61],[49,62,49,68],[48,27,48,33],[48,34,48,40],[48,41,48,47],[48,48,48,54],[48,55,48,61],[48,62,48,68],[51,27,51,33],[51,34,51,40],[51,41,51,47],[51,48,51,54],[51,55,51,61],[51,62,51,68],[50,27,50,33],[50,34,50,40],[50,41,50,47],[50,48,50,54],[50,55,50,61],[50,62,50,68],[53,27,53,33],[53,34,53,40],[53,41,53,47],[53,48,53,54],[53,55,53,61],[53,62,53,68],[52,27,52,33],[52,34,52,40],[52,41,52,47],[52,48,52,54],[52,55,52,61],[52,62,52,68],[55,27,55,33],[55,34,55,40],[55,41,55,47],[55,48,55,54],[55,55,55,61],[55,62,55,68],[54,27,54,33],[54,34,54,40],[54,41,54,47],[54,48,54,54],[54,55,54,61],[54,62,54,68],[57,27,57,33],[57,34,57,40],[57,41,57,47],[57,48,57,54],[57,55,57,61],[57,62,57,68],[56,27,56,33],[56,34,56,40],[56,41,56,47],[56,48,56,54],[56,55,56,61],[56,62,56,68],[59,27,59,33],[59,34,59,40],[59,41,59,47],[59,48,59,54],[59,55,59,61],[59,62,59,68],[58,27,58,33],[58,34,58,40],[58,41,58,47],[58,48,58,54],[58,55,58,61],[58,62,58,68],[61,27,61,33],[61,34,61,40],[61,41,61,47],[61,48,61,54],[61,55,61,61],[61,62,61,68],[60,27,60,33],[60,34,60,40],[60,41,60,47],[60,48,60,54],[60,55,60,61],[60,62,60,68],[63,27,63,33],[63,34,63,40],[63,41,63,47],[63,48,63,54],[63,55,63,61],[63,62,63,68],[62,27,62,33],[62,34,62,40],[62,41,62,47],[62,48,62,54],[62,55,62,61],[62,62,62,68],[65,27,65,33],[65,34,65,40],[65,41,65,47],[65,48,65,54],[65,55,65,61],[65,62,65,68],[64,27,64,33],[64,34,64,40],[64,41,64,47],[64,48,64,54],[64,55,64,61],[64,62,64,68],[67,27,67,33],[67,34,67,40],[67,41,67,47],[67,48,67,54],[67,55,67,61],[67,62,67,68],[66,27,66,33],[66,34,66,40],[66,41,66,47],[66,48,66,54],[66,55,66,61],[66,62,66,68],[71,27,71,33],[71,34,71,40],[71,41,71,47],[71,48,71,54],[71,55,71,61],[71,62,71,68],[68,27,68,33],[68,34,68,40],[68,41,68,47],[68,48,68,54],[68,55,68,61],[68,62,68,68],[70,27,70,33],[70,34,70,40],[70,41,70,47],[70,48,70,54],[70,55,70,61],[70,62,70,68],[69,27,69,33],[69,34,69,40],[69,41,69,47],[69,48,69,54],[69,55,69,61],[69,62,69,68],[73,27,73,33],[73,34,73,40],[73,41,73,47],[73,48,73,54],[73,55,73,61],[73,62,73,68],[72,27,72,33],[72,34,72,40],[72,41,72,47],[72,48,72,54],[72,55,72,61],[72,62,72,68],[75,27,75,33],[75,34,75,40],[75,41,75,47],[75,48,75,54],[75,55,75,61],[75,62,75,68],[74,27,74,33],[74,34,74,40],[74,41,74,47],[74,48,74,54],[74,55,74,61],[74,62,74,68],[77,27,77,33],[77,34,77,40],[77,41,77,47],[77,48,77,54],[77,55,77,61],[77,62,77,68],[76,27,76,33],[76,34,76,40],[76,41,76,47],[76,48,76,54],[76,55,76,61],[76,62,76,68],[79,27,79,33],[79,34,79,40],[79,41,79,47],[79,48,79,54],[79,55,79,61],[79,62,79,68],[78,27,78,33],[78,34,78,40],[78,41,78,47],[78,48,78,54],[78,55,78,61],[78,62,78,68],[82,62,82,68],[81,27,81,33],[81,34,81,40],[81,41,81,47],[81,48,81,54],[81,55,81,61],[81,62,81,68],[80,27,80,33],[80,34,80,40],[80,41,80,47],[80,48,80,54],[80,55,80,61],[80,62,80,68],[83,27,83,33],[83,34,83,40],[83,41,83,47],[83,48,83,54],[83,55,83,61],[82,27,82,33],[82,34,82,40],[82,41,82,47],[82,48,82,54],[82,55,82,61]]}
["Estado Analítico del Ejercicio del Presupuesto de Egresos"]
["Clasificación por Objeto del Gasto (Capítulo y Concepto)"]
[{"$f":"ESF!A2","v":"1 enero al 31 de diciembre de 2022"}]
["CLAVE:",null,null,{"$f":"ESF!D3","v":2415},null,null,null,null,null,null,null,null,null,null,null,null,null,null,null,null,null,null,null,null,null,null,null,null,null,null,null,null,null,null,"(Pesos)"]
["ENTE PÚBLICO:",null,null,null,null,null,{"$f":"ESF!G4","v":"Tepango de Rodríguez"}]
[]
["Rubro de Ingresos",null,null,null,null,null,null,null,null,null,null,null,null,null,null,null,null,null,null,null,null,null,null,null,null,null,null,"Egresos",null,null,null,null,null,null,null,null,null,null,null,null,null,null,null,null,null,null,null,null,null,null,null,null,null,null,null,null,null,null,null,null,null,null,"Subejercicio"]
[null,null,null,null,null,null,null,null,null,null,null,null,null,null,null,null,null,null,null,null,null,null,null,null,null,null,null,"Aprobado",null,null,null,null,null,null,"Ampliaciones y (Reducciones)",null,null,null,null,null,null,"Modificado",null,null,null,null,null,null,"Devengado",null,null,null,null,null,null,"Pagado"]
[]
[null,null,null,null,null,null,null,null,null,null,null,null,null,null,null,null,null,null,null,null,null,null,null,null,null,null,null,"(1)",null,null,null,null,null,null,"(2)",null,null,null,null,null,null,"(3=1+2)",null,null,null,null,null,null,"(4)",null,null,null,null,null,null,"(5)",null,null,null,null,null,null,"(6=3-4)"]
[]
["Servicios Personales",null,null,null,null,null,null,null,null,null,null,null,null,null,null,null,null,null,null,null,null,null,null,null,null,null,null,{"$f":"SUM(AB13:AH19)","v":0},null,null,null,null,null,null,{"$f":"SUM(AI13:AO19)","v":0},null,null,null,null,null,null,{"$f":"SUM(AP13:AV19)","v":0},null,null,null,null,null,null,{"$f":"SUM(AW13:BC19)","v":0},null,null,null,null,null,null,{"$f":"SUM(BD13:BJ19)","v":0},null,null,null,null,null,null,{"$f":"AP12-AW12","v":0}]
[null,null,"Remuneraciones al Personal de Carácter Permanente",null,null,null,null,null,null,null,null,null,null,null,null,null,null,null,null,null,null,null,null,null,null,null,null,null,null,null,null,null,null,null,null,null,null,null,null,null,null,{"$f":"AB13+AI13","v":0},null,null,null,null,null,null,null,null,null,null,null,null,null,null,null,null,null,null,null,null,0]
[null,null,"Remuneraciones al Personal de Carácter Transitorio",null,null,null,null,null,null,null,null,null,null,null,null,null,null,null,null,null,null,null,null,null,null,null,null,null,null,null,null,null,null,null,null,null,null,null,null,null,null,{"$f":"AB14+AI14","v":0},null,null,null,null,null,null,null,null,null,null,null,null,null,null,null,null,null,null,null,null,0]
[null,null,"Remuneraciones Adicionales y Especiales",null,null,null,null,null,null,null,null,null,null,null,null,null,null,null,null,null,null,null,null,null,null,null,null,null,null,null,null,null,null,null,null,null,null,null,null,null,null,0,null,null,null,null,null,null,null,null,null,null,null,null,null,null,null,null,null,null,null,null,0]
[null,null,"Seguridad Social",null,null,null,null,null,null,null,null,null,null,null,null,null,null,null,null,null,null,null,null,null,null,null,null,null,null,null,null,null,null,null,null,null,null,null,null,null,null,0,null,null,null,null,null,null,null,null,null,null,null,null,null,null,null,null,null,null,null,null,0]
[null,null,"Otras Prestaciones Sociales y Económicas",null,null,null,null,null,null,null,null,null,null,null,null,null,null,null,null,null,null,null,null,null,null,null,null,null,null,null,null,null,null,null,null,null,null,null,null,null,null,0,null,null,null,null,null,null,null,null,null,null,null,null,null,null,null,null,null,null,null,null,0]
[null,null,"Previsiones",null,null,null,null,null,null,null,null,null,null,null,null,null,null,null,null,null,null,null,null,null,null,null,null,null,null,null,null,null,null,null,null,null,null,null,null,null,null,{"$f":"AB18+AI18","v":0},null,null,null,null,null,null,null,null,null,null,null,null,null,null,null,null,null,null,null,null,0]
[null,null,"Pago de Estímulos a Servidores Públicos",null,null,null,null,null,null,null,null,null,null,null,null,null,null,null,null,null,null,null,null,null,null,null,null,null,null,null,null,null,null,null,null,null,null,null,null,null,null,0,null,null,null,null,null,null,null,null,null,null,null,null,null,null,null,null,null,null,null,null,0]
["Materiales y Suministros",null,null,null,null,null,null,null,null,null,null,null,null,null,null,null,null,null,null,null,null,null,null,null,null,null,null,{"$f":"SUM(AB21:AH29)","v":0},null,null,null,null,null,null,{"$f":"SUM(AI21:AO29)","v":0},null,null,null,null,null,null,{"$f":"SUM(AP21:AV29)","v":0},null,null,null,null,null,null,{"$f":"SUM(AW21:BC29)","v":0},null,null,null,null,null,null,{"$f":"SUM(BD21:BJ29)","v":0},null,null,null,null,null,null,0]
[null,null,"Materiales de Administración, Emisión de Documentos y Artículos Oficiales",null,null,null,null,null,null,null,null,null,null,null,null,null,null,null,null,null,null,null,null,null,null,null,null,null,null,null,null,null,null,null,null,null,null,null,null,null,null,{"$f":"AB21+AI21","v":0},null,null,null,null,null,null,null,null,null,null,null,null,null,null,null,null,null,null,null,null,0]
[null,null,"Alimentos y Utensilios",null,null,null,null,null,null,null,null,null,null,null,null,null,null,null,null,null,null,null,null,null,null,null,null,null,null,null,null,null,null,null,null,null,null,null,null,null,null,{"$f":"AB22+AI22","v":0},null,null,null,null,null,null,null,null,null,null,null,null,null,null,null,null,null,null,null,null,0]
[null,null,"Materias Primas y Materiales de Producción y Comercialización",null,null,null,null,null,null,null,null,null,null,null,null,null,null,null,null,null,null,null,null,null,null,null,null,null,null,null,null,null,null,null,null,null,null,null,null,null,null,{"$f":"AB23+AI23","v":0},null,null,null,null,null,null,null,null,null,null,null,null,null,null,null,null,null,null,null,null,0]
[null,null,"Materiales y Artículos de Construcción y Reparación",null,null,null,null,null,null,null,null,null,null,null,null,null,null,null,null,null,null,null,null,null,null,null,null,null,null,null,null,null,null,null,null,null,null,null,null,null,null,{"$f":"AB24+AI24","v":0},null,null,null,null,null,null,null,null,null,null,null,null,null,null,null,null,null,null,null,null,0]
[null,null,"Productos Quimicos, Farmacéuticos y de Laboratorio",null,null,null,null,null,null,null,null,null,null,null,null,null,null,null,null,null,null,null,null,null,null,null,null,null,null,null,null,null,null,null,null,null,null,null,null,null,null,{"$f":"AB25+AI25","v":0},null,null,null,null,null,null,null,null,null,null,null,null,null,null,null,null,null,null,null,null,0]
[null,null,"Combustibles, Lubricantes y Aditivos",null,null,null,null,null,null,null,null,null,null,null,null,null,null,null,null,null,null,null,null,null,null,null,null,null,null,null,null,null,null,null,null,null,null,null,null,null,null,{"$f":"AB26+AI26","v":0},null,null,null,null,null,null,null,null,null,null,null,null,null,null,null,null,null,null,null,null,{"$f":"AP26-AW26","v":0}]
[null,null,"Vestuarios, Blancos, Prendas de Protección y Artículos Deportivos",null,null,null,null,null,null,null,null,null,null,null,null,null,null,null,null,null,null,null,null,null,null,null,null,null,null,null,null,null,null,null,null,null,null,null,null,null,null,0,null,null,null,null,null,null,null,null,null,null,null,null,null,null,null,null,null,null,null,null,0]
[null,null,"Materiales y Suministros para Seguridad",null,null,null,null,null,null,null,null,null,null,null,null,null,null,null,null,null,null,null,null,null,null,null,null,null,null,null,null,null,null,null,null,null,null,null,null,null,null,0,null,null,null,null,null,null,null,null,null,null,null,null,null,null,null,null,null,null,null,null,{"$f":"AP28-AW28","v":0}]
[null,null,"Herramientas, Refacciones y Accesorios Menores",null,null,null,null,null,null,null,null,null,null,null,null,null,null,null,null,null,null,null,null,null,null,null,null,null,null,null,null,null,null,null,null,null,null,null,null,null,null,{"$f":"AB29+AI29","v":0},null,null,null,null,null,null,null,null,null,null,null,null,null,null,null,null,null,null,null,null,0]
["Servicios Generales",null,null,null,null,null,null,null,null,null,null,null,null,null,null,null,null,null,null,null,null,null,null,null,null,null,null,{"$f":"SUM(AB31:AH39)","v":0},null,null,null,null,null,null,{"$f":"SUM(AI31:AO39)","v":0},null,null,null,null,null,null,{"$f":"SUM(AP31:AV39)","v":0},null,null,null,null,null,null,{"$f":"SUM(AW31:BC39)","v":0},null,null,null,null,null,null,{"$f":"SUM(BD31:BJ39)","v":0},null,null,null,null,null,null,0]
[null,null,"Servicios Básicos",null,null,null,null,null,null,null,null,null,null,null,null,null,null,null,null,null,null,null,null,null,null,null,null,null,null,null,null,null,null,null,null,null,null,null,null,null,null,{"$f":"AB31+AI31","v":0},null,null,null,null,null,null,null,null,null,null,null,null,null,null,null,null,null,null,null,null,0]
[null,null,"Servicios de Arrendamiento",null,null,null,null,null,null,null,null,null,null,null,null,null,null,null,null,null,null,null,null,null,null,null,null,null,null,null,null,null,null,null,null,null,null,null,null,null,null,{"$f":"AB32+AI32","v":0},null,null,null,null,null,null,null,null,null,null,null,null,null,null,null,null,null,null,null,null,0]
[null,null,"Servicios Profesionales, Científicos, Técnicos y Otros Servicios",null,null,null,null,null,null,null,null,null,null,null,null,null,null,null,null,null,null,null,null,null,null,null,null,null,null,null,null,null,null,null,null,null,null,null,null,null,null,{"$f":"AB33+AI33","v":0},null,null,null,null,null,null,null,null,null,null,null,null,null,null,null,null,null,null,null,null,0]
[null,null,"Servicios Financieros, Bancarios y Comerciales",null,null,null,null,null,null,null,null,null,null,null,null,null,null,null,null,null,null,null,null,null,null,null,null,null,null,null,null,null,null,null,null,null,null,null,null,null,null,{"$f":"AB34+AI34","v":0},null,null,null,null,null,null,null,null,null,null,null,null,null,null,null,null,null,null,null,null,0]
[null,null,"Servcios de Instalación, Reparación, Mantenimiento y Conservación",null,null,null,null,null,null,null,null,null,null,null,null,null,null,null,null,null,null,null,null,null,null,null,null,null,null,null,null,null,null,null,null,null,null,null,null,null,null,{"$f":"AB35+AI35","v":0},null,null,null,null,null,null,null,null,null,null,null,null,null,null,null,null,null,null,null,null,0]
[null,null,"Servicios de Comunicación Social y Publicidad",null,null,null,null,null,null,null,null,null,null,null,null,null,null,null,null,null,null,null,null,null,null,null,null,null,null,null,null,null,null,null,null,null,null,null,null,null,null,{"$f":"AB36+AI36","v":0},null,null,null,null,null,null,null,null,null,null,null,null,null,null,null,null,null,null,null,null,{"$f":"AP36-AW36","v":0}]
[null,null,"Servicios de Traslado y Viáticos",null,null,null,null,null,null,null,null,null,null,null,null,null,null,null,null,null,null,null,null,null,null,null,null,null,null,null,null,null,null,null,null,null,null,null,null,null,null,0,null,null,null,null,null,null,null,null,null,null,null,null,null,null,null,null,null,null,null,null,0]
[null,null,"Servicios Oficiales",null,null,null,null,null,null,null,null,null,null,null,null,null,null,null,null,null,null,null,null,null,null,null,null,null,null,null,null,null,null,null,null,null,null,null,null,null,null,0,null,null,null,null,null,null,null,null,null,null,null,null,null,null,null,null,null,null,null,null,0]
[null,null,"Otros Servicios Generales",null,null,null,null,null,null,null,null,null,null,null,null,null,null,null,null,null,null,null,null,null,null,null,null,null,null,null,null,null,null,null,null,null,null,null,null,null,null,0,null,null,null,null,null,null,null,null,null,null,null,null,null,null,null,null,null,null,null,null,{"$f":"AP39-AW39","v":0}]
["Transferencias, Asignaciones, Subsidios y Otras Ayudas",null,null,null,null,null,null,null,null,null,null,null,null,null,null,null,null,null,null,null,null,null,null,null,null,null,null,{"$f":"SUM(AB41:AH49)","v":0},null,null,null,null,null,null,{"$f":"SUM(AI41:AO49)","v":0},null,null,null,null,null,null,{"$f":"SUM(AP41:AV49)","v":0},null,null,null,null,null,null,{"$f":"SUM(AW41:BC49)","v":0},null,null,null,null,null,null,{"$f":"SUM(BD41:BJ49)","v":0},null,null,null,null,null,null,0]
[null,null,"Transferencias Internas y Otras Asignaciones al Sector Público",null,null,null,null,null,null,null,null,null,null,null,null,null,null,null,null,null,null,null,null,null,null,null,null,null,null,null,null,null,null,null,null,null,null,null,null,null,null,{"$f":"AB41+AI41","v":0},null,null,null,null,null,null,null,null,null,null,null,null,null,null,null,null,null,null,null,null,0]
[null,null,"Transferencias al Resto del Sector Público",null,null,null,null,null,null,null,null,null,null,null,null,null,null,null,null,null,null,null,null,null,null,null,null,null,null,null,null,null,null,null,null,null,null,null,null,null,null,{"$f":"AB42+AI42","v":0},null,null,null,null,null,null,null,null,null,null,null,null,null,null,null,null,null,null,null,null,0]
[null,null,"Subsidios y Subvenciones",null,null,null,null,null,null,null,null,null,null,null,null,null,null,null,null,null,null,null,null,null,null,null,null,null,null,null,null,null,null,null,null,null,null,null,null,null,null,{"$f":"AB43+AI43","v":0},null,null,null,null,null,null,null,null,null,null,null,null,null,null,null,null,null,null,null,null,0]
[null,null,"Ayudas Sociales",null,null,null,null,null,null,null,null,null,null,null,null,null,null,null,null,null,null,null,null,null,null,null,null,null,null,null,null,null,null,null,null,null,null,null,null,null,null,{"$f":"AB44+AI44","v":0},null,null,null,null,null,null,null,null,null,null,null,null,null,null,null,null,null,null,null,null,0]
[null,null,"Pensiones y Jubilaciones",null,null,null,null,null,null,null,null,null,null,null,null,null,null,null,null,null,null,null,null,null,null,null,null,null,null,null,null,null,null,null,null,null,null,null,null,null,null,{"$f":"AB45+AI45","v":0},null,null,null,null,null,null,null,null,null,null,null,null,null,null,null,null,null,null,null,null,0]
[null,null,"Transferencias a Fideicomisos, Mandatos y Otros Análogos",null,null,null,null,null,null,null,null,null,null,null,null,null,null,null,null,null,null,null,null,null,null,null,null,null,null,null,null,null,null,null,null,null,null,null,null,null,null,{"$f":"AB46+AI46","v":0},null,null,null,null,null,null,null,null,null,null,null,null,null,null,null,null,null,null,null,null,{"$f":"AP46-AW46","v":0}]
[null,null,"Transferencias a la Seguridad Social",null,null,null,null,null,null,null,null,null,null,null,null,null,null,null,null,null,null,null,null,null,null,null,null,null,null,null,null,null,null,null,null,null,null,null,null,null,null,0,null,null,null,null,null,null,null,null,null,null,null,null,null,null,null,null,null,null,null,null,0]
[null,null,"Donativos",null,null,null,null,null,null,null,null,null,null,null,null,null,null,null,null,null,null,null,null,null,null,null,null,null,null,null,null,null,null,null,null,null,null,null,null,null,null,0,null,null,null,null,null,null,null,null,null,null,null,null,null,null,null,null,null,null,null,null,0]
[null,null,"Transferencias al Exterior",null,null,null,null,null,null,null,null,null,null,null,null,null,null,null,null,null,null,null,null,null,null,null,null,null,null,null,null,null,null,null,null,null,null,null,null,null,null,{"$f":"AB49+AI49","v":0},null,null,null,null,null,null,null,null,null,null,null,null,null,null,null,null,null,null,null,null,{"$f":"AP49-AW49","v":0}]
["Bienes Muebles, Inmuebles e Intangibles",null,null,null,null,null,null,null,null,null,null,null,null,null,null,null,null,null,null,null,null,null,null,null,null,null,null,{"$f":"SUM(AB51:AH59)","v":0},null,null,null,null,null,null,{"$f":"SUM(AI51:AO59)","v":0},null,null,null,null,null,null,{"$f":"SUM(AP51:AV59)","v":0},null,null,null,null,null,null,{"$f":"SUM(AW51:BC59)","v":0},null,null,null,null,null,null,{"$f":"SUM(BD51:BJ59)","v":0},null,null,null,null,null,null,0]
[null,null,"Mobiliario y Equipo de Administración",null,null,null,null,null,null,null,null,null,null,null,null,null,null,null,null,null,null,null,null,null,null,null,null,null,null,null,null,null,null,null,null,null,null,null,null,null,null,{"$f":"AB51+AI51","v":0},null,null,null,null,null,null,null,null,null,null,null,null,null,null,null,null,null,null,null,null,0]
[null,null,"Mobiliario y Equipo Educacional y Recreativo",null,null,null,null,null,null,null,null,null,null,null,null,null,null,null,null,null,null,null,null,null,null,null,null,null,null,null,null,null,null,null,null,null,null,null,null,null,null,{"$f":"AB52+AI52","v":0},null,null,null,null,null,null,null,null,null,null,null,null,null,null,null,null,null,null,null,null,0]
[null,null,"Equipo e Instrumental Medico y de Laboratorio",null,null,null,null,null,null,null,null,null,null,null,null,null,null,null,null,null,null,null,null,null,null,null,null,null,null,null,null,null,null,null,null,null,null,null,null,null,null,{"$f":"AB53+AI53","v":0},null,null,null,null,null,null,null,null,null,null,null,null,null,null,null,null,null,null,null,null,0]
[null,null,"Vehículos y Equipo de Transporte",null,null,null,null,null,null,null,null,null,null,null,null,null,null,null,null,null,null,null,null,null,null,null,null,null,null,null,null,null,null,null,null,null,null,null,null,null,null,{"$f":"AB54+AI54","v":0},null,null,null,null,null,null,null,null,null,null,null,null,null,null,null,null,null,null,null,null,0]
[null,null,"Equipo de Defensa y Seguridad",null,null,null,null,null,null,null,null,null,null,null,null,null,null,null,null,null,null,null,null,null,null,null,null,null,null,null,null,null,null,null,null,null,null,null,null,null,null,{"$f":"AB55+AI55","v":0},null,null,null,null,null,null,null,null,null,null,null,null,null,null,null,null,null,null,null,null,0]
[null,null,"Maquinaria, Otros Equipos y Herramientas",null,null,null,null,null,null,null,null,null,null,null,null,null,null,null,null,null,null,null,null,null,null,null,null,null,null,null,null,null,null,null,null,null,null,null,null,null,null,{"$f":"AB56+AI56","v":0},null,null,null,null,null,null,null,null,null,null,null,null,null,null,null,null,null,null,null,null,{"$f":"AP56-AW56","v":0}]
[null,null,"Activos Biológicos",null,null,null,null,null,null,null,null,null,null,null,null,null,null,null,null,null,null,null,null,null,null,null,null,null,null,null,null,null,null,null,null,null,null,null,null,null,null,0,null,null,null,null,null,null,null,null,null,null,null,null,null,null,null,null,null,null,null,null,0]
[null,null,"Bienes Inmuebles",null,null,null,null,null,null,null,null,null,null,null,null,null,null,null,null,null,null,null,null,null,null,null,null,null,null,null,null,null,null,null,null,null,null,null,null,null,null,0,null,null,null,null,null,null,null,null,null,null,null,null,null,null,null,null,null,null,null,null,0]
[null,null,"Activos Intagibles",null,null,null,null,null,null,null,null,null,null,null,null,null,null,null,null,null,null,null,null,null,null,null,null,null,null,null,null,null,null,null,null,null,null,null,null,null,null,{"$f":"AB59+AI59","v":0},null,null,null,null,null,null,null,null,null,null,null,null,null,null,null,null,null,null,null,null,{"$f":"AP59-AW59","v":0}]
["Inversión Pública",null,null,null,null,null,null,null,null,null,null,null,null,null,null,null,null,null,null,null,null,null,null,null,null,null,null,{"$f":"SUM(AB61:AH63)","v":0},null,null,null,null,null,null,{"$f":"SUM(AI61:AO63)","v":0},null,null,null,null,null,null,{"$f":"SUM(AP61:AV63)","v":0},null,null,null,null,null,null,{"$f":"SUM(AW61:BC63)","v":0},null,null,null,null,null,null,{"$f":"SUM(BD61:BJ63)","v":0},null,null,null,null,null,null,0]
[null,null,"Obra Pública en Bienes de Dominio Público",null,null,null,null,null,null,null,null,null,null,null,null,null,null,null,null,null,null,null,null,null,null,null,null,null,null,null,null,null,null,null,null,null,null,null,null,null,null,{"$f":"AB61+AI61","v":0},null,null,null,null,null,null,null,null,null,null,null,null,null,null,null,null,null,null,null,null,0]
[null,null,"Obra Pública en Bienes Propios",null,null,null,null,null,null,null,null,null,null,null,null,null,null,null,null,null,null,null,null,null,null,null,null,null,null,null,null,null,null,null,null,null,null,null,null,null,null,{"$f":"AB62+AI62","v":0},null,null,null,null,null,null,null,null,null,null,null,null,null,null,null,null,null,null,null,null,0]
[null,null,"Proyectos Productivos y Acciones de Fomento",null,null,null,null,null,null,null,null,null,null,null,null,null,null,null,null,null,null,null,null,null,null,null,null,null,null,null,null,null,null,null,null,null,null,null,null,null,null,{"$f":"AB63+AI63","v":0},null,null,null,null,null,null,null,null,null,null,null,null,null,null,null,null,null,null,null,null,0]
["Inversiones Financieras y Otras Provisiones",null,null,null,null,null,null,null,null,null,null,null,null,null,null,null,null,null,null,null,null,null,null,null,null,null,null,{"$f":"SUM(AB65:AH71)","v":0},null,null,null,null,null,null,{"$f":"SUM(AI65:AO71)","v":0},null,null,null,null,null,null,{"$f":"SUM(AP65:AV71)","v":0},null,null,null,null,null,null,{"$f":"SUM(AW65:BC71)","v":0},null,null,null,null,null,null,{"$f":"SUM(BD65:BJ71)","v":0},null,null,null,null,null,null,0]
[null,null,"Inversiones Para el Fomento de Actividades Productivas",null,null,null,null,null,null,null,null,null,null,null,null,null,null,null,null,null,null,null,null,null,null,null,null,null,null,null,null,null,null,null,null,null,null,null,null,null,null,{"$f":"AB65+AI65","v":0},null,null,null,null,null,null,null,null,null,null,null,null,null,null,null,null,null,null,null,null,0]
[null,null,"Acciones y Participaciones de Capital",null,null,null,null,null,null,null,null,null,null,null,null,null,null,null,null,null,null,null,null,null,null,null,null,null,null,null,null,null,null,null,null,null,null,null,null,null,null,{"$f":"AB66+AI66","v":0},null,null,null,null,null,null,null,null,null,null,null,null,null,null,null,null,null,null,null,null,0]
[null,null,"Compra de Títulos y Valores",null,null,null,null,null,null,null,null,null,null,null,null,null,null,null,null,null,null,null,null,null,null,null,null,null,null,null,null,null,null,null,null,null,null,null,null,null,null,{"$f":"AB67+AI67","v":0},null,null,null,null,null,null,null,null,null,null,null,null,null,null,null,null,null,null,null,null,0]
[null,null,"Concesión de Préstamos",null,null,null,null,null,null,null,null,null,null,null,null,null,null,null,null,null,null,null,null,null,null,null,null,null,null,null,null,null,null,null,null,null,null,null,null,null,null,{"$f":"AB68+AI68","v":0},null,null,null,null,null,null,null,null,null,null,null,null,null,null,null,null,null,null,null,null,0]
[null,null,"Inversiones en Fideicomisos, Mandatos y Otros Analógos",null,null,null,null,null,null,null,null,null,null,null,null,null,null,null,null,null,null,null,null,null,null,null,null,null,null,null,null,null,null,null,null,null,null,null,null,null,null,{"$f":"AB69+AI69","v":0},null,null,null,null,null,null,null,null,null,null,null,null,null,null,null,null,null,null,null,null,0]
[null,null,"Otras Inversiones Financieras",null,null,null,null,null,null,null,null,null,null,null,null,null,null,null,null,null,null,null,null,null,null,null,null,null,null,null,null,null,null,null,null,null,null,null,null,null,null,{"$f":"AB70+AI70","v":0},null,null,null,null,null,null,null,null,null,null,null,null,null,null,null,null,null,null,null,null,{"$f":"AP70-AW70","v":0}]
[null,null,"Provisiones para Contingencias y Otras Erogaciones Especiales",null,null,null,null,null,null,null,null,null,null,null,null,null,null,null,null,null,null,null,null,null,null,null,null,null,null,null,null,null,null,null,null,null,null,null,null,null,null,0,null,null,null,null,null,null,null,null,null,null,null,null,null,null,null,null,null,null,null,null,0]
["Participaciones y Aportaciones",null,null,null,null,null,null,null,null,null,null,null,null,null,null,null,null,null,null,null,null,null,null,null,null,null,null,{"$f":"SUM(AB73:AH75)","v":0},null,null,null,null,null,null,{"$f":"SUM(AI73:AO75)","v":0},null,null,null,null,null,null,{"$f":"SUM(AP73:AV75)","v":0},null,null,null,null,null,null,{"$f":"SUM(AW73:BC75)","v":0},null,null,null,null,null,null,{"$f":"SUM(BD73:BJ75)","v":0},null,null,null,null,null,null,{"$f":"AP72-AW72","v":0}]
[null,null,"Participaciones",null,null,null,null,null,null,null,null,null,null,null,null,null,null,null,null,null,null,null,null,null,null,null,null,null,null,null,null,null,null,null,null,null,null,null,null,null,null,{"$f":"AB73+AI73","v":0},null,null,null,null,null,null,null,null,null,null,null,null,null,null,null,null,null,null,null,null,0]
[null,null,"Aportaciones",null,null,null,null,null,null,null,null,null,null,null,null,null,null,null,null,null,null,null,null,null,null,null,null,null,null,null,null,null,null,null,null,null,null,null,null,null,null,{"$f":"AB74+AI74","v":0},null,null,null,null,null,null,null,null,null,null,null,null,null,null,null,null,null,null,null,null,0]
[null,null,"Convenios",null,null,null,null,null,null,null,null,null,null,null,null,null,null,null,null,null,null,null,null,null,null,null,null,null,null,null,null,null,null,null,null,null,null,null,null,null,null,{"$f":"AB75+AI75","v":0},null,null,null,null,null,null,null,null,null,null,null,null,null,null,null,null,null,null,null,null,0]
["Deuda Pública",null,null,null,null,null,null,null,null,null,null,null,null,null,null,null,null,null,null,null,null,null,null,null,null,null,null,{"$f":"SUM(AB77:AH83)","v":0},null,null,null,null,null,null,{"$f":"SUM(AI77:AO83)","v":0},null,null,null,null,null,null,{"$f":"SUM(AP77:AV83)","v":0},null,null,null,null,null,null,{"$f":"SUM(AW77:BC83)","v":0},null,null,null,null,null,null,{"$f":"SUM(BD77:BJ83)","v":0},null,null,null,null,null,null,0]
[null,null,"Amortización de la Deuda Pública",null,null,null,null,null,null,null,null,null,null,null,null,null,null,null,null,null,null,null,null,null,null,null,null,null,null,null,null,null,null,null,null,null,null,null,null,null,null,{"$f":"AB77+AI77","v":0},null,null,null,null,null,null,null,null,null,null,null,null,null,null,null,null,null,null,null,null,0]
[null,null,"Intereses de la Deuda Pública",null,null,null,null,null,null,null,null,null,null,null,null,null,null,null,null,null,null,null,null,null,null,null,null,null,null,null,null,null,null,null,null,null,null,null,null,null,null,{"$f":"AB78+AI78","v":0},null,null,null,null,null,null,null,null,null,null,null,null,null,null,null,null,null,null,null,null,0]
[null,null,"Comisones de la Deuda Pública",null,null,null,null,null,null,null,null,null,null,null,null,null,null,null,null,null,null,null,null,null,null,null,null,null,null,null,null,null,null,null,null,null,null,null,null,null,null,{"$f":"AB79+AI79","v":0},null,null,null,null,null,null,null,null,null,null,null,null,null,null,null,null,null,null,null,null,0]
[null,null,"Gastos de la Deuda Pública",null,null,null,null,null,null,null,null,null,null,null,null,null,null,null,null,null,null,null,null,null,null,null,null,null,null,null,null,null,null,null,null,null,null,null,null,null,null,{"$f":"AB80+AI80","v":0},null,null,null,null,null,null,null,null,null,null,null,null,null,null,null,null,null,null,null,null,0]
[null,null,"Costos por Coberturas",null,null,null,null,null,null,null,null,null,null,null,null,null,null,null,null,null,null,null,null,null,null,null,null,null,null,null,null,null,null,null,null,null,null,null,null,null,null,{"$f":"AB81+AI81","v":0},null,null,null,null,null,null,null,null,null,null,null,null,null,null,null,null,null,null,null,null,0]
[null,null,"Apoyos Financieros",null,null,null,null,null,null,null,null,null,null,null,null,null,null,null,null,null,null,null,null,null,null,null,null,null,null,null,null,null,null,null,null,null,null,null,null,null,null,{"$f":"AB82+AI82","v":0},null,null,null,null,null,null,null,null,null,null,null,null,null,null,null,null,null,null,null,null,{"$f":"AP82-AW82","v":0}]
[null,null,"Adeudos de Ejercicios Fiscales Anteriores (Adefas)",null,null,null,null,null,null,null,null,null,null,null,null,null,null,null,null,null,null,null,null,null,null,null,null,null,null,null,null,null,null,null,null,null,null,null,null,null,null,0,null,null,null,null,null,null,null,null,null,null,null,null,null,null,null,null,null,null,null,null,0]
["Total del Gasto",null,null,null,null,null,null,null,null,null,null,null,null,null,null,null,null,null,null,null,null,null,null,null,null,null,null,{"$f":"SUM(AB12+AB20+AB30+AB40+AB50+AB60+AB64+AB72+AB76)","v":0},null,null,null,null,null,null,{"$f":"SUM(AI12+AI20+AI30+AI40+AI50+AI60+AI64+AI72+AI76)","v":0},null,null,null,null,null,null,{"$f":"SUM(AP12+AP20+AP30+AP40+AP50+AP60+AP64+AP72+AP76)","v":0},null,null,null,null,null,null,{"$f":"SUM(AW12+AW20+AW30+AW40+AW50+AW60+AW64+AW72+AW76)","v":0},null,null,null,null,null,null,{"$f":"SUM(BD12+BD20+BD30+BD40+BD50+BD60+BD64+BD72+BD76)","v":0},null,null,null,null,null,null,{"$f":"SUM(BK12+BK20+BK30+BK40+BK50+BK60+BK64+BK72+BK76)","v":0}]

{"sheet":"EAEPE CE","index":15,"n_rows":17,"n_cols":63,"rows_kept":17,"cut":false,"hidden":false,"merged":[[16,0,16,26],[16,27,16,33],[16,62,16,68],[15,27,15,33],[15,34,15,40],[15,41,15,47],[15,48,15,54],[15,55,15,61],[15,62,15,68],[16,34,16,40],[16,41,16,47],[16,48,16,54],[16,55,16,61],[14,62,14,68],[13,27,13,33],[13,34,13,40],[13,41,13,47],[13,48,13,54],[13,55,13,61],[13,62,13,68],[14,27,14,33],[14,34,14,40],[14,41,14,47],[14,48,14,54],[14,55,14,61],[9,55,9,61],[12,62,12,68],[9,62,9,68],[11,27,11,33],[11,34,11,40],[11,41,11,47],[11,48,11,54],[11,55,11,61],[11,62,11,68],[12,27,12,33],[12,34,12,40],[12,41,12,47],[12,48,12,54],[12,55,12,61],[0,0,0,68],[1,0,1,68],[2,0,2,68],[3,3,3,5],[6,0,9,26],[6,27,6,61],[6,62,8,68],[7,27,8,33],[7,34,8,40],[7,41,8,47],[7,48,8,54],[7,55,8,61],[9,27,9,33],[9,34,9,40],[9,41,9,47],[9,48,9,54]]}
["Estado Analítico del Ejercicio del Presupuesto de Egresos"]
["Clasificación Económica (por Tipo de Gasto)"]
[{"$f":"ESF!A2","v":"1 enero al 31 de diciembre de 2022"}]
["CLAVE:",null,null,{"$f":"ESF!D3","v":2415},null,null,null,null,null,null,null,null,null,null,null,null,null,null,null,null,null,null,null,null,null,null,null,null,null,null,null,null,null,null,"(Pesos)"]
["ENTE PÚBLICO:",null,null,null,null,null,{"$f":"ESF!G4","v":"Tepango de Rodríguez"}]
[]
["Rubro de Ingresos",null,null,null,null,null,null,null,null,null,null,null,null,null,null,null,null,null,null,null,null,null,null,null,null,null,null,"Egresos",null,null,null,null,null,null,null,null,null,null,null,null,null,null,null,null,null,null,null,null,null,null,null,null,null,null,null,null,null,null,null,null,null,null,"Subejercicio"]
[null,null,null,null,null,null,null,null,null,null,null,null,null,null,null,null,null,null,null,null,null,null,null,null,null,null,null,"Aprobado",null,null,null,null,null,null,"Ampliaciones y (Reducciones)",null,null,null,null,null,null,"Modificado",null,null,null,null,null,null,"Devengado",null,null,null,null,null,null,"Pagado"]
[]
[null,null,null,null,null,null,null,null,null,null,null,null,null,null,null,null,null,null,null,null,null,null,null,null,null,null,null,"(1)",null,null,null,null,null,null,"(2)",null,null,null,null,null,null,"(3=1+2)",null,null,null,null,null,null,"(4)",null,null,null,null,null,null,"(5)",null,null,null,null,null,null,"(6=3-4)"]
[]
["Gasto Corriente",null,null,null,null,null,null,null,null,null,null,null,null,null,null,null,null,null,null,null,null,null,null,null,null,null,null,null,null,null,null,null,null,null,null,null,null,null,null,null,null,{"$f":"AB12+AI12","v":0},null,null,null,null,null,null,null,null,null,null,null,null,null,null,null,null,null,null,null,null,{"$f":"AP12-AW12","v":0}]
["Gasto de Capital",null,null,null,null,null,null,null,null,null,null,null,null,null,null,null,null,null,null,null,null,null,null,null,null,null,null,null,null,null,null,null,null,null,null,null,null,null,null,null,null,{"$f":"AB13+AI13","v":0},null,null,null,null,null,null,null,null,null,null,null,null,null,null,null,null,null,null,null,null,{"$f":"AP13-AW13","v":0}]
["Amortización de la Deuda y Disminución de Pasivos",null,null,null,null,null,null,null,null,null,null,null,null,null,null,null,null,null,null,null,null,null,null,null,null,null,null,null,null,null,null,null,null,null,null,null,null,null,null,null,null,0,null,null,null,null,null,null,null,null,null,null,null,null,null,null,null,null,null,null,null,null,{"$f":"AP14-AW14","v":0}]
["Pensiones y Jubilaciones",null,null,null,null,null,null,null,null,null,null,null,null,null,null,null,null,null,null,null,null,null,null,null,null,null,null,null,null,null,null,null,null,null,null,null,null,null,null,null,null,0,null,null,null,null,null,null,null,null,null,null,null,null,null,null,null,null,null,null,null,null,0]
["Participaciones",null,null,null,null,null,null,null,null,null,null,null,null,null,null,null,null,null,null,null,null,null,null,null,null,null,null,null,null,null,null,null,null,null,null,null,null,null,null,null,null,0,null,null,null,null,null,null,null,null,null,null,null,null,null,null,null,null,null,null,null,null,0]
["Total del Gasto",null,null,null,null,null,null,null,null,null,null,null,null,null,null,null,null,null,null,null,null,null,null,null,null,null,null,{"$f":"SUM(AB12:AH16)","v":0},null,null,null,null,null,null,{"$f":"SUM(AI12:AO16)","v":0},null,null,null,null,null,null,{"$f":"SUM(AP12:AV16)","v":0},null,null,null,null,null,null,{"$f":"SUM(AW12:BC16)","v":0},null,null,null,null,null,null,{"$f":"SUM(BD12:BJ16)","v":0},null,null,null,null,null,null,{"$f":"SUM(BK12+BK13+BK14+BK15+BK16)","v":0}]

{"sheet":"EAEPE CA","index":16,"n_rows":23,"n_cols":63,"rows_kept":23,"cut":false,"hidden":false,"merged":[[22,62,22,68],[22,0,22,26],[22,27,22,33],[22,34,22,40],[22,41,22,47],[22,48,22,54],[22,55,22,61],[20,62,20,68],[19,27,19,33],[19,34,19,40],[19,41,19,47],[19,48,19,54],[19,55,19,61],[19,62,19,68],[20,27,20,33],[20,34,20,40],[20,41,20,47],[20,48,20,54],[20,55,20,61],[18,62,18,68],[17,27,17,33],[17,34,17,40],[17,41,17,47],[17,48,17,54],[17,55,17,61],[17,62,17,68],[18,27,18,33],[18,34,18,40],[18,41,18,47],[18,48,18,54],[18,55,18,61],[16,62,16,68],[15,27,15,33],[15,34,15,40],[15,41,15,47],[15,48,15,54],[15,55,15,61],[15,62,15,68],[16,27,16,33],[16,34,16,40],[16,41,16,47],[16,48,16,54],[16,55,16,61],[14,62,14,68],[13,27,13,33],[13,34,13,40],[13,41,13,47],[13,48,13,54],[13,55,13,61],[13,62,13,68],[14,27,14,33],[14,34,14,40],[14,41,14,47],[14,48,14,54],[14,55,14,61],[9,48,9,54],[9,55,9,61],[12,62,12,68],[11,27,11,33],[11,34,11,40],[11,41,11,47],[11,48,11,54],[11,55,11,61],[11,62,11,68],[12,27,12,33],[12,34,12,40],[12,41,12,47],[12,48,12,54],[12,55,12,61],[0,0,0,68],[1,0,1,68],[2,0,2,68],[3,3,3,5],[6,0,9,26],[6,27,6,61],[6,62,8,68],[7,27,8,33],[7,34,8,40],[9,62,9,68],[7,41,8,47],[7,48,8,54],[7,55,8,61],[9,27,9,33],[9,34,9,40],[9,41,9,47]]}
["Estado Analítico del Ejercicio del Presupuesto de Egresos"]
["Clasificación Administrativa"]
[{"$f":"ESF!A2","v":"1 enero al 31 de diciembre de 2022"}]
["CLAVE:",null,null,{"$f":"ESF!D3","v":2415},null,null,null,null,null,null,null,null,null,null,null,null,null,null,null,null,null,null,null,null,null,null,null,null,null,null,null,null,null,null,"(Pesos)"]
["ENTE PÚBLICO:",null,null,null,null,null,{"$f":"ESF!G4","v":"Tepango de Rodríguez"}]
[]
["Rubro de Ingresos",null,null,null,null,null,null,null,null,null,null,null,null,null,null,null,null,null,null,null,null,null,null,null,null,null,null,"Egresos",null,null,null,null,null,null,null,null,null,null,null,null,null,null,null,null,null,null,null,null,null,null,null,null,null,null,null,null,null,null,null,null,null,null,"Subejercicio"]
[null,null,null,null,null,null,null,null,null,null,null,null,null,null,null,null,null,null,null,null,null,null,null,null,null,null,null,"Aprobado",null,null,null,null,null,null,"Ampliaciones y (Reducciones)",null,null,null,null,null,null,"Modificado",null,null,null,null,null,null,"Devengado",null,null,null,null,null,null,"Pagado"]
[]
[null,null,null,null,null,null,null,null,null,null,null,null,null,null,null,null,null,null,null,null,null,null,null,null,null,null,null,"(1)",null,null,null,null,null,null,"(2)",null,null,null,null,null,null,"(3=1+2)",null,null,null,null,null,null,"(4)",null,null,null,null,null,null,"(5)",null,null,null,null,null,null,"(6=3-4)"]
[]
["Dependencia o Unidad Aministrativa 1",null,null,null,null,null,null,null,null,null,null,null,null,null,null,null,null,null,null,null,null,null,null,null,null,null,null,null,null,null,null,null,null,null,null,null,null,null,null,null,null,{"$f":"AB12+AI12","v":0},null,null,null,null,null,null,null,null,null,null,null,null,null,null,null,null,null,null,null,null,{"$f":"AP12-AW12","v":0}]
["Dependencia o Unidad Aministrativa 2",null,null,null,null,null,null,null,null,null,null,null,null,null,null,null,null,null,null,null,null,null,null,null,null,null,null,null,null,null,null,null,null,null,null,null,null,null,null,null,null,{"$f":"AB13+AI13","v":0},null,null,null,null,null,null,null,null,null,null,null,null,null,null,null,null,null,null,null,null,0]
["Dependencia o Unidad Aministrativa 3",null,null,null,null,null,null,null,null,null,null,null,null,null,null,null,null,null,null,null,null,null,null,null,null,null,null,null,null,null,null,null,null,null,null,null,null,null,null,null,null,0,null,null,null,null,null,null,null,null,null,null,null,null,null,null,null,null,null,null,null,null,0]
["Dependencia o Unidad Aministrativa 4",null,null,null,null,null,null,null,null,null,null,null,null,null,null,null,null,null,null,null,null,null,null,null,null,null,null,null,null,null,null,null,null,null,null,null,null,null,null,null,null,0,null,null,null,null,null,null,null,null,null,null,null,null,null,null,null,null,null,null,null,null,0]
["Dependencia o Unidad Aministrativa 5",null,null,null,null,null,null,null,null,null,null,null,null,null,null,null,null,null,null,null,null,null,null,null,null,null,null,null,null,null,null,null,null,null,null,null,null,null,null,null,null,0,null,null,null,null,null,null,null,null,null,null,null,null,null,null,null,null,null,null,null,null,0]
["Dependencia o Unidad Aministrativa 6",null,null,null,null,null,null,null,null,null,null,null,null,null,null,null,null,null,null,null,null,null,null,null,null,null,null,null,null,null,null,null,null,null,null,null,null,null,null,null,null,0,null,null,null,null,null,null,null,null,null,null,null,null,null,null,null,null,null,null,null,null,{"$f":"AP17-AW17","v":0}]
["Dependencia o Unidad Aministrativa 7",null,null,null,null,null,null,null,null,null,null,null,null,null,null,null,null,null,null,null,null,null,null,null,null,null,null,null,null,null,null,null,null,null,null,null,null,null,null,null,null,0,null,null,null,null,null,null,null,null,null,null,null,null,null,null,null,null,null,null,null,null,0]
["Dependencia o Unidad Aministrativa 8",null,null,null,null,null,null,null,null,null,null,null,null,null,null,null,null,null,null,null,null,null,null,null,null,null,null,null,null,null,null,null,null,null,null,null,null,null,null,null,null,0,null,null,null,null,null,null,null,null,null,null,null,null,null,null,null,null,null,null,null,null,0]
["Dependencia o Unidad Aministrativa 9",null,null,null,null,null,null,null,null,null,null,null,null,null,null,null,null,null,null,null,null,null,null,null,null,null,null,null,null,null,null,null,null,null,null,null,null,null,null,null,null,0,null,null,null,null,null,null,null,null,null,null,null,null,null,null,null,null,null,null,null,null,0]
["Dependencia o Unidad Aministrativa 10",null,null,null,null,null,null,null,null,null,null,null,null,null,null,null,null,null,null,null,null,null,null,null,null,null,null,null,null,null,null,null,null,null,null,null,null,null,null,null,null,0,null,null,null,null,null,null,null,null,null,null,null,null,null,null,null,null,null,null,null,null,0]
[]
["Total del Gasto",null,null,null,null,null,null,null,null,null,null,null,null,null,null,null,null,null,null,null,null,null,null,null,null,null,null,{"$f":"SUM(AB12:AH21)","v":0},null,null,null,null,null,null,{"$f":"SUM(AI12:AO21)","v":0},null,null,null,null,null,null,{"$f":"SUM(AP12:AV21)","v":0},null,null,null,null,null,null,{"$f":"SUM(AW12:BC21)","v":0},null,null,null,null,null,null,{"$f":"SUM(BD12:BJ21)","v":0},null,null,null,null,null,null,{"$f":"SUM(BK12+BK13+BK14+BK15+BK16)","v":0}]

{"sheet":"EAEPE CF","index":17,"n_rows":43,"n_cols":63,"rows_kept":43,"cut":false,"hidden":false,"merged":[[35,27,35,33],[35,34,35,40],[35,41,35,47],[35,48,35,54],[35,55,35,61],[35,62,35,68],[41,27,41,33],[41,34,41,40],[41,41,41,47],[41,48,41,54],[41,55,41,61],[41,62,41,68],[40,27,40,33],[40,34,40,40],[40,41,40,47],[40,48,40,54],[40,55,40,61],[40,62,40,68],[36,34,36,40],[36,41,36,47],[36,48,36,54],[36,55,36,61],[36,62,36,68],[32,27,32,33],[32,34,32,40],[32,41,32,47],[32,48,32,54],[32,55,32,61],[32,62,32,68],[31,27,31,33],[31,34,31,40],[31,41,31,47],[31,48,31,54],[31,55,31,61],[31,62,31,68],[30,27,30,33],[30,34,30,40],[30,41,30,47],[30,48,30,54],[30,55,30,61],[30,62,30,68],[23,27,23,33],[23,34,23,40],[23,41,23,47],[23,48,23,54],[23,55,23,61],[23,62,23,68],[29,27,29,33],[29,34,29,40],[29,41,29,47],[29,48,29,54],[29,55,29,61],[29,62,29,68],[28,27,28,33],[28,34,28,40],[28,41,28,47],[28,48,28,54],[28,55,28,61],[28,62,28,68],[22,27,22,33],[22,34,22,40],[22,41,22,47],[22,48,22,54],[22,55,22,61],[22,62,22,68],[21,27,21,33],[21,34,21,40],[21,41,21,47],[21,48,21,54],[21,55,21,61],[21,62,21,68],[42,62,42,68],[15,27,15,33],[15,34,15,40],[15,41,15,47],[15,48,15,54],[15,55,15,61],[15,62,15,68],[16,27,16,33],[16,34,16,40],[16,41,16,47],[39,62,39,68],[38,27,38,33],[38,34,38,40],[38,41,38,47],[38,48,38,54],[38,55,38,61],[38,62,38,68],[37,27,37,33],[37,34,37,40],[37,41,37,47],[37,48,37,54],[37,55,37,61],[37,62,37,68],[36,27,36,33],[42,0,42,26],[42,27,42,33],[42,34,42,40],[42,41,42,47],[42,48,42,54],[42,55,42,61],[39,27,39,33],[39,34,39,40],[39,41,39,47],[39,48,39,54],[39,55,39,61],[34,27,34,33],[34,34,34,40],[34,41,34,47],[34,48,34,54],[34,55,34,61],[34,62,34,68],[33,27,33,33],[33,34,33,40],[33,41,33,47],[33,48,33,54],[33,55,33,61],[33,62,33,68],[27,27,27,33],[27,34,27,40],[27,41,27,47],[27,48,27,54],[27,55,27,61],[27,62,27,68],[26,27,26,33],[26,34,26,40],[26,41,26,47],[26,48,26,54],[26,55,26,61],[26,62,26,68],[25,27,25,33],[25,34,25,40],[25,41,25,47],[25,48,25,54],[25,55,25,61],[25,62,25,68],[24,27,24,33],[24,34,24,40],[24,41,24,47],[24,48,24,54],[24,55,24,61],[24,62,24,68],[20,27,20,33],[20,34,20,40],[20,41,20,47],[20,48,20,54],[20,55,20,61],[20,62,20,68],[19,27,19,33],[19,34,19,40],[19,41,19,47],[19,48,19,54],[19,55,19,61],[19,62,19,68],[18,27,18,33],[18,34,18,40],[18,41,18,47],[18,48,18,54],[18,55,18,61],[18,62,18,68],[14,27,14,33],[14,34,14,40],[14,41,14,47],[14,48,14,54],[14,55,14,61],[14,62,14,68],[16,48,16,54],[16,55,16,61],[16,62,16,68],[17,27,17,33],[17,34,17,40],[17,41,17,47],[17,48,17,54],[17,55,17,61],[17,62,17,68],[13,27,13,33],[13,34,13,40],[13,41,13,47],[13,48,13,54],[13,55,13,61],[13,62,13,68],[12,27,12,33],[12,34,12,40],[12,41,12,47],[12,48,12,54],[12,55,12,61],[12,62,12,68],[11,27,11,33],[11,34,11,40],[11,41,11,47],[11,48,11,54],[11,55,11,61],[11,62,11,68],[7,41,8,47],[7,48,8,54],[7,55,8,61],[9,27,9,33],[9,34,9,40],[9,41,9,47],[9,48,9,54],[9,55,9,61],[0,0,0,68],[1,0,1,68],[2,0,2,68],[3,3,3,5],[6,0,9,26],[6,27,6,61],[6,62,8,68],[7,27,8,33],[7,34,8,40],[9,62,9,68]]}
["Estado Analítico del Ejercicio del Presupuesto de Egresos"]
["Clasificación Funcional (Finalidad y Función)"]
[{"$f":"ESF!A2","v":"1 enero al 31 de diciembre de 2022"}]
["CLAVE:",null,null,{"$f":"ESF!D3","v":2415},null,null,null,null,null,null,null,null,null,null,null,null,null,null,null,null,null,null,null,null,null,null,null,null,null,null,null,null,null,null,"(Pesos)"]
["ENTE PÚBLICO:",null,null,null,null,null,{"$f":"ESF!G4","v":"Tepango de Rodríguez"}]
[]
["Rubro de Ingresos",null,null,null,null,null,null,null,null,null,null,null,null,null,null,null,null,null,null,null,null,null,null,null,null,null,null,"Egresos",null,null,null,null,null,null,null,null,null,null,null,null,null,null,null,null,null,null,null,null,null,null,null,null,null,null,null,null,null,null,null,null,null,null,"Subejercicio"]
[null,null,null,null,null,null,null,null,null,null,null,null,null,null,null,null,null,null,null,null,null,null,null,null,null,null,null,"Aprobado",null,null,null,null,null,null,"Ampliaciones y (Reducciones)",null,null,null,null,null,null,"Modificado",null,null,null,null,null,null,"Devengado",null,null,null,null,null,null,"Pagado"]
[]
[null,null,null,null,null,null,null,null,null,null,null,null,null,null,null,null,null,null,null,null,null,null,null,null,null,null,null,"(1)",null,null,null,null,null,null,"(2)",null,null,null,null,null,null,"(3=1+2)",null,null,null,null,null,null,"(4)",null,null,null,null,null,null,"(5)",null,null,null,null,null,null,"(6=3-4)"]
[]
["Gobierno",null,null,null,null,null,null,null,null,null,null,null,null,null,null,null,null,null,null,null,null,null,null,null,null,null,null,{"$f":"SUM(AB13:AH19)","v":0},null,null,null,null,null,null,{"$f":"SUM(AI13:AO19)","v":0},null,null,null,null,null,null,{"$f":"SUM(AP13:AV19)","v":0},null,null,null,null,null,null,{"$f":"SUM(AW13:BC19)","v":0},null,null,null,null,null,null,{"$f":"SUM(BD13:BJ19)","v":0},null,null,null,null,null,null,{"$f":"AP12-AW12","v":0}]
[null,null,"Legislación",null,null,null,null,null,null,null,null,null,null,null,null,null,null,null,null,null,null,null,null,null,null,null,null,null,null,null,null,null,null,null,null,null,null,null,null,null,null,{"$f":"AB13+AI13","v":0},null,null,null,null,null,null,null,null,null,null,null,null,null,null,null,null,null,null,null,null,0]
[null,null,"Justicia",null,null,null,null,null,null,null,null,null,null,null,null,null,null,null,null,null,null,null,null,null,null,null,null,null,null,null,null,null,null,null,null,null,null,null,null,null,null,0,null,null,null,null,null,null,null,null,null,null,null,null,null,null,null,null,null,null,null,null,0]
[null,null,"Coordinador de la Politica de Gobierno",null,null,null,null,null,null,null,null,null,null,null,null,null,null,null,null,null,null,null,null,null,null,null,null,null,null,null,null,null,null,null,null,null,null,null,null,null,null,0,null,null,null,null,null,null,null,null,null,null,null,null,null,null,null,null,null,null,null,null,0]
[null,null,"Asuntos Financieros y Hacendarios",null,null,null,null,null,null,null,null,null,null,null,null,null,null,null,null,null,null,null,null,null,null,null,null,null,null,null,null,null,null,null,null,null,null,null,null,null,null,{"$f":"AB16+AI16","v":0},null,null,null,null,null,null,null,null,null,null,null,null,null,null,null,null,null,null,null,null,{"$f":"AP16-AW16","v":0}]
[null,null,"Seguridad Nacional",null,null,null,null,null,null,null,null,null,null,null,null,null,null,null,null,null,null,null,null,null,null,null,null,null,null,null,null,null,null,null,null,null,null,null,null,null,null,0,null,null,null,null,null,null,null,null,null,null,null,null,null,null,null,null,null,null,null,null,0]
[null,null,"Asuntos de Orden Público y de Seguridad Interior",null,null,null,null,null,null,null,null,null,null,null,null,null,null,null,null,null,null,null,null,null,null,null,null,null,null,null,null,null,null,null,null,null,null,null,null,null,null,0,null,null,null,null,null,null,null,null,null,null,null,null,null,null,null,null,null,null,null,null,0]
[null,null,"Otros Servicios Generales",null,null,null,null,null,null,null,null,null,null,null,null,null,null,null,null,null,null,null,null,null,null,null,null,null,null,null,null,null,null,null,null,null,null,null,null,null,null,0,null,null,null,null,null,null,null,null,null,null,null,null,null,null,null,null,null,null,null,null,0]
["Desarrollo Social",null,null,null,null,null,null,null,null,null,null,null,null,null,null,null,null,null,null,null,null,null,null,null,null,null,null,{"$f":"SUM(AB21:AH27)","v":0},null,null,null,null,null,null,{"$f":"SUM(AI21:AO27)","v":0},null,null,null,null,null,null,{"$f":"SUM(AP21:AV27)","v":0},null,null,null,null,null,null,{"$f":"SUM(AW21:BC27)","v":0},null,null,null,null,null,null,{"$f":"SUM(BD21:BJ27)","v":0},null,null,null,null,null,null,0]
[null,null,"Protección ambiental",null,null,null,null,null,null,null,null,null,null,null,null,null,null,null,null,null,null,null,null,null,null,null,null,null,null,null,null,null,null,null,null,null,null,null,null,null,null,{"$f":"AB21+AI21","v":0},null,null,null,null,null,null,null,null,null,null,null,null,null,null,null,null,null,null,null,null,0]
[null,null,"Vivienda y Servicios a la Comunidad",null,null,null,null,null,null,null,null,null,null,null,null,null,null,null,null,null,null,null,null,null,null,null,null,null,null,null,null,null,null,null,null,null,null,null,null,null,null,{"$f":"AB22+AI22","v":0},null,null,null,null,null,null,null,null,null,null,null,null,null,null,null,null,null,null,null,null,{"$f":"AP22-AW22","v":0}]
[null,null,"Salud",null,null,null,null,null,null,null,null,null,null,null,null,null,null,null,null,null,null,null,null,null,null,null,null,null,null,null,null,null,null,null,null,null,null,null,null,null,null,0,null,null,null,null,null,null,null,null,null,null,null,null,null,null,null,null,null,null,null,null,0]
[null,null,"Recreación, Cultura y Otras Manifestaciones Sociales",null,null,null,null,null,null,null,null,null,null,null,null,null,null,null,null,null,null,null,null,null,null,null,null,null,null,null,null,null,null,null,null,null,null,null,null,null,null,0,null,null,null,null,null,null,null,null,null,null,null,null,null,null,null,null,null,null,null,null,0]
[null,null,"Educación",null,null,null,null,null,null,null,null,null,null,null,null,null,null,null,null,null,null,null,null,null,null,null,null,null,null,null,null,null,null,null,null,null,null,null,null,null,null,{"$f":"AB25+AI25","v":0},null,null,null,null,null,null,null,null,null,null,null,null,null,null,null,null,null,null,null,null,0]
[null,null,"Protección Social",null,null,null,null,null,null,null,null,null,null,null,null,null,null,null,null,null,null,null,null,null,null,null,null,null,null,null,null,null,null,null,null,null,null,null,null,null,null,{"$f":"AB26+AI26","v":0},null,null,null,null,null,null,null,null,null,null,null,null,null,null,null,null,null,null,null,null,0]
[null,null,"Otros Asuntos Sociales",null,null,null,null,null,null,null,null,null,null,null,null,null,null,null,null,null,null,null,null,null,null,null,null,null,null,null,null,null,null,null,null,null,null,null,null,null,null,{"$f":"AB27+AI27","v":0},null,null,null,null,null,null,null,null,null,null,null,null,null,null,null,null,null,null,null,null,0]
["Desarrollo Económico",null,null,null,null,null,null,null,null,null,null,null,null,null,null,null,null,null,null,null,null,null,null,null,null,null,null,{"$f":"SUM(AB29:AH37)","v":0},null,null,null,null,null,null,{"$f":"SUM(AI29:AO37)","v":0},null,null,null,null,null,null,{"$f":"SUM(AP29:AV37)","v":0},null,null,null,null,null,null,{"$f":"SUM(AW29:BC37)","v":0},null,null,null,null,null,null,{"$f":"SUM(BD29:BJ37)","v":0},null,null,null,null,null,null,0]
[null,null,"Asuntos Económicos, Comerciales y Laborales en General",null,null,null,null,null,null,null,null,null,null,null,null,null,null,null,null,null,null,null,null,null,null,null,null,null,null,null,null,null,null,null,null,null,null,null,null,null,null,{"$f":"AB29+AI29","v":0},null,null,null,null,null,null,null,null,null,null,null,null,null,null,null,null,null,null,null,null,0]
[null,null,"Agropecuaria, Silvicultura, Pesca y Caza",null,null,null,null,null,null,null,null,null,null,null,null,null,null,null,null,null,null,null,null,null,null,null,null,null,null,null,null,null,null,null,null,null,null,null,null,null,null,{"$f":"AB30+AI30","v":0},null,null,null,null,null,null,null,null,null,null,null,null,null,null,null,null,null,null,null,null,0]
[null,null,"Combustibles y Energía",null,null,null,null,null,null,null,null,null,null,null,null,null,null,null,null,null,null,null,null,null,null,null,null,null,null,null,null,null,null,null,null,null,null,null,null,null,null,{"$f":"AB31+AI31","v":0},null,null,null,null,null,null,null,null,null,null,null,null,null,null,null,null,null,null,null,null,{"$f":"AP31-AW31","v":0}]
[null,null,"Minería, Manufacturas y Contrucción",null,null,null,null,null,null,null,null,null,null,null,null,null,null,null,null,null,null,null,null,null,null,null,null,null,null,null,null,null,null,null,null,null,null,null,null,null,null,0,null,null,null,null,null,null,null,null,null,null,null,null,null,null,null,null,null,null,null,null,0]
[null,null,"Transporte",null,null,null,null,null,null,null,null,null,null,null,null,null,null,null,null,null,null,null,null,null,null,null,null,null,null,null,null,null,null,null,null,null,null,null,null,null,null,0,null,null,null,null,null,null,null,null,null,null,null,null,null,null,null,null,null,null,null,null,0]
[null,null,"Comunicaciones",null,null,null,null,null,null,null,null,null,null,null,null,null,null,null,null,null,null,null,null,null,null,null,null,null,null,null,null,null,null,null,null,null,null,null,null,null,null,{"$f":"AB34+AI34","v":0},null,null,null,null,null,null,null,null,null,null,null,null,null,null,null,null,null,null,null,null,0]
[null,null,"Turismo",null,null,null,null,null,null,null,null,null,null,null,null,null,null,null,null,null,null,null,null,null,null,null,null,null,null,null,null,null,null,null,null,null,null,null,null,null,null,{"$f":"AB35+AI35","v":0},null,null,null,null,null,null,null,null,null,null,null,null,null,null,null,null,null,null,null,null,0]
[null,null,"Ciencia, Tecnología e Innovación",null,null,null,null,null,null,null,null,null,null,null,null,null,null,null,null,null,null,null,null,null,null,null,null,null,null,null,null,null,null,null,null,null,null,null,null,null,null,{"$f":"AB36+AI36","v":0},null,null,null,null,null,null,null,null,null,null,null,null,null,null,null,null,null,null,null,null,{"$f":"AP36-AW36","v":0}]
[null,null,"Otras Industrias y Otros Asuntos Económicos",null,null,null,null,null,null,null,null,null,null,null,null,null,null,null,null,null,null,null,null,null,null,null,null,null,null,null,null,null,null,null,null,null,null,null,null,null,null,{"$f":"AB37+AI37","v":0},null,null,null,null,null,null,null,null,null,null,null,null,null,null,null,null,null,null,null,null,0]
["Otras no Clasificadas en Funciones Anteriores",null,null,null,null,null,null,null,null,null,null,null,null,null,null,null,null,null,null,null,null,null,null,null,null,null,null,{"$f":"SUM(AB39:AH42)","v":0},null,null,null,null,null,null,{"$f":"SUM(AI39:AO42)","v":0},null,null,null,null,null,null,{"$f":"SUM(AP39:AV42)","v":0},null,null,null,null,null,null,{"$f":"SUM(AW39:BC42)","v":0},null,null,null,null,null,null,{"$f":"SUM(BD39:BJ42)","v":0},null,null,null,null,null,null,0]
[null,null,"Transacciones de la Deuda Pública / Costo Financiero de la Deuda",null,null,null,null,null,null,null,null,null,null,null,null,null,null,null,null,null,null,null,null,null,null,null,null,null,null,null,null,null,null,null,null,null,null,null,null,null,null,{"$f":"AB39+AI39","v":0},null,null,null,null,null,null,null,null,null,null,null,null,null,null,null,null,null,null,null,null,0]
[null,null,"Transferencias, Participaciones y Aportaciones entre Diferentes Niveles y Ordenes de Gobierno ",null,null,null,null,null,null,null,null,null,null,null,null,null,null,null,null,null,null,null,null,null,null,null,null,null,null,null,null,null,null,null,null,null,null,null,null,null,null,{"$f":"AB40+AI40","v":0},null,null,null,null,null,null,null,null,null,null,null,null,null,null,null,null,null,null,null,null,0]
[null,null,"Saneamiento del Sistema Financiero",null,null,null,null,null,null,null,null,null,null,null,null,null,null,null,null,null,null,null,null,null,null,null,null,null,null,null,null,null,null,null,null,null,null,null,null,null,null,{"$f":"AB41+AI41","v":0},null,null,null,null,null,null,null,null,null,null,null,null,null,null,null,null,null,null,null,null,{"$f":"AP41-AW41","v":0}]
[null,null,"Adeudos de Ejercicios Fiscales Anteriores",null,null,null,null,null,null,null,null,null,null,null,null,null,null,null,null,null,null,null,null,null,null,null,null,null,null,null,null,null,null,null,null,null,null,null,null,null,null,0,null,null,null,null,null,null,null,null,null,null,null,null,null,null,null,null,null,null,null,null,0]
["Total del Gasto",null,null,null,null,null,null,null,null,null,null,null,null,null,null,null,null,null,null,null,null,null,null,null,null,null,null,{"$f":"SUM(AB12+AB20+AB28+AB38)","v":0},null,null,null,null,null,null,{"$f":"SUM(AI12+AI20+AI28+AI38)","v":0},null,null,null,null,null,null,{"$f":"SUM(AP12+AP20+AP28+AP38)","v":0},null,null,null,null,null,null,{"$f":"SUM(AW12+AW20+AW28+AW38)","v":0},null,null,null,null,null,null,{"$f":"SUM(BD12+BD20+BD28+BD38)","v":0},null,null,null,null,null,null,{"$f":"SUM(BK12+BK20+BK28+BK38)","v":0}]

{"sheet":"EN","index":18,"n_rows":26,"n_cols":50,"rows_kept":26,"cut":false,"hidden":false,"merged":[[15,0,15,26],[24,0,24,26],[16,0,16,59],[25,0,25,26],[25,27,25,37],[25,38,25,48],[25,49,25,59],[24,27,24,37],[24,38,24,48],[24,49,24,59],[23,27,23,37],[23,38,23,48],[23,49,23,59],[22,27,22,37],[22,38,22,48],[22,49,22,59],[21,27,21,37],[21,38,21,48],[21,49,21,59],[20,27,20,37],[20,38,20,48],[20,49,20,59],[19,27,19,37],[19,38,19,48],[19,49,19,59],[18,27,18,37],[18,38,18,48],[18,49,18,59],[17,27,17,37],[17,38,17,48],[17,49,17,59],[15,27,15,37],[15,38,15,48],[15,49,15,59],[14,27,14,37],[14,38,14,48],[14,49,14,59],[13,27,13,37],[13,38,13,48],[13,49,13,59],[12,27,12,37],[12,38,12,48],[12,49,12,59],[11,27,11,37],[11,38,11,48],[11,49,11,59],[10,27,10,37],[10,38,10,48],[10,49,10,59],[9,27,9,37],[9,38,9,48],[9,49,9,59],[8,27,8,37],[8,38,8,48],[8,49,8,59],[5,49,5,59],[6,27,6,37],[6,38,6,48],[6,49,6,59],[7,0,7,59],[0,0,0,59],[1,0,1,59],[2,3,2,5],[5,0,6,26],[5,27,5,37],[5,38,5,48]]}
["Endeudamiento Neto"]
[{"$f":"ESF!A2","v":"1 enero al 31 de diciembre de 2022"}]
["CLAVE:",null,null,{"$f":"ESF!D3","v":2415},null,null,null,null,null,null,null,null,null,null,null,null,null,null,null,null,null,null,null,null,null,null,null,null,"(Pesos)"]
["ENTE PÚBLICO:",null,null,null,null,null,{"$f":"ESF!G4","v":"Tepango de Rodríguez"}]
[]
["Identificación de Crédito o Instrumento",null,null,null,null,null,null,null,null,null,null,null,null,null,null,null,null,null,null,null,null,null,null,null,null,null,null,"Contratación / Colocación",null,null,null,null,null,null,null,null,null,null,"Amortización",null,null,null,null,null,null,null,null,null,null,"Endeudamiento Neto"]
[null,null,null,null,null,null,null,null,null,null,null,null,null,null,null,null,null,null,null,null,null,null,null,null,null,null,null,"A",null,null,null,null,null,null,null,null,null,null,"B",null,null,null,null,null,null,null,null,null,null,"C=A-B"]
["Créditos Bancarios"]
[null,null,null,null,null,null,null,null,null,null,null,null,null,null,null,null,null,null,null,null,null,null,null,null,null,null,null,null,null,null,null,null,null,null,null,null,null,null,null,null,null,null,null,null,null,null,null,null,null,{"$f":"AB9-AM9","v":0}]
[null,null,null,null,null,null,null,null,null,null,null,null,null,null,null,null,null,null,null,null,null,null,null,null,null,null,null,null,null,null,null,null,null,null,null,null,null,null,null,null,null,null,null,null,null,null,null,null,null,{"$f":"AB10-AM10","v":0}]
[null,null,null,null,null,null,null,null,null,null,null,null,null,null,null,null,null,null,null,null,null,null,null,null,null,null,null,null,null,null,null,null,null,null,null,null,null,null,null,null,null,null,null,null,null,null,null,null,null,0]
[null,null,null,null,null,null,null,null,null,null,null,null,null,null,null,null,null,null,null,null,null,null,null,null,null,null,null,null,null,null,null,null,null,null,null,null,null,null,null,null,null,null,null,null,null,null,null,null,null,0]
[null,null,null,null,null,null,null,null,null,null,null,null,null,null,null,null,null,null,null,null,null,null,null,null,null,null,null,null,null,null,null,null,null,null,null,null,null,null,null,null,null,null,null,null,null,null,null,null,null,0]
[null,null,null,null,null,null,null,null,null,null,null,null,null,null,null,null,null,null,null,null,null,null,null,null,null,null,null,null,null,null,null,null,null,null,null,null,null,null,null,null,null,null,null,null,null,null,null,null,null,0]
[null,null,null,null,null,null,null,null,null,null,null,null,null,null,null,null,null,null,null,null,null,null,null,null,null,null,null,null,null,null,null,null,null,null,null,null,null,null,null,null,null,null,null,null,null,null,null,null,null,0]
["Total de Créditos Bancarios",null,null,null,null,null,null,null,null,null,null,null,null,null,null,null,null,null,null,null,null,null,null,null,null,null,null,{"$f":"SUM(AB9:AL15)","v":0},null,null,null,null,null,null,null,null,null,null,{"$f":"SUM(AM9:AW15)","v":0},null,null,null,null,null,null,null,null,null,null,{"$f":"AB16-AM16","v":0}]
["Otros Instrumentos de Deuda"]
[null,null,null,null,null,null,null,null,null,null,null,null,null,null,null,null,null,null,null,null,null,null,null,null,null,null,null,null,null,null,null,null,null,null,null,null,null,null,null,null,null,null,null,null,null,null,null,null,null,{"$f":"AB18-AM18","v":0}]
[null,null,null,null,null,null,null,null,null,null,null,null,null,null,null,null,null,null,null,null,null,null,null,null,null,null,null,null,null,null,null,null,null,null,null,null,null,null,null,null,null,null,null,null,null,null,null,null,null,0]
[null,null,null,null,null,null,null,null,null,null,null,null,null,null,null,null,null,null,null,null,null,null,null,null,null,null,null,null,null,null,null,null,null,null,null,null,null,null,null,null,null,null,null,null,null,null,null,null,null,0]
[null,null,null,null,null,null,null,null,null,null,null,null,null,null,null,null,null,null,null,null,null,null,null,null,null,null,null,null,null,null,null,null,null,null,null,null,null,null,null,null,null,null,null,null,null,null,null,null,null,0]
[null,null,null,null,null,null,null,null,null,null,null,null,null,null,null,null,null,null,null,null,null,null,null,null,null,null,null,null,null,null,null,null,null,null,null,null,null,null,null,null,null,null,null,null,null,null,null,null,null,0]
[null,null,null,null,null,null,null,null,null,null,null,null,null,null,null,null,null,null,null,null,null,null,null,null,null,null,null,null,null,null,null,null,null,null,null,null,null,null,null,null,null,null,null,null,null,null,null,null,null,0]
[null,null,null,null,null,null,null,null,null,null,null,null,null,null,null,null,null,null,null,null,null,null,null,null,null,null,null,null,null,null,null,null,null,null,null,null,null,null,null,null,null,null,null,null,null,null,null,null,null,0]
["Total Otros Instrumentos de Deuda",null,null,null,null,null,null,null,null,null,null,null,null,null,null,null,null,null,null,null,null,null,null,null,null,null,null,{"$f":"SUM(AB18:AL24)","v":0},null,null,null,null,null,null,null,null,null,null,{"$f":"SUM(AM18:AW24)","v":0},null,null,null,null,null,null,null,null,null,null,{"$f":"AB25-AM25","v":0}]
["Total",null,null,null,null,null,null,null,null,null,null,null,null,null,null,null,null,null,null,null,null,null,null,null,null,null,null,{"$f":"SUM(AB16+AB25)","v":0},null,null,null,null,null,null,null,null,null,null,{"$f":"SUM(AM16+AM25)","v":0},null,null,null,null,null,null,null,null,null,null,{"$f":"AB26-AM26","v":0}]

{"sheet":"ID","index":19,"n_rows":26,"n_cols":39,"rows_kept":26,"cut":false,"hidden":false,"merged":[[25,0,25,26],[25,27,25,37],[25,38,25,48],[23,27,23,37],[23,38,23,48],[24,0,24,26],[24,27,24,37],[24,38,24,48],[21,27,21,37],[21,38,21,48],[22,27,22,37],[22,38,22,48],[19,27,19,37],[19,38,19,48],[20,27,20,37],[20,38,20,48],[16,0,16,48],[17,27,17,37],[17,38,17,48],[18,27,18,37],[18,38,18,48],[14,27,14,37],[14,38,14,48],[15,0,15,26],[15,27,15,37],[15,38,15,48],[12,27,12,37],[12,38,12,48],[13,27,13,37],[13,38,13,48],[10,27,10,37],[10,38,10,48],[11,27,11,37],[11,38,11,48],[7,0,7,48],[8,27,8,37],[8,38,8,48],[9,27,9,37],[9,38,9,48],[0,0,0,48],[1,0,1,48],[2,3,2,5],[5,0,6,26],[5,27,5,37],[5,38,5,48],[6,27,6,37],[6,38,6,48]]}
["Intereses de la Deuda"]
[{"$f":"ESF!A2","v":"1 enero al 31 de diciembre de 2022"}]
["CLAVE:",null,null,{"$f":"ESF!D3","v":2415},null,null,null,null,null,null,null,null,null,null,null,null,null,null,null,null,null,null,null,null,"(Pesos)"]
["ENTE PÚBLICO:",null,null,null,null,null,{"$f":"ESF!G4","v":"Tepango de Rodríguez"}]
[]
["Identificación de Crédito o Instrumento",null,null,null,null,null,null,null,null,null,null,null,null,null,null,null,null,null,null,null,null,null,null,null,null,null,null,"Devengado",null,null,null,null,null,null,null,null,null,null,"Pagado"]
[null,null,null,null,null,null,null,null,null,null,null,null,null,null,null,null,null,null,null,null,null,null,null,null,null,null,null,"A",null,null,null,null,null,null,null,null,null,null,"B"]
["Créditos Bancarios"]
[]
[]
[]
[]
[]
[]
[]
["Total de intereses Bancarios",null,null,null,null,null,null,null,null,null,null,null,null,null,null,null,null,null,null,null,null,null,null,null,null,null,null,{"$f":"SUM(AB9:AL15)","v":0},null,null,null,null,null,null,null,null,null,null,{"$f":"SUM(AM9:AW15)","v":0}]
["Otros Instrumentos de Deuda"]
[]
[]
[]
[]
[]
[]
[]
["Total de Intereses de Otros Instrumentos de Deuda",null,null,null,null,null,null,null,null,null,null,null,null,null,null,null,null,null,null,null,null,null,null,null,null,null,null,{"$f":"SUM(AB18:AL24)","v":0},null,null,null,null,null,null,null,null,null,null,{"$f":"SUM(AM18:AW24)","v":0}]
["Total",null,null,null,null,null,null,null,null,null,null,null,null,null,null,null,null,null,null,null,null,null,null,null,null,null,null,{"$f":"SUM(AB16+AB25)","v":0},null,null,null,null,null,null,null,null,null,null,{"$f":"SUM(AM16+AM25)","v":0}]

{"sheet":"GCP","index":20,"n_rows":40,"n_cols":63,"rows_kept":40,"cut":false,"hidden":false,"merged":[[37,27,37,33],[37,34,37,40],[37,41,37,47],[37,48,37,54],[37,55,37,61],[37,62,37,68],[36,27,36,33],[36,34,36,40],[36,41,36,47],[36,48,36,54],[36,55,36,61],[36,62,36,68],[35,27,35,33],[35,34,35,40],[35,41,35,47],[35,48,35,54],[35,55,35,61],[35,62,35,68],[34,27,34,33],[34,34,34,40],[34,41,34,47],[34,48,34,54],[34,55,34,61],[34,62,34,68],[39,62,39,68],[39,0,39,26],[39,27,39,33],[39,34,39,40],[39,41,39,47],[39,48,39,54],[39,55,39,61],[38,27,38,33],[38,34,38,40],[38,41,38,47],[38,48,38,54],[38,55,38,61],[38,62,38,68],[33,27,33,33],[33,34,33,40],[33,41,33,47],[33,48,33,54],[33,55,33,61],[33,62,33,68],[32,27,32,33],[32,34,32,40],[32,41,32,47],[32,48,32,54],[32,55,32,61],[32,62,32,68],[31,27,31,33],[31,34,31,40],[31,41,31,47],[31,48,31,54],[31,55,31,61],[31,62,31,68],[28,27,28,33],[28,34,28,40],[28,41,28,47],[28,48,28,54],[28,55,28,61],[28,62,28,68],[30,27,30,33],[30,34,30,40],[30,41,30,47],[30,48,30,54],[30,55,30,61],[30,62,30,68],[29,27,29,33],[29,34,29,40],[29,41,29,47],[29,48,29,54],[29,55,29,61],[29,62,29,68],[27,27,27,33],[27,34,27,40],[27,41,27,47],[27,48,27,54],[27,55,27,61],[27,62,27,68],[26,27,26,33],[26,34,26,40],[26,41,26,47],[26,48,26,54],[26,55,26,61],[26,62,26,68],[25,27,25,33],[25,34,25,40],[25,41,25,47],[25,48,25,54],[25,55,25,61],[25,62,25,68],[19,27,19,33],[19,34,19,40],[19,41,19,47],[19,48,19,54],[19,55,19,61],[19,62,19,68],[24,27,24,33],[24,34,24,40],[24,41,24,47],[24,48,24,54],[24,55,24,61],[24,62,24,68],[23,27,23,33],[23,34,23,40],[23,41,23,47],[23,48,23,54],[23,55,23,61],[23,62,23,68],[18,27,18,33],[18,34,18,40],[18,41,18,47],[18,48,18,54],[18,55,18,61],[18,62,18,68],[17,27,17,33],[17,34,17,40],[17,41,17,47],[17,48,17,54],[17,55,17,61],[17,62,17,68],[16,27,16,33],[16,34,16,40],[16,41,16,47],[16,48,16,54],[16,55,16,61],[16,62,16,68],[15,27,15,33],[15,34,15,40],[15,41,15,47],[15,48,15,54],[15,55,15,61],[15,62,15,68],[22,27,22,33],[22,34,22,40],[22,41,22,47],[22,48,22,54],[22,55,22,61],[22,62,22,68],[21,27,21,33],[21,34,21,40],[21,41,21,47],[21,48,21,54],[21,55,21,61],[21,62,21,68],[20,27,20,33],[20,34,20,40],[20,41,20,47],[20,48,20,54],[20,55,20,61],[20,62,20,68],[12,27,12,33],[12,34,12,40],[12,41,12,47],[12,48,12,54],[12,55,12,61],[12,62,12,68],[14,27,14,33],[14,34,14,40],[14,41,14,47],[14,48,14,54],[14,55,14,61],[14,62,14,68],[13,27,13,33],[13,34,13,40],[13,41,13,47],[13,48,13,54],[13,55,13,61],[13,62,13,68],[11,27,11,33],[11,34,11,40],[11,41,11,47],[11,48,11,54],[11,55,11,61],[11,62,11,68],[8,62,8,68],[10,27,10,33],[10,34,10,40],[10,41,10,47],[10,48,10,54],[10,55,10,61],[10,62,10,68],[6,41,7,47],[6,48,7,54],[6,55,7,61],[8,27,8,33],[8,34,8,40],[8,41,8,47],[8,48,8,54],[8,55,8,61],[0,0,0,68],[1,0,1,68],[2,3,2,5],[5,0,8,26],[5,27,5,61],[5,62,7,68],[6,27,7,33],[6,34,7,40]]}
["Gasto por Categoria Programática"]
[{"$f":"ESF!A2","v":"1 enero al 31 de diciembre de 2022"}]
["CLAVE:",null,null,{"$f":"ESF!D3","v":2415},null,null,null,null,null,null,null,null,null,null,null,null,null,null,null,null,null,null,null,null,null,null,null,null,null,null,null,null,null,null,"(Pesos)"]
["ENTE PÚBLICO:",null,null,null,null,null,{"$f":"ESF!G4","v":"Tepango de Rodríguez"}]
[]
["Rubro de Ingresos",null,null,null,null,null,null,null,null,null,null,null,null,null,null,null,null,null,null,null,null,null,null,null,null,null,null,"Egresos",null,null,null,null,null,null,null,null,null,null,null,null,null,null,null,null,null,null,null,null,null,null,null,null,null,null,null,null,null,null,null,null,null,null,"Subejercicio"]
[null,null,null,null,null,null,null,null,null,null,null,null,null,null,null,null,null,null,null,null,null,null,null,null,null,null,null,"Aprobado",null,null,null,null,null,null,"Ampliaciones / (Reducciones)",null,null,null,null,null,null,"Modificado",null,null,null,null,null,null,"Devengado",null,null,null,null,null,null,"Pagado"]
[]
[null,null,null,null,null,null,null,null,null,null,null,null,null,null,null,null,null,null,null,null,null,null,null,null,null,null,null,"(1)",null,null,null,null,null,null,"(2)",null,null,null,null,null,null,"(3=1+2)",null,null,null,null,null,null,"(4)",null,null,null,null,null,null,"(5)",null,null,null,null,null,null,"(6=3-4)"]
["Programas"]
[null,"Subsidios: Sectror Social y Privado o Entidades Federativas y Municipios",null,null,null,null,null,null,null,null,null,null,null,null,null,null,null,null,null,null,null,null,null,null,null,null,null,{"$f":"SUM(AB12:AH13)","v":0},null,null,null,null,null,null,{"$f":"SUM(AI12:AO13)","v":0},null,null,null,null,null,null,{"$f":"SUM(AP12:AV13)","v":0},null,null,null,null,null,null,{"$f":"SUM(AW12:BC13)","v":0},null,null,null,null,null,null,{"$f":"SUM(BD12:BJ13)","v":0},null,null,null,null,null,null,{"$f":"AP11-AW11","v":0}]
[null,null,"Sujetos a Reglas de Operación",null,null,null,null,null,null,null,null,null,null,null,null,null,null,null,null,null,null,null,null,null,null,null,null,null,null,null,null,null,null,null,null,null,null,null,null,null,null,{"$f":"AB12+AI12","v":0},null,null,null,null,null,null,null,null,null,null,null,null,null,null,null,null,null,null,null,null,{"$f":"AP12-AW12","v":0}]
[null,null,"Otros Subsidios",null,null,null,null,null,null,null,null,null,null,null,null,null,null,null,null,null,null,null,null,null,null,null,null,null,null,null,null,null,null,null,null,null,null,null,null,null,null,0,null,null,null,null,null,null,null,null,null,null,null,null,null,null,null,null,null,null,null,null,{"$f":"AP13-AW13","v":0}]
[null,"Desempeño de las Funciones",null,null,null,null,null,null,null,null,null,null,null,null,null,null,null,null,null,null,null,null,null,null,null,null,null,{"$f":"SUM(AB15:AH22)","v":0},null,null,null,null,null,null,{"$f":"SUM(AI15:AO22)","v":0},null,null,null,null,null,null,{"$f":"SUM(AP15:AV22)","v":0},null,null,null,null,null,null,{"$f":"SUM(AW15:BC22)","v":0},null,null,null,null,null,null,{"$f":"SUM(BD15:BJ22)","v":0},null,null,null,null,null,null,0]
[null,null,"Prestaciones de Servicios Públicos",null,null,null,null,null,null,null,null,null,null,null,null,null,null,null,null,null,null,null,null,null,null,null,null,null,null,null,null,null,null,null,null,null,null,null,null,null,null,{"$f":"AB15+AI15","v":0},null,null,null,null,null,null,null,null,null,null,null,null,null,null,null,null,null,null,null,null,0]
[null,null,"Provisión de Bienes Públicos",null,null,null,null,null,null,null,null,null,null,null,null,null,null,null,null,null,null,null,null,null,null,null,null,null,null,null,null,null,null,null,null,null,null,null,null,null,null,{"$f":"AB16+AI16","v":0},null,null,null,null,null,null,null,null,null,null,null,null,null,null,null,null,null,null,null,null,0]
[null,null,"Planeación, Seguimiento y Evaluación de Politicas Públicas",null,null,null,null,null,null,null,null,null,null,null,null,null,null,null,null,null,null,null,null,null,null,null,null,null,null,null,null,null,null,null,null,null,null,null,null,null,null,0,null,null,null,null,null,null,null,null,null,null,null,null,null,null,null,null,null,null,null,null,0]
[null,null,"Promoción y Fomento",null,null,null,null,null,null,null,null,null,null,null,null,null,null,null,null,null,null,null,null,null,null,null,null,null,null,null,null,null,null,null,null,null,null,null,null,null,null,0,null,null,null,null,null,null,null,null,null,null,null,null,null,null,null,null,null,null,null,null,0]
[null,null,"Regulación y Supervición",null,null,null,null,null,null,null,null,null,null,null,null,null,null,null,null,null,null,null,null,null,null,null,null,null,null,null,null,null,null,null,null,null,null,null,null,null,null,{"$f":"AB19+AI19","v":0},null,null,null,null,null,null,null,null,null,null,null,null,null,null,null,null,null,null,null,null,0]
[null,null,"Funciones de las Fuerzas Armadas (Únicamente Gobierno Federal)",null,null,null,null,null,null,null,null,null,null,null,null,null,null,null,null,null,null,null,null,null,null,null,null,null,null,null,null,null,null,null,null,null,null,null,null,null,null,{"$f":"AB20+AI20","v":0},null,null,null,null,null,null,null,null,null,null,null,null,null,null,null,null,null,null,null,null,0]
[null,null,"Específicos",null,null,null,null,null,null,null,null,null,null,null,null,null,null,null,null,null,null,null,null,null,null,null,null,null,null,null,null,null,null,null,null,null,null,null,null,null,null,{"$f":"AB21+AI21","v":0},null,null,null,null,null,null,null,null,null,null,null,null,null,null,null,null,null,null,null,null,0]
[null,null,"Proyectos de Inversión",null,null,null,null,null,null,null,null,null,null,null,null,null,null,null,null,null,null,null,null,null,null,null,null,null,null,null,null,null,null,null,null,null,null,null,null,null,null,{"$f":"AB22+AI22","v":0},null,null,null,null,null,null,null,null,null,null,null,null,null,null,null,null,null,null,null,null,0]
[null,"Administrativos y de Apoyo",null,null,null,null,null,null,null,null,null,null,null,null,null,null,null,null,null,null,null,null,null,null,null,null,null,{"$f":"SUM(AB24:AH26)","v":0},null,null,null,null,null,null,{"$f":"SUM(AI24:AO26)","v":0},null,null,null,null,null,null,{"$f":"SUM(AP24:AV26)","v":0},null,null,null,null,null,null,{"$f":"SUM(AW24:BC26)","v":0},null,null,null,null,null,null,{"$f":"SUM(BD24:BJ26)","v":0},null,null,null,null,null,null,0]
[null,null,"Apoyo al Proceso Presupuestario y para Mejorar la Eficiencia Institucional",null,null,null,null,null,null,null,null,null,null,null,null,null,null,null,null,null,null,null,null,null,null,null,null,null,null,null,null,null,null,null,null,null,null,null,null,null,null,{"$f":"AB24+AI24","v":0},null,null,null,null,null,null,null,null,null,null,null,null,null,null,null,null,null,null,null,null,0]
[null,null,"Apoyo a la Función Pública y al Mejoramiento de la Gestión",null,null,null,null,null,null,null,null,null,null,null,null,null,null,null,null,null,null,null,null,null,null,null,null,null,null,null,null,null,null,null,null,null,null,null,null,null,null,{"$f":"AB25+AI25","v":0},null,null,null,null,null,null,null,null,null,null,null,null,null,null,null,null,null,null,null,null,0]
[null,null,"Operaciones Ajenas",null,null,null,null,null,null,null,null,null,null,null,null,null,null,null,null,null,null,null,null,null,null,null,null,null,null,null,null,null,null,null,null,null,null,null,null,null,null,0,null,null,null,null,null,null,null,null,null,null,null,null,null,null,null,null,null,null,null,null,0]
[null,"Compromisos",null,null,null,null,null,null,null,null,null,null,null,null,null,null,null,null,null,null,null,null,null,null,null,null,null,{"$f":"SUM(AB28:AH29)","v":0},null,null,null,null,null,null,{"$f":"SUM(AI28:AO29)","v":0},null,null,null,null,null,null,{"$f":"SUM(AP28:AV29)","v":0},null,null,null,null,null,null,{"$f":"SUM(AW28:BC29)","v":0},null,null,null,null,null,null,{"$f":"SUM(BD28:BJ29)","v":0},null,null,null,null,null,null,0]
[null,null,"Obligaciones de Cumplimiento de Resolución Jurisdiccional",null,null,null,null,null,null,null,null,null,null,null,null,null,null,null,null,null,null,null,null,null,null,null,null,null,null,null,null,null,null,null,null,null,null,null,null,null,null,{"$f":"AB28+AI28","v":0},null,null,null,null,null,null,null,null,null,null,null,null,null,null,null,null,null,null,null,null,0]
[null,null,"Desastres Naturales",null,null,null,null,null,null,null,null,null,null,null,null,null,null,null,null,null,null,null,null,null,null,null,null,null,null,null,null,null,null,null,null,null,null,null,null,null,null,{"$f":"AB29+AI29","v":0},null,null,null,null,null,null,null,null,null,null,null,null,null,null,null,null,null,null,null,null,0]
[null,"Obligaciones",null,null,null,null,null,null,null,null,null,null,null,null,null,null,null,null,null,null,null,null,null,null,null,null,null,{"$f":"SUM(AB31:AH34)","v":0},null,null,null,null,null,null,{"$f":"SUM(AI31:AO34)","v":0},null,null,null,null,null,null,{"$f":"SUM(AP31:AV34)","v":0},null,null,null,null,null,null,{"$f":"SUM(AW31:BC34)","v":0},null,null,null,null,null,null,{"$f":"SUM(BD31:BJ34)","v":0},null,null,null,null,null,null,0]
[null,null,"Pensiones y Jubilaciones",null,null,null,null,null,null,null,null,null,null,null,null,null,null,null,null,null,null,null,null,null,null,null,null,null,null,null,null,null,null,null,null,null,null,null,null,null,null,{"$f":"AB31+AI31","v":0},null,null,null,null,null,null,null,null,null,null,null,null,null,null,null,null,null,null,null,null,0]
[null,null,"Aportaciones a la Seguridad Social",null,null,null,null,null,null,null,null,null,null,null,null,null,null,null,null,null,null,null,null,null,null,null,null,null,null,null,null,null,null,null,null,null,null,null,null,null,null,{"$f":"AB32+AI32","v":0},null,null,null,null,null,null,null,null,null,null,null,null,null,null,null,null,null,null,null,null,0]
[null,null,"Aportaciones a Fondos de Estabilización",null,null,null,null,null,null,null,null,null,null,null,null,null,null,null,null,null,null,null,null,null,null,null,null,null,null,null,null,null,null,null,null,null,null,null,null,null,null,0,null,null,null,null,null,null,null,null,null,null,null,null,null,null,null,null,null,null,null,null,0]
[null,null,"Aportaciones a Fondo de Inversión y Reestructura de Penciones",null,null,null,null,null,null,null,null,null,null,null,null,null,null,null,null,null,null,null,null,null,null,null,null,null,null,null,null,null,null,null,null,null,null,null,null,null,null,0,null,null,null,null,null,null,null,null,null,null,null,null,null,null,null,null,null,null,null,null,0]
[null,"Programas de Gasto Federalizado (Gobierno Federal)",null,null,null,null,null,null,null,null,null,null,null,null,null,null,null,null,null,null,null,null,null,null,null,null,null,{"$f":"SUM(AB36)","v":0},null,null,null,null,null,null,{"$f":"SUM(AI36)","v":0},null,null,null,null,null,null,{"$f":"SUM(AP36)","v":0},null,null,null,null,null,null,{"$f":"SUM(AW36)","v":0},null,null,null,null,null,null,{"$f":"SUM(BD36)","v":0},null,null,null,null,null,null,0]
[null,null,"Gasto Federalizado",null,null,null,null,null,null,null,null,null,null,null,null,null,null,null,null,null,null,null,null,null,null,null,null,null,null,null,null,null,null,null,null,null,null,null,null,null,null,{"$f":"AB36+AI36","v":0},null,null,null,null,null,null,null,null,null,null,null,null,null,null,null,null,null,null,null,null,0]
["Participaciones a Entidades Federativas y Municipios",null,null,null,null,null,null,null,null,null,null,null,null,null,null,null,null,null,null,null,null,null,null,null,null,null,null,null,null,null,null,null,null,null,null,null,null,null,null,null,null,{"$f":"AB37+AI37","v":0},null,null,null,null,null,null,null,null,null,null,null,null,null,null,null,null,null,null,null,null,0]
["Costo Financiero, Deuda o Apoyos a Deudores y Ahorradores de la Banca",null,null,null,null,null,null,null,null,null,null,null,null,null,null,null,null,null,null,null,null,null,null,null,null,null,null,null,null,null,null,null,null,null,null,null,null,null,null,null,null,{"$f":"AB38+AI38","v":0},null,null,null,null,null,null,null,null,null,null,null,null,null,null,null,null,null,null,null,null,0]
["Adeudos de Ejercicios Fiscales Anteriores",null,null,null,null,null,null,null,null,null,null,null,null,null,null,null,null,null,null,null,null,null,null,null,null,null,null,null,null,null,null,null,null,null,null,null,null,null,null,null,null,{"$f":"AB39+AI39","v":0},null,null,null,null,null,null,null,null,null,null,null,null,null,null,null,null,null,null,null,null,0]
["Total del Gasto",null,null,null,null,null,null,null,null,null,null,null,null,null,null,null,null,null,null,null,null,null,null,null,null,null,null,{"$f":"SUM(AB11+AB14+AB23+AB27+AB30+AB35+AB37+AB38+AB39)","v":0},null,null,null,null,null,null,{"$f":"SUM(AI11+AI14+AI23+AI27+AI30+AI35+AI37+AI38+AI39)","v":0},null,null,null,null,null,null,{"$f":"SUM(AP11+AP14+AP23+AP27+AP30+AP35+AP37+AP38+AP39)","v":0},null,null,null,null,null,null,{"$f":"SUM(AW11+AW14+AW23+AW27+AW30+AW35+AW37+AW38+AW39)","v":0},null,null,null,null,null,null,{"$f":"SUM(BD11+BD14+BD23+BD27+BD30+BD35+BD37+BD38+BD39)","v":0},null,null,null,null,null,null,{"$f":"AP40-AW40","v":0}]

{"sheet":"EAIP","index":21,"n_rows":15,"n_cols":64,"rows_kept":15,"cut":false,"hidden":true,"merged":[[2,0,2,68],[1,0,1,68],[0,0,0,68],[10,21,10,27],[6,42,8,48],[6,49,8,55],[3,3,3,5],[6,56,8,62],[6,21,8,27],[6,28,8,34],[6,35,8,41],[6,0,8,20],[10,28,10,34],[10,35,10,41],[10,42,10,48],[10,49,10,55],[10,56,10,62],[6,63,8,68],[10,63,10,68],[12,63,12,68],[14,63,14,68],[14,56,14,62],[12,56,12,62],[14,0,14,20],[14,21,14,27],[14,28,14,34],[14,35,14,41],[14,42,14,48],[14,49,14,55],[12,21,12,27],[12,28,12,34],[12,35,12,41],[12,42,12,48],[12,49,12,55]]}
["Cuenta Pública 2016"]
["Estado Analítico de Ingresos Presupuestales"]
[{"$f":"CONCATENATE(\"Del \",(VLOOKUP(D4,#REF!,8,FALSE)),\" al \",(VLOOKUP(D4,#REF!,9,FALSE)),\" de 2016\")","v":{"$error":"#REF!"}}]
["CLAVE:",null,null,{"$f":"ESF!D3","v":"1906-08-11"},null,null,null,null,null,null,null,null,null,null,null,null,null,null,null,null,null,null,null,null,null,null,null,null,"(Pesos)"]
["ENTE PÚBLICO:",null,null,null,null,null,{"$f":"ESF!G4","v":"Tepango de Rodríguez"}]
[]
["Fuente de Ingresos",null,null,null,null,null,null,null,null,null,null,null,null,null,null,null,null,null,null,null,null,"Ley de Ingresos Estimada",null,null,null,null,null,null,"Ampliaciones / (Reducciones)",null,null,null,null,null,null,"Ley de Ingresos Modificada",null,null,null,null,null,null,"Ingresos Devengados",null,null,null,null,null,null,"Ingresos Recaudados",null,null,null,null,null,null,"Devengados por Recaudar",null,null,null,null,null,null,"Avance de Recaudación (Recaudación/Estimación)"]
[]
[]
[]
["83     CONVENIOS",null,null,null,null,null,null,null,null,null,null,null,null,null,null,null,null,null,null,null,null,null,null,null,null,null,null,null,null,null,null,null,null,null,null,null,null,null,null,null,null,null,null,null,null,null,null,null,null,null,null,null,null,null,null,null,0,null,null,null,null,null,null,{"$f":"AX11/AJ11","v":{"$error":"#DIV/0!"}}]
[]
["92     TRANSFERENCIAS AL RESTO DEL SECTOR PÚBLICO",null,null,null,null,null,null,null,null,null,null,null,null,null,null,null,null,null,null,null,null,null,null,null,null,null,null,null,null,null,null,null,null,null,null,null,null,null,null,null,null,null,null,null,null,null,null,null,null,null,null,null,null,null,null,null,0,null,null,null,null,null,null,{"$f":"AX13/AJ13","v":{"$error":"#DIV/0!"}}]
[]
["Total",null,null,null,null,null,null,null,null,null,null,null,null,null,null,null,null,null,null,null,null,{"$f":"SUM(V11:AB13)","v":0},null,null,null,null,null,null,{"$f":"SUM(AC11:AI13)","v":0},null,null,null,null,null,null,{"$f":"SUM(AJ11:AP13)","v":0},null,null,null,null,null,null,{"$f":"SUM(AQ11:AW13)","v":0},null,null,null,null,null,null,{"$f":"SUM(AX11:BD13)","v":0},null,null,null,null,null,null,{"$f":"SUM(BE11:BK13)","v":0},null,null,null,null,null,null,{"$f":"AX15/AJ15","v":{"$error":"#DIV/0!"}}]

{"sheet":"EEPCG","index":22,"n_rows":21,"n_cols":82,"rows_kept":21,"cut":false,"hidden":true,"merged":[[2,0,2,86],[0,0,0,86],[1,0,1,86],[10,63,10,68],[6,57,8,62],[10,57,10,62],[3,3,3,5],[6,0,8,20],[6,21,8,26],[6,27,8,32],[6,33,8,38],[6,39,8,44],[6,45,8,50],[6,51,8,56],[10,21,10,26],[6,63,8,68],[16,51,16,56],[16,57,16,62],[14,57,14,62],[16,63,16,68],[12,51,12,56],[12,57,12,62],[12,63,12,68],[14,51,14,56],[14,63,14,68],[20,0,20,20],[20,21,20,26],[20,27,20,32],[20,33,20,38],[20,39,20,44],[20,45,20,50],[20,51,20,56],[20,63,20,68],[18,21,18,26],[18,27,18,32],[18,33,18,38],[18,39,18,44],[18,45,18,50],[18,51,18,56],[18,57,18,62],[20,57,20,62],[18,63,18,68],[16,21,16,26],[16,27,16,32],[16,33,16,38],[16,39,16,44],[16,45,16,50],[14,21,14,26],[14,27,14,32],[14,33,14,38],[14,39,14,44],[14,45,14,50],[12,21,12,26],[12,27,12,32],[12,33,12,38],[12,39,12,44],[12,45,12,50],[10,27,10,32],[10,33,10,38],[10,39,10,44],[10,45,10,50],[10,51,10,56],[18,69,18,74],[20,69,20,74],[6,75,8,80],[10,75,10,80],[12,75,12,80],[14,75,14,80],[16,75,16,80],[18,75,18,80],[20,75,20,80],[16,69,16,74],[6,69,8,74],[10,69,10,74],[12,69,12,74],[14,69,14,74],[20,81,20,86],[6,81,8,86],[10,81,10,86],[12,81,12,86],[14,81,14,86],[16,81,16,86],[18,81,18,86]]}
["Cuenta Pública 2016"]
["Estado del Ejercicio del Presupuesto por Capítulo del Gasto"]
[{"$f":"CONCATENATE(\"Del \",(VLOOKUP(D4,#REF!,8,FALSE)),\" al \",(VLOOKUP(D4,#REF!,9,FALSE)),\" de 2016\")","v":{"$error":"#REF!"}}]
["CLAVE:",null,null,{"$f":"ESF!D3","v":"1906-08-11"},null,null,null,null,null,null,null,null,null,null,null,null,null,null,null,null,null,null,null,null,null,null,null,null,null,null,null,null,null,null,null,null,null,null,null,null,null,null,null,"(Pesos)"]
["ENTE PÚBLICO:",null,null,null,null,null,{"$f":"ESF!G4","v":"Tepango de Rodríguez"}]
[]
["Objeto del Gasto",null,null,null,null,null,null,null,null,null,null,null,null,null,null,null,null,null,null,null,null,"Aprobado",null,null,null,null,null,"Ampliaciones / (Reducciones)",null,null,null,null,null,"Presupuesto Vigente",null,null,null,null,null,"Comprometido",null,null,null,null,null,"Presupuesto Disponible para Comprometer",null,null,null,null,null,"Devengado",null,null,null,null,null,"Comprometido No Devengado",null,null,null,null,null,"Presupuesto Sin Devengar",null,null,null,null,null,"Ejercido",null,null,null,null,null,"Pagado",null,null,null,null,null,"Cuentas por Pagar Deuda"]
[]
[]
[]
["1000   SERVICIOS PERSONALES",null,null,null,null,null,null,null,null,null,null,null,null,null,null,null,null,null,null,null,null,null,null,null,null,null,null,null,null,null,null,null,null,{"$f":"V11+AB11","v":0},null,null,null,null,null,null,null,null,null,null,null,{"$f":"AH11-AN11","v":0},null,null,null,null,null,null,null,null,null,null,null,{"$f":"AN11-AZ11","v":0},null,null,null,null,null,{"$f":"BF11+AT11","v":0},null,null,null,null,null,{"$f":"AZ11","v":0},null,null,null,null,null,null,null,null,null,null,null,{"$f":"BR11-BX11","v":0}]
[]
["2000   MATERIALES Y SUMINISTROS",null,null,null,null,null,null,null,null,null,null,null,null,null,null,null,null,null,null,null,null,null,null,null,null,null,null,null,null,null,null,null,null,{"$f":"V13+AB13","v":0},null,null,null,null,null,null,null,null,null,null,null,{"$f":"AH13-AN13","v":0},null,null,null,null,null,null,null,null,null,null,null,{"$f":"AN13-AZ13","v":0},null,null,null,null,null,{"$f":"BF13+AT13","v":0},null,null,null,null,null,{"$f":"AZ13","v":0},null,null,null,null,null,null,null,null,null,null,null,{"$f":"BR13-BX13","v":0}]
[]
["3000   SERVICIOS GENERALES",null,null,null,null,null,null,null,null,null,null,null,null,null,null,null,null,null,null,null,null,null,null,null,null,null,null,null,null,null,null,null,null,{"$f":"V15+AB15","v":0},null,null,null,null,null,null,null,null,null,null,null,{"$f":"AH15-AN15","v":0},null,null,null,null,null,null,null,null,null,null,null,{"$f":"AN15-AZ15","v":0},null,null,null,null,null,{"$f":"BF15+AT15","v":0},null,null,null,null,null,{"$f":"AZ15","v":0},null,null,null,null,null,null,null,null,null,null,null,{"$f":"BR15-BX15","v":0}]
[]
["4000   TRANSFERENCIAS, ASIGNACIONES, SUBSIDIOS Y OTRAS AYUDAS",null,null,null,null,null,null,null,null,null,null,null,null,null,null,null,null,null,null,null,null,null,null,null,null,null,null,null,null,null,null,null,null,{"$f":"V17+AB17","v":0},null,null,null,null,null,null,null,null,null,null,null,{"$f":"AH17-AN17","v":0},null,null,null,null,null,null,null,null,null,null,null,{"$f":"AN17-AZ17","v":0},null,null,null,null,null,{"$f":"BF17+AT17","v":0},null,null,null,null,null,{"$f":"AZ17","v":0},null,null,null,null,null,null,null,null,null,null,null,{"$f":"BR17-BX17","v":0}]
[]
[null,null,null,null,null,null,null,null,null,null,null,null,null,null,null,null,null,null,null,null,null,null,null,null,null,null,null,null,null,null,null,null,null,{"$f":"V19+AB19","v":0},null,null,null,null,null,null,null,null,null,null,null,{"$f":"AH19-AN19","v":0},null,null,null,null,null,null,null,null,null,null,null,{"$f":"AN19-AZ19","v":0},null,null,null,null,null,{"$f":"BF19+AT19","v":0},null,null,null,null,null,{"$f":"AZ19","v":0},null,null,null,null,null,null,null,null,null,null,null,{"$f":"BR19-BX19","v":0}]
[]
["Total",null,null,null,null,null,null,null,null,null,null,null,null,null,null,null,null,null,null,null,null,{"$f":"SUM(V11:AA19)","v":0},null,null,null,null,null,{"$f":"SUM(AB11:AG19)","v":0},null,null,null,null,null,{"$f":"SUM(AH11:AM19)","v":0},null,null,null,null,null,{"$f":"SUM(AN11:AS19)","v":0},null,null,null,null,null,{"$f":"SUM(AT11:AY19)","v":0},null,null,null,null,null,{"$f":"SUM(AZ11:BE19)","v":0},null,null,null,null,null,{"$f":"SUM(BF11:BK19)","v":0},null,null,null,null,null,{"$f":"SUM(BL11:BQ19)","v":0},null,null,null,null,null,{"$f":"SUM(BR11:BW19)","v":0},null,null,null,null,null,{"$f":"SUM(BX11:CC19)","v":0},null,null,null,null,null,{"$f":"SUM(CD11:CI19)","v":0}]

{"sheet":"EAP","index":23,"n_rows":35,"n_cols":56,"rows_kept":35,"cut":false,"hidden":true,"merged":[[0,0,0,61],[1,0,1,61],[2,0,2,61],[3,3,3,5],[6,0,8,26],[6,27,8,33],[6,34,8,40],[6,41,8,47],[6,48,8,54],[6,55,8,61],[14,27,14,33],[14,34,14,40],[14,41,14,47],[14,48,14,54],[14,55,14,61],[12,27,12,33],[12,34,12,40],[12,41,12,47],[12,48,12,54],[12,55,12,61],[34,27,34,33],[34,34,34,40],[34,41,34,47],[34,48,34,54],[34,55,34,61]]}
["Cuenta Pública 2016"]
["Estado Analítico del Pasivo"]
[{"$f":"CONCATENATE(\"Del \",(VLOOKUP(D4,#REF!,8,FALSE)),\" al \",(VLOOKUP(D4,#REF!,9,FALSE)),\" de 2016\")","v":{"$error":"#REF!"}}]
["CLAVE:",null,null,{"$f":"ESF!D3","v":"1906-08-11"},null,null,null,null,null,null,null,null,null,null,null,null,null,null,null,null,null,null,null,null,null,null,null,null,null,null,"(Pesos)"]
["ENTE PÚBLICO:",null,null,null,null,null,{"$f":"ESF!G4","v":"Tepango de Rodríguez"}]
[]
["CONCEPTO",null,null,null,null,null,null,null,null,null,null,null,null,null,null,null,null,null,null,null,null,null,null,null,null,null,null,"Saldo Inicial\n1",null,null,null,null,null,null,"Cargos del Periodo\n2",null,null,null,null,null,null,"Abonos del Periodo\n3",null,null,null,null,null,null,"Saldo Final\n4=(1+2-3)",null,null,null,null,null,null,"Variación del Periodo\n4-1"]
[]
[]
[]
[null,"Pasivo"]
[]
[null,"Pasivo Circulante",null,null,null,null,null,null,null,null,null,null,null,null,null,null,null,null,null,null,null,null,null,null,null,null,null,{"$f":"SUM(AB15:AH20)","v":0},null,null,null,null,null,null,{"$f":"SUM(AI15:AO20)","v":0},null,null,null,null,null,null,{"$f":"SUM(AP15:AV20)","v":0},null,null,null,null,null,null,{"$f":"AB13-AI13+AP13","v":0},null,null,null,null,null,null,{"$f":"AW13-AB13","v":0}]
[]
[null,"Cuentas por Pagar a Corto Plazo",null,null,null,null,null,null,null,null,null,null,null,null,null,null,null,null,null,null,null,null,null,null,null,null,null,null,null,null,null,null,null,null,null,null,null,null,null,null,null,null,null,null,null,null,null,null,{"$f":"AB15-AI15+AP15","v":0},null,null,null,null,null,null,{"$f":"AW15-AB15","v":0}]
[]
[]
[]
[]
[]
[]
[]
[]
[]
[]
[]
[]
[]
[]
[]
[]
[]
[]
[]
[null,"TOTAL DEL PASIVO",null,null,null,null,null,null,null,null,null,null,null,null,null,null,null,null,null,null,null,null,null,null,null,null,null,{"$f":"AB13+AB23","v":0},null,null,null,null,null,null,{"$f":"AI13+AI23","v":0},null,null,null,null,null,null,{"$f":"AP13+AP23","v":0},null,null,null,null,null,null,0,null,null,null,null,null,null,0]